Workbook

Sheet Pres & Prop Rev
J2: TRANSPORT
J3: SCH 148 - WSU/
A4: WORK PAPER | D4: GEN SERVICE | E4: LRG GEN SVC | F4: EX LRG GEN SVC | G4: INTERRUPTIBLE | H4: TRANSPORT | I4: TRANSPORT | J4: BF GOODRICH
A5: REFERENCE | C5: TOTAL | D5: SCHEDULE 101 | E5: SCH. 111&112 | F5: SCH. 121&122 | G5: SCH. 131&132 | H5: SCHEDULE 146 | I5: SCHEDULE 148 | J5: ANN. MINIMUM | Q5: Print Header for all printed pages on this worksheet:
B6: PRESENT BILL DETERMINANTS | M6: Calculate all revenue exhibits using ____ rates: | Q6: ="AVISTA UTILITIES WASHINGTON GAS PRO FORMA REVENUE UNDER PRESENT AND PROPOSED "&O9&" RATES 12 MONTHS ENDED JUNE 30, 2013" -> AVISTA UTILITIES WASHINGTON GAS PRO FORMA REVENUE UNDER PRESENT AND PROPOSED BASE TARIFF RATES 12 MONTHS ENDED JUNE 30, 2013
B7: THERMS | L7: 1) | M7: BASE TARIFF
A8: PDE-G-8 | B8: BLOCK 1 | D8: ='Bill Determ'!E7 -> 74519037 | E8: ='Bill Determ'!B12 -> 5632648 | F8: ='Bill Determ'!B21 -> 177068 | G8: ='Bill Determ'!B25 -> 240000 | H8: ='Bill Determ'!B29 -> 8309188 | I8: ='Bill Determ'!B35 -> 20651786 | J8: ='Bill Determ'!B41 -> 9870961 | M8: or | O8: 1
A9: PDE-G-8 | B9: BLOCK 2 | D9: ='Bill Determ'!F7 -> 42492170 | E9: ='Bill Determ'!C12 -> 14800997 | F9: ='Bill Determ'!C21 -> 176746 | G9: ='Bill Determ'!C25 -> 360000 | H9: ='Bill Determ'!C29 -> 7562641 | I9: ='Bill Determ'!B36 -> 7028636 | L9: 2) | M9: BILLING | O9: =CHOOSE(Base1_Billing2,M7,M9) -> BASE TARIFF
A10: PDE-G-8 | B10: BLOCK 3 | E10: ='Bill Determ'!D12 -> 25823248 | F10: ='Bill Determ'!D21 -> 2926401 | G10: ='Bill Determ'!D25 -> 449338 | H10: ='Bill Determ'!D29 -> 11926882 | I10: ='Bill Determ'!B37 -> 1730058 | O10: =CHOOSE(Base1_Billing2,"Base","Billing") -> Base
A11: PDE-G-8 | B11: BLOCK 4 | F11: ='Bill Determ'!E21 -> 1786297 | G11: ='Bill Determ'!E25 -> 238882 | H11: ='Bill Determ'!E29 -> 2839693 | I11: ='Bill Determ'!B38 -> 6121048
A12: PDE-G-8 | B12: BLOCK 5 | F12: ='Bill Determ'!F21 -> 874046 | H12: ='Bill Determ'!F29 -> 385474 | I12: ='Bill Determ'!B32 -> 739727
B14: SUBTOTAL | C14: =SUM(D14:J14) -> 247662972 | D14: =SUM(D8:D12) -> 117011207 | E14: 46256893 | F14: 5940558 | G14: 1288220 | H14: =SUM(H8:H12) -> 31023878 | I14: =SUM(I8:I12) -> 36271255 | J14: 9870961
B15: LOAD ADJUSTMENT
B17: SUBTOTAL | C17: =SUM(D17:J17) -> 247662972 | D17: =D14+D15 -> 117011207 | E17: 46256893 | F17: 5940558 | G17: 1288220 | H17: =H14+H15 -> 31023878 | I17: 36271255 | J17: 9870961
A18: PDE-G-8 | B18: ADJUSTMENT TO ACTUAL | C18: =SUM(D18:J18) -> 0 | D18: ='Bill Determ'!G9 -> 0 | E18: ='Bill Determ'!E17 -> 0
B20: TOTAL BEFORE ADJUSTMENT | C20: =SUM(D20:J20) -> 247662972 | D20: =D17+D18 -> 117011207 | E20: 46256893 | F20: 5940558 | G20: 1288220 | H20: =H17+I18 -> 31023878 | I20: =I17+I18 -> 36271255 | J20: 9870961
A21: PDE-G-3 | B21: WEATHER & UNBILLED REV. ADJ. | C21: =SUM(D21:J21) -> 0 | D21: 0 | E21: 0 | F21: 0 | G21: =G134+G137 -> 0 | H21: =H134+H137 -> 0 | I21: 0 | J21: 0
B23: TOTAL PROFORMA THERMS | C23: =IF(ROUND(SUM(C20:C21),3)<>ROUND(SUM(D23:J23),3),#VALUE!,SUM(D23:J23)) -> 247662972 | D23: =SUM(D20:D21) -> 117011207 | E23: 46256893 | F23: 5940558 | G23: 1288220 | H23: =SUM(H20:H21) -> 31023878 | I23: 36271255 | J23: 9870961
A25: PDE-G-8 | B25: TOTAL BILLS | D25: ='Bill Determ'!C7 -> 1802235 | G25: ='Bill Determ'!G25 -> 24 | H25: ='Bill Determ'!H29 -> 501 | I25: ='Bill Determ'!C39 -> 48 | J25: ='Bill Determ'!C41 -> 12
A26: PDE-G-8 | B26: TOTAL MINIMUM BILLS | E26: ='Bill Determ'!F16 -> 30276 | F26: ='Bill Determ'!H21 -> 329
B29: PROPOSED BILL DETERMINANTS
B30: THERMS
B31: BLOCK 1 | D31: ='Bill Determ'!E7 -> 74519037 | E31: =E8 -> 5632648 | F31: 177068 | G31: 240000 | H31: 8309188 | I31: 20651786 | J31: 9870961
B32: BLOCK 2 | D32: ='Bill Determ'!F7 -> 42492170 | E32: =E9 -> 14800997 | F32: 176746 | G32: 360000 | H32: 7562641 | I32: 7028636 | J32: 0
B33: BLOCK 3 | D33: =D10 -> 0 | E33: =E10 -> 25823248 | F33: 2926401 | G33: 449338 | H33: 11926882 | I33: 1730058 | J33: 0
B34: BLOCK 4 | D34: =D11 -> 0 | E34: =E11 -> 0 | F34: 1786297 | G34: 238882 | H34: 2839693 | I34: 6121048 | J34: 0
B35: BLOCK 5 | D35: =D12 -> 0 | E35: =E12 -> 0 | F35: 874046 | G35: 0 | H35: 385474 | I35: 739727 | J35: 0
B37: SUBTOTAL | C37: =SUM(D37:J37) -> 247662972 | D37: =SUM(D31:D35) -> 117011207 | E37: 46256893 | F37: 5940558 | G37: 1288220 | H37: =SUM(H31:H35) -> 31023878 | I37: =SUM(I31:I35) -> 36271255 | J37: 9870961
B38: NET SHIFTING ADJUSTMENT | C38: =SUM(D38:J38) -> 0 | D38: =D15 -> 0 | E38: 0 | F38: 0 | G38: 0 | H38: =H15 -> 0 | I38: 0 | J38: 0
B40: SUBTOTAL | C40: =SUM(D40:J40) -> 247662972 | D40: =D37+D38 -> 117011207 | E40: 46256893 | F40: 5940558 | G40: 1288220 | H40: =H37+H38 -> 31023878 | I40: 36271255 | J40: 9870961
B41: ADJUSTMENT TO ACTUAL | C41: =SUM(D41:J41) -> 0 | D41: =D18 -> 0 | E41: 0 | F41: 0 | G41: 0 | H41: 0 | I41: 0 | J41: 0
B43: TOTAL BEFORE ADJUSTMENT | C43: =SUM(D43:J43) -> 247662972 | D43: =D40+D41 -> 117011207 | E43: 46256893 | F43: 5940558 | G43: 1288220 | H43: =H40+H41 -> 31023878 | I43: =I40+I41 -> 36271255 | J43: 9870961
B44: WEATHER & UNBILLED REV. ADJ. | C44: =SUM(D44:J44) -> 0 | D44: =D21 -> 0 | E44: 0 | F44: 0 | G44: 0 | H44: =H21 -> 0 | I44: 0 | J44: 0
B46: TOTAL PROFORMA THERMS | C46: =IF(ROUND(SUM(C43:C44),3)<>ROUND(SUM(D46:J46),3),#VALUE!,SUM(D46:J46)) -> 247662972 | D46: =D43+D44 -> 117011207 | E46: 46256893 | F46: 5940558 | G46: 1288220 | H46: =H43+H44 -> 31023878 | I46: 36271255 | J46: 9870961
B48: TOTAL BILLS | D48: =D25 -> 1802235 | E48: 0 | F48: 0 | G48: =G25 -> 24 | H48: =H25 -> 501 | I48: =I25 -> 48 | J48: =J25 -> 12
B49: TOTAL MINIMUM BILLS | D49: 0 | E49: 30276 | F49: 329
E50: 2 | F50: 3 | G50: 4 | H50: 5 | I50: 6 | J50: 7
J51: TRANSPORT
J52: SCH 148 - WSU/
A53: WORK PAPER | D53: GEN SERVICE | E53: LRG GEN SVC | F53: EX LRG GEN SVC | G53: INTERRUPTIBLE | H53: TRANSPORT | I53: TRANSPORT | J53: BF GOODRICH | M53: ="selected in cell "&CELL("address",Base1_Billing2)&":" -> selected in cell $O$8:
A54: REFERENCE | C54: TOTAL | D54: SCHEDULE 101 | E54: SCHEDULE 111 | F54: SCHEDULE 121 | G54: SCHEDULE 131 | H54: SCHEDULE 146 | I54: SCHEDULE 148 | J54: ANN. MINIMUM | M54: =O10 -> Base
B55: PRESENT RATES | I55: -1 | J55: -2 | M55: ="Rates_"&$M$54&"_Present" -> Rates_Base_Present | O55: - range name where Present Rates table can be found
A56: PDE-G-13/14 | B56: BASIC CHARGE | D56: =INDEX(INDIRECT($M$55),$K56,D$50) -> 8 | E56: =INDEX(INDIRECT($M$55),$K56,E$50) -> 0 | F56: 0 | G56: 0 | H56: 400 | I56: 200 | J56: 26332 | K56: 1 | M56: ="Rates_"&$M$54&"_Proposed" -> Rates_Base_Proposed | O56: - range name where Proposed Rates table can be found
A57: PDE-G-13/14 | B57: MONTHLY MINIMUM | D57: 0 | E57: 161.21 | F57: 409.92 | G57: 0 | H57: 0 | I57: 0 | J57: 0 | K57: 2
A59: PDE-G-13/14 | B59: BLOCK 1 PER THERM | D59: =INDEX(INDIRECT($M$55),$K59,D$50) -> 78.022 | E59: =INDEX(INDIRECT($M$55),$K59,E$50) -> 8.061 | F59: 6.062 | G59: 63.929 | H59: 8.289 | I59: 2.8 | J59: 1 | K59: 3
A60: PDE-G-13/14 | B60: BLOCK 2 PER THERM | D60: 88.13 | E60: 76.179 | F60: 75.695 | G60: 59.425 | H60: 7.38 | I60: 4.5 | J60: 0 | K60: 4
A61: PDE-G-13/14 | B61: BLOCK 3 PER THERM | D61: 0 | E61: 68.857 | F61: 68.207 | G61: 58.32 | H61: 6.659 | I61: 3.168 | J61: 0 | K61: 5
A62: PDE-G-13/14 | B62: BLOCK 4 PER THERM | D62: 0 | E62: 0 | F62: 63.505 | G62: 57.954 | H62: 6.162 | I62: 2.5 | J62: 0 | K62: 6
A63: PDE-G-13/14 | B63: BLOCK 5 PER THERM | D63: 0 | E63: 0 | F63: 59.721 | G63: 0 | H63: 4.642 | I63: 2.091 | J63: 0 | K63: 7
B65: ADJUST TO ACTUAL PER THERM | D65: =(D118-D106-D107)/D17*100 -> 81.69268134 | E65: =(E118-E106-E107)/E17*100 -> 63.79679055 | F65: =(F118-F106-F107)/F17*100 -> 63.91502263 | G65: =(G118-G106-G107)/G17*100 -> 59.60590505
B73: PROPOSED RATES
B74: BASIC CHARGE | D74: =INDEX(INDIRECT($M$56),$K74,D$50) -> 9 | E74: =INDEX(INDIRECT($M$56),$K74,E$50) -> 0 | F74: 0 | G74: 0 | H74: 500 | I74: 200 | J74: 26332 | K74: 1
B75: MONTHLY MINIMUM | D75: 0 | E75: 87.04 | F75: 215.24 | G75: 0 | H75: 0 | I75: 0 | J75: 0 | K75: 2
B77: BLOCK 1 PER THERM | D77: =INDEX(INDIRECT($M$56),$K77,D$50) -> 81.923 | E77: =INDEX(INDIRECT($M$56),$K77,E$50) -> 49.535 | F77: 47.449 | G77: 67.509 | H77: 8.771 | I77: 2.8 | J77: 1 | K77: 3
B78: BLOCK 2 PER THERM | D78: =INDEX(INDIRECT($M$56),$K78,D$50) -> 92.536 | E78: 79.914 | F78: 79.675 | G78: 62.753 | H78: 7.809 | I78: 4.5 | J78: 0 | K78: 4
B79: BLOCK 3 PER THERM | D79: 0 | E79: 72.233 | F79: 71.793 | G79: 61.586 | H79: 7.046 | I79: 3.168 | J79: 0 | K79: 5
B80: BLOCK 4 PER THERM | D80: 0 | E80: 0 | F80: 66.844 | G80: 61.199 | H80: 6.52 | I80: 2.5 | J80: 0 | K80: 6
B81: BLOCK 5 PER THERM | D81: 0 | E81: 0 | F81: 59.721 | G81: 0 | H81: 4.912 | I81: 2.091 | J81: 0 | K81: 7
B83: ADJUST TO ACTUAL PER THERM | D83: =(D167-D155-D156)/D40*100 -> 85.77707015 | E83: =(E167-E155-E156)/E40*100 -> 71.92681026 | F83: =(F167-F155-F156)/F40*100 -> 68.03757879 | G83: =(G167-G155-G156)/G40*100 -> 62.94383723
B87: (1) Block 1 - Kaiser-Trentwood - workpaper PDE-G-19
B88: Block 2 - Lamb-Weston - workpaper PDE-G-21
B89: Block 3 - Mutual Materials - workpaper PDE-G-25
B90: Block 4 - Washington Potato - workpaper PDE-G-23
B91: Block 5 - Avista Electric generating facilities billed at 2.091 cents/therm (Sch. 148 floor)
B93: (2) Monthly minimum / rate per therm - workpaper PDE-G-27
B97: ="Note: Rates include Sch. 150 (Purch. Gas Cost Adj.)"&IF(Base1_Billing2=2," , Sch. 155 (Gas Rate Adj.), and Sch. 191 (Public Purp. Rider Adj.)","") -> Note: Rates include Sch. 150 (Purch. Gas Cost Adj.)
J100: TRANSPORT
J101: SCH 148 - WSU/
A102: WORK PAPER | D102: GEN SERVICE | E102: LRG GEN SVC | F102: EX LRG GEN SVC | G102: INTERRUPTIBLE | H102: TRANSPORT | I102: TRANSPORT | J102: BF GOODRICH
A103: REFERENCE | C103: TOTAL | D103: SCHEDULE 101 | E103: SCHEDULE 111 | F103: SCHEDULE 121 | G103: SCHEDULE 131 | H103: SCHEDULE 146 | I103: SCHEDULE 148 | J103: ANN. MINIMUM
B104: PRESENT REVENUE
B105: =UPPER(CHOOSE(Base1_Billing2,$O$9,$O$10))&" REVENUE" -> BASE TARIFF REVENUE
B106: BASIC CHARGE | C106: =SUM(D106:J106) -> 14943864 | D106: =D25*D56 -> 14417880 | E106: 0 | F106: 0 | G106: 0 | H106: =H25*H56 -> 200400 | I106: =I25*I56 -> 9600 | J106: 315984
B107: MONTHLY MINIMUM | C107: 5015657.64 | D107: =D26*D57 -> 0 | E107: =E26*E57 -> 4880793.96 | F107: =F26*F57 -> 134863.68 | G107: 0 | H107: 0 | I107: 0 | J107: 0
B108: BLOCK 1 | C108: 60125162.48 | D108: =ROUND(D8*D59/100,2) -> 58141243.05 | E108: =ROUND(E8*E59/100,2) -> 454047.76 | F108: 10733.86 | G108: 153429.6 | H108: 688748.59 | I108: =ROUND(I8*I59/100,2) -> 578250.01 | J108: =ROUND(J8*J59/100,2) -> 98709.61
B109: BLOCK 2 | C109: 49945730.33 | D109: 37448349.42 | E109: 11275251.5 | F109: 133787.88 | G109: 213930 | H109: 558122.91 | I109: 316288.62 | J109: 0
B110: BLOCK 3 | C110: 20888197.44 | D110: 0 | E110: 17781113.88 | F110: 1996010.33 | G110: 262053.92 | H110: 794211.07 | I110: 54808.24 | J110: 0
B111: BLOCK 4 | C111: 1600837.66 | D111: =ROUND(D11*D62/100,2) -> 0 | E111: 0 | F111: 1134387.91 | G111: 138441.67 | H111: 174981.88 | I111: 153026.2 | J111: 0
B112: BLOCK 5 | C112: 555350.4 | D112: =ROUND(D12*D63/100,2) -> 0 | E112: 0 | F112: 521989.01 | G112: 0 | H112: 17893.7 | I112: 15467.69 | J112: 0
B113: ANNUAL MINIMUM | C113: 0 | J113: =BFG!F11 -> 0
B115: SUBTOTAL | C115: =IF(ROUND(SUM(D115:J115),3)<>ROUND(SUM(C106:C113),3),#VALUE!,SUM(D115:J115)) -> 153074799.9 | D115: =SUM(D106:D113) -> 110007472.5 | E115: 34391207.1 | F115: 3931772.67 | G115: 767855.19 | H115: 2434358.15 | I115: 1127440.76 | J115: =SUM(J106:J113) -> 414693.61
B116: NET SHIFTING ADJUSTMENT
B118: SUBTOTAL | C118: =SUM(D118:J118) -> 153074799.9 | D118: =D115+D116 -> 110007472.5 | E118: 34391207.1 | F118: 3931772.67 | G118: 767855.19 | H118: =H115+H116 -> 2434358.15 | I118: 1127440.76 | J118: 414693.61
B119: ADJUST TO ACTUAL | C119: =SUM(D119:J119) -> 0 | D119: =ROUND(D18*D65/100,2) -> 0 | E119: =ROUND(E18*E65/100,2) -> 0 | F119: =ROUND(F18*F65/100,2) -> 0 | G119: =ROUND(G18*G65/100,2) -> 0 | H119: 0 | I119: 0 | J119: 0
B121: ="TOTAL "&UPPER(CHOOSE(Base1_Billing2,$O$9,$O$10))&" REVENUE" -> TOTAL BASE TARIFF REVENUE | C121: =IF(ROUND(C118+C119,3)<>ROUND(SUM(D121:J121),3),#VALUE!,SUM(D121:J121)) -> 153074799.9 | D121: =D118+D119 -> 110007472.5 | E121: 34391207.1 | F121: 3931772.67 | G121: 767855.19 | H121: =H118+H119 -> 2434358.15 | I121: 1127440.76 | J121: 414693.61
B124: ADJUSTMENT REVENUE
B125: UNBILLED REVENUE ADJUSTMENT
A126: PDE-G-15 | B126: UNBILLED LOAD THERMS | C126: =SUM(D126:J126) -> 0
A127: PDE-G-2/5/6 | B127: UNBILLED LOAD RATE | D127: =D65 -> 81.69268134 | E127: =E65 -> 63.79679055 | F127: =F65 -> 63.91502263
B128: UNBILLED LOAD REVENUE | C128: =SUM(D128:J128) -> 0 | D128: =ROUND(D126*D127/100,2) -> 0 | E128: =ROUND(E126*E127/100,2) -> 0 | F128: =ROUND(F126*F127/100,2) -> 0
A130: PDE-G-14 | B130: WEATHER-SENSITIVE THERMS | C130: =SUM(D130:J130) -> 0 | D130: 0 | E130: 0
A131: PDE-G-2/5 | B131: WEATHER-SENSITIVE RATE | D131: =D59 -> 78.022 | E131: =I230 -> 69.88882547
B132: WEATHER-SENSITIVE REVENUE | C132: =SUM(D132:J132) -> 0 | D132: =ROUND(D130*D131/100,2) -> 0 | E132: =ROUND(E130*E131/100,2) -> 0
B134: TOTAL UNBILLED THERM ADJ | C134: =IF(ROUND(SUM(D134:J134),3)<>ROUND(C126+C130,3),#VALUE!,SUM(D134:J134)) -> 0 | D134: =D126+D130 -> 0 | E134: =E126+E130 -> 0 | F134: =F126+F130 -> 0
B135: TOTAL UNBILLED REVENUE ADJ | C135: =IF(ROUND(SUM(D135:J135),3)<>ROUND(C128+C132,3),#VALUE!,SUM(D135:J135)) -> 0 | D135: =D128+D132 -> 0 | E135: =E128+E132 -> 0 | F135: =F128+F132 -> 0
B136: WEATHER NORMALIZATION ADJ
A137: PDE-G-17 | B137: WEATHER-SENSITIVE THERMS | C137: =SUM(D137:J137) -> 0
A138: PDE-G-2/5/6 | B138: WEATHER-SENSITIVE RATE | D138: =I208 -> 82.70179127 | E138: =I230 -> 69.88882547 | F138: =I258 -> 61.5085662
B139: WEATHER-SENSITIVE REVENUE | C139: =SUM(D139:J139) -> 0 | D139: =ROUND(D137*D138/100,2) -> 0 | E139: =ROUND(E137*E138/100,2) -> 0 | F139: =ROUND(F137*F138/100,2) -> 0
B140: OTHER ADJUSTMENTS
B142: TOTAL ADJUSTMENT REVENUE | C142: =IF(ROUND(SUM(D142:J142),3)<>ROUND(C135+C139+C140,3),#VALUE!,SUM(D142:J142)) -> 0 | D142: =D135+D139+D140 -> 0 | E142: =E135+E139+E140 -> 0 | F142: =F135+F139+F140 -> 0 | G142: 0 | H142: 0 | I142: 0 | J142: 0
B143: =B121 -> TOTAL BASE TARIFF REVENUE | C143: =SUM(D143:J143) -> 153074799.9 | D143: =D121 -> 110007472.5 | E143: 34391207.1 | F143: 3931772.67 | G143: 767855.19 | H143: =H121 -> 2434358.15 | I143: 1127440.76 | J143: 414693.61
B145: TOTAL PRESENT REVENUE | C145: =IF(ROUND(SUM(D145:J145),3)<>ROUND(C142+C143,3),#VALUE!,SUM(D145:J145)) -> 153074799.9 | D145: =D142+D143 -> 110007472.5 | E145: 34391207.1 | F145: =F142+F143 -> 3931772.67 | G145: 767855.19 | H145: =H142+H143 -> 2434358.15 | I145: 1127440.76 | J145: 414693.61
J149: TRANSPORT
J150: SCH 148 - WSU/
A151: WORK PAPER | D151: GEN SERVICE | E151: LRG GEN SVC | F151: EX LRG GEN SVC | G151: INTERRUPTIBLE | H151: TRANSPORT | I151: TRANSPORT | J151: BF GOODRICH
A152: REFERENCE | C152: TOTAL | D152: SCHEDULE 101 | E152: SCHEDULE 111 | F152: SCHEDULE 121 | G152: SCHEDULE 131 | H152: SCHEDULE 146 | I152: SCHEDULE 148 | J152: ANN. MINIMUM
B153: PROPOSED REVENUE
B154: =UPPER(CHOOSE(Base1_Billing2,$O$9,$O$10))&" REVENUE" -> BASE TARIFF REVENUE
B155: BASIC CHARGE | C155: =SUM(D155:J155) -> 16796199 | D155: =D48*D74 -> 16220115 | E155: =E48*E74 -> 0 | F155: 0 | G155: 0 | H155: 250500 | I155: 9600 | J155: 315984
B156: MONTHLY MINIMUM | C156: 2706037 | D156: =D49*D75 -> 0 | E156: 2635223.04 | F156: 70813.96 | G156: 0 | H156: 0 | I156: 0 | J156: 0
B157: BLOCK 1 | C157: 65490159.97 | D157: =ROUND(D31*D77/100,2) -> 61048230.68 | E157: =ROUND(E31*E77/100,2) -> 2790132.19 | F157: 84017 | G157: 162021.6 | H157: 728798.88 | I157: 578250.01 | J157: 98709.61
B158: BLOCK 2 | C158: 52422211.61 | D158: =ROUND(D32*D78/100,2) -> 39320554.43 | E158: 11828068.74 | F158: 140822.38 | G158: 225910.8 | H158: 590566.64 | I158: 316288.62 | J158: 0
B159: BLOCK 3 | C159: 21925763.45 | D159: 0 | E159: 18652906.73 | F159: 2100951.07 | G159: 276729.3 | H159: 840368.11 | I159: 54808.24 | J159: 0
B160: BLOCK 4 | C160: 1678399.95 | D160: 0 | E160: 0 | F160: 1194032.37 | G160: 146193.4 | H160: 185147.98 | I160: 153026.2 | J160: 0
B161: BLOCK 5 | C161: 556391.18 | D161: 0 | E161: 0 | F161: 521989.01 | G161: 0 | H161: 18934.48 | I161: 15467.69 | J161: 0
B162: ANNUAL MINIMUM | C162: 0 | J162: =BFG!F11 -> 0
B164: SUBTOTAL | C164: =IF(ROUND(SUM(D164:J164),3)<>ROUND(SUM(C155:C162),3),#VALUE!,SUM(D164:J164)) -> 161575162.2 | D164: =SUM(D155:D163) -> 116588900.1 | E164: 35906330.7 | F164: 4112625.79 | G164: 810855.1 | H164: 2614316.09 | I164: 1127440.76 | J164: 414693.61
B165: NET SHIFTING ADJUSTMENT
B167: SUBTOTAL | C167: =SUM(D167:J167) -> 161575162.2 | D167: =D164+D165 -> 116588900.1 | E167: 35906330.7 | F167: 4112625.79 | G167: 810855.1 | H167: =H164+H165 -> 2614316.09 | I167: 1127440.76 | J167: 414693.61
B168: ADJUST TO ACTUAL | C168: =SUM(D168:J168) -> 0 | D168: =ROUND(D41*D83/100,2) -> 0 | E168: =ROUND(E41*E83/100,2) -> 0 | F168: 0 | G168: 0 | H168: 0 | I168: 0 | J168: 0
B170: ="TOTAL "&UPPER(CHOOSE(Base1_Billing2,$O$9,$O$10))&" REVENUE" -> TOTAL BASE TARIFF REVENUE | C170: =IF(ROUND(SUM(D170:J170),3)<>ROUND(C167+C168,3),#VALUE!,SUM(D170:J170)) -> 161575162.2 | D170: =D167+D168 -> 116588900.1 | E170: 35906330.7 | F170: 4112625.79 | G170: 810855.1 | H170: =H167+H168 -> 2614316.09 | I170: 1127440.76 | J170: 414693.61
B172: ADJUSTMENT REVENUE
B173: UNBILLED REVENUE ADJUSTMENT
B174: BASE LOAD THERMS | C174: =SUM(D174:J174) -> 0 | D174: =D126 -> 0 | E174: =E126 -> 0 | F174: =F126 -> 0
A175: PDE-G-2/5/6 | B175: BASE LOAD RATE | D175: =D83 -> 85.77707015 | E175: =E83 -> 71.92681026 | F175: =F83 -> 68.03757879
B176: BASE LOAD REVENUE | C176: =SUM(D176:J176) -> 0 | D176: =ROUND(D174*D175/100,2) -> 0 | E176: =ROUND(E174*E175/100,2) -> 0 | F176: =ROUND(F174*F175/100,2) -> 0
B178: WEATHER-SENSITIVE THERMS | C178: =SUM(D178:J178) -> 0 | D178: =D130 -> 0 | E178: =E130 -> 0 | F178: =F130 -> 0
A179: PDE-G-2/5 | B179: WEATHER-SENSITIVE RATE | D179: =D77 -> 81.923 | E179: =I240 -> 73.3154162 | F179: =F83 -> 68.03757879
B180: WEATHER-SENSITIVE REVENUE | C180: =SUM(D180:J180) -> 0 | D180: =ROUND(D178*D179/100,2) -> 0 | E180: =ROUND(E178*E179/100,2) -> 0 | F180: =ROUND(F178*F179/100,2) -> 0
B182: TOTAL UNBILLED THERM ADJ | C182: =C174+C178 -> 0 | D182: =D174+D178 -> 0 | E182: =E174+E178 -> 0 | F182: =F174+F178 -> 0
B183: TOTAL UNBILLED REVENUE ADJ | C183: =C176+C180 -> 0 | D183: =D176+D180 -> 0 | E183: =E176+E180 -> 0 | F183: =F176+F180 -> 0
B184: WEATHER NORMALIZATION ADJ
B185: WEATHER-SENSITIVE THERMS | C185: =SUM(D185:J185) -> 0 | D185: =D137 -> 0 | E185: =E137 -> 0 | F185: =F137 -> 0
A186: PDE-G-2/5/6 | B186: WEATHER-SENSITIVE RATE | D186: =I217 -> 86.83659564 | E186: =I240 -> 73.3154162 | F186: =I270 -> 63.08591385
B187: WEATHER-SENSITIVE REVENUE | C187: =SUM(D187:J187) -> 0 | D187: =ROUND(D185*D186/100,2) -> 0 | E187: =ROUND(E185*E186/100,2) -> 0 | F187: =ROUND(F185*F186/100,2) -> 0
B188: OTHER ADJUSTMENTS
B190: TOTAL ADJUSTMENT REVENUE | C190: =SUM(D190:J190) -> 0 | D190: =D187+D183 -> 0 | E190: 0 | F190: 0 | G190: 0 | H190: =H187+H183 -> 0 | I190: 0 | J190: 0
B191: =B170 -> TOTAL BASE TARIFF REVENUE | C191: =SUM(D191:J191) -> 161575162.2 | D191: =D170 -> 116588900.1 | E191: 35906330.7 | F191: 4112625.79 | G191: 810855.1 | H191: =H170 -> 2614316.09 | I191: 1127440.76 | J191: 414693.61
B192: TOTAL PROPOSED REVENUE | C192: =SUM(D192:J192) -> 161575162.2 | D192: =D190+D191 -> 116588900.1 | E192: 35906330.7 | F192: 4112625.79 | G192: 810855.1 | H192: =H190+H191 -> 2614316.09 | I192: 1127440.76 | J192: 414693.61
B193: TOTAL PRESENT REVENUE | C193: =SUM(D193:J193) -> 153074799.9 | D193: =D145 -> 110007472.5 | E193: 34391207.1 | F193: 3931772.67 | G193: 767855.19 | H193: =H145 -> 2434358.15 | I193: 1127440.76 | J193: 414693.61
B195: TOTAL INCREASED REVENUE | C195: =SUM(D195:J195) -> 8500362.21 | D195: =D192-D193 -> 6581427.64 | E195: =E192-E193 -> 1515123.6 | F195: 180853.12 | G195: 42999.91 | H195: =H192-H193 -> 179957.94 | I195: 0 | J195: 0
B196: PERCENT REVENUE INCREASE | C196: =C195/C193 -> 0.05553077458 | D196: =D195/D193 -> 0.05982709622 | E196: 0.04405555163 | F196: =F195/F193 -> 0.04599785776 | G196: 0.05600002521 | H196: 0.07392418408 | I196: 0 | J196: 0
A200: WORK PAPER | D200: TOTAL | E200: TOTAL | F200: BASE LOAD | G200: BASE LOAD | H200: WTHR-SENS. | I200: WTHR-SENS.
A201: REFERENCE | C201: RATES | D201: THERMS | E201: REVENUE | F201: THERMS(1) | G201: REVENUE | H201: THERMS | I201: REVENUE
B202: PRESENT BASELOAD AND WEATHER-SENSITIVE RATE
B203: SCHEDULE 101
B204: 0-70 THERMS | C204: =D59 -> 78.022 | D204: =D8 -> 74519037 | E204: =C204*D204/100 -> 58141243.05 | F204: =MIN(D204,F207) -> 25231290 | G204: =F204*C204/100 -> 19685957.08 | H204: =D204-F204 -> 49287747 | I204: =H204*C204/100 -> 38455285.96 | K204: =H204/H207 -> 0.5370210457
B205: OVER 70 THERMS | C205: =D60 -> 88.13 | D205: =D9 -> 42492170 | E205: =C205*D205/100 -> 37448349.42 | F205: =MIN(F207-F204,D205) -> 0 | G205: =F205*C205/100 -> 0 | H205: =D205-F205 -> 42492170 | I205: =H205*C205/100 -> 37448349.42 | K205: =H205/H207 -> 0.4629789543
B207: TOTAL | D207: =D204+D205 -> 117011207 | E207: =E204+E205 -> 95589592.47 | F207: =14*D25 -> 25231290 | G207: =G204+G205 -> 19685957.08 | H207: =H204+H205 -> 91779917 | I207: =I204+I205 -> 75903635.39
B208: AVERAGE RATE | E208: =E207/D207*100 -> 81.69268134 | G208: =G207/F207*100 -> 78.022 | I208: =I207/H207*100 -> 82.70179127
B211: PROPOSED BASELOAD AND WEATHER-SENSITIVE RATE
B212: SCHEDULE 101
B213: 0-70 THERMS | C213: =D77 -> 81.923 | D213: =D8 -> 74519037 | E213: =C213*D213/100 -> 61048230.68 | F213: =MIN(D213,F216) -> 25231290 | G213: =F213*C213/100 -> 20670229.71 | H213: =D213-F213 -> 49287747 | I213: =H213*C213/100 -> 40378000.97
B214: OVER 70 THERMS | C214: =D78 -> 92.536 | D214: =D9 -> 42492170 | E214: =C214*D214/100 -> 39320554.43 | F214: =MIN(F216-F213,D214) -> 0 | G214: =F214*C214/100 -> 0 | H214: =D214-F214 -> 42492170 | I214: =H214*C214/100 -> 39320554.43
B216: TOTAL | D216: =D213+D214 -> 117011207 | E216: =E213+E214 -> 100368785.1 | F216: =F207 -> 25231290 | G216: =G213+G214 -> 20670229.71 | H216: =H213+H214 -> 91779917 | I216: =I212+I213+I214 -> 79698555.41
B217: AVERAGE RATE | E217: =E216/D216*100 -> 85.77707015 | G217: =G216/F216*100 -> 81.923 | I217: =I216/H216*100 -> 86.83659564
B220: (1) Base load per bill for Schedule 101 is shown on workpaper PDE-G-18 multiplied by total billings from PDE-G-1, or
B221: ="14 X "&TEXT(D25,"#,##0")&" = "&TEXT(F207,"#,##0") -> 14 X 1,802,235 = 25,231,290
B223: PRESENT BASELOAD AND WEATHER-SENSITIVE RATE
B224: SCHEDULE 111
B225: 0-200 THERMS | C225: =E59 -> 8.061 | D225: =E8 -> 5632648 | E225: =C225*D225/100 -> 454047.7553 | F225: =MIN(D225,F229) -> 5632648 | G225: =F225*C225/100 -> 454047.7553 | H225: =D225-F225 -> 0 | I225: =H225*C225/100 -> 0
B226: 201-1,000 THERMS | C226: =E60 -> 76.179 | D226: =E9 -> 14800997 | E226: =C226*D226/100 -> 11275251.5 | F226: =MIN(F229-F225,D226) -> 10565012 | G226: =F226*C226/100 -> 8048320.491 | H226: =D226-F226 -> 4235985 | I226: =H226*C226/100 -> 3226931.013
B227: OVER 1,000 THERMS | C227: =E61 -> 68.857 | D227: =E10 -> 25823248 | E227: =C227*D227/100 -> 17781113.88 | F227: =MIN(F229-F225-F226,D227) -> 0 | G227: =F227*C227/100 -> 0 | H227: =D227-F227 -> 25823248 | I227: =H227*C227/100 -> 17781113.88
B229: TOTAL | D229: =D225+D226+D227 -> 46256893 | E229: =E225+E226+E227 -> 29510413.14 | F229: =535*E26 -> 16197660 | G229: =G225+G226+G227 -> 8502368.247 | H229: =H225+H226+H227 -> 30059233 | I229: =I225+I226+I227 -> 21008044.89
B230: AVERAGE RATE | E230: =E229/D229*100 -> 63.79679054 | G230: =G229/F229*100 -> 52.49133669 | I230: =I229/H229*100 -> 69.88882547
B233: PROPOSED BASELOAD AND WEATHER-SENSITIVE RATE
B234: SCHEDULE 111
B235: 0-200 THERMS | C235: =E77 -> 49.535 | D235: =E31 -> 5632648 | E235: =C235*D235/100 -> 2790132.187 | F235: =MIN(D235,F239) -> 5632648 | G235: =F235*C235/100 -> 2790132.187 | H235: =D235-F235 -> 0 | I235: =H235*C235/100 -> 0
B236: 201-1,000 THERMS | C236: =E78 -> 79.914 | D236: =E32 -> 14800997 | E236: =C236*D236/100 -> 11828068.74 | F236: =MIN(F239-F235,D236) -> 10565012 | G236: =F236*C236/100 -> 8442923.69 | H236: =D236-F236 -> 4235985 | I236: =H236*C236/100 -> 3385145.053
B237: OVER 1,000 THERMS | C237: =E79 -> 72.233 | D237: =E33 -> 25823248 | E237: =C237*D237/100 -> 18652906.73 | F237: =MIN(F239-F235-F236,D237) -> 0 | G237: =F237*C237/100 -> 0 | H237: =D237-F237 -> 25823248 | I237: =H237*C237/100 -> 18652906.73
B239: TOTAL | D239: =D235+D236+D237 -> 46256893 | E239: =E235+E236+E237 -> 33271107.66 | F239: =F229 -> 16197660 | G239: =G235+G236+G237 -> 11233055.88 | H239: =H235+H236+H237 -> 30059233 | I239: =I234+I235+I236+I237 -> 22038051.78
B240: AVERAGE RATE | E240: =E239/D239*100 -> 71.92681025 | G240: =G239/F239*100 -> 69.34986829 | I240: =I239/H239*100 -> 73.3154162
B243: (1) Base load per bill for Schedule 111 is shown on workpaper PDE-G-18 multiplied by total billings from PDE-G-1, or
B244: ="535 X "&TEXT(E26,"#,##0")&" = "&TEXT(F229,"#,##0") -> 535 X 30,276 = 16,197,660
A246: WORK PAPER | D246: TOTAL | E246: TOTAL | F246: BASE LOAD | G246: BASE LOAD | H246: WTHR-SENS. | I246: WTHR-SENS.
A247: REFERENCE | C247: RATES | D247: THERMS | E247: REVENUE | F247: THERMS(1) | G247: REVENUE | H247: THERMS | I247: REVENUE
B249: PRESENT BASELOAD AND WEATHER-SENSITIVE RATE
B250: SCHEDULE 121
B251: 0-500 THERMS | C251: =F59 -> 6.062 | D251: =F31 -> 177068 | E251: =C251*D251/100 -> 10733.86216 | F251: =MIN(D251,F257) -> 177068 | G251: =F251*C251/100 -> 10733.86216 | H251: =D251-F251 -> 0 | I251: =H251*C251/100 -> 0
B252: 501-1,000 THERMS | C252: =F60 -> 75.695 | D252: =F32 -> 176746 | E252: =C252*D252/100 -> 133787.8847 | F252: =MIN(F257-F251,D252) -> 176746 | G252: =F252*C252/100 -> 133787.8847 | H252: =D252-F252 -> 0 | I252: =H252*C252/100 -> 0
B253: 1001-10,000 THERMS | C253: 68.207 | D253: 2926401 | E253: =C253*D253/100 -> 1996010.33 | F253: =MIN(F257-F251-F252,D253) -> 2926401 | G253: =F253*C253/100 -> 1996010.33 | H253: =D253-F253 -> 0 | I253: =H253*C253/100 -> 0
B254: 10,001-25,000 THERMS | C254: 63.505 | D254: 1786297 | E254: =C254*D254/100 -> 1134387.91 | F254: =MIN(F257-F251-F252-F253,D254) -> 1003694 | G254: =F254*C254/100 -> 637395.8747 | H254: =D254-F254 -> 782603 | I254: =H254*C254/100 -> 496992.0351
B255: OVER 25,000 THERMS | C255: 59.721 | D255: 874046 | E255: 521989.0117 | F255: =MIN(F257-F251-F252-F253-F254,D255) -> 0 | G255: 0 | H255: 874046 | I255: 521989.0117
B257: TOTAL | D257: =D251+D252+D253+D254+D255 -> 5940558 | E257: =E251+E252+E253+E254+E255 -> 3796908.998 | F257: =13021*F26 -> 4283909 | G257: =G251+G252+G253 -> 2140532.077 | H257: =H251+H252+H253+H254+H255 -> 1656649 | I257: =I251+I252+I253+I254+I255 -> 1018981.047
B258: AVERAGE RATE | E258: =E257/D257*100 -> 63.91502277 | G258: =G257/F257*100 -> 49.96679614 | I258: =I257/H257*100 -> 61.5085662
B261: PROPOSED BASELOAD AND WEATHER-SENSITIVE RATE
B262: SCHEDULE 121
B263: 0-500 THERMS | C263: =F77 -> 47.449 | D263: =F31 -> 177068 | E263: =C263*D263/100 -> 84016.99532 | F263: =MIN(D263,F269) -> 177068 | G263: =F263*C263/100 -> 84016.99532 | H263: =D263-F263 -> 0 | I263: =H263*C263/100 -> 0
B264: 501-1,000 THERMS | C264: =F78 -> 79.675 | D264: =F32 -> 176746 | E264: =C264*D264/100 -> 140822.3755 | F264: =MIN(F269-F263,D264) -> 176746 | G264: =F264*C264/100 -> 140822.3755 | H264: =D264-F264 -> 0 | I264: =H264*C264/100 -> 0
B265: 1001-10,000 THERMS | C265: 71.793 | D265: 2926401 | E265: 2100951.07 | F265: =MIN(F269-F263-F264,D265) -> 2926401 | G265: =F265*C265/100 -> 2100951.07 | H265: 0 | I265: 0
B266: 10,001-25,000 THERMS | C266: 66.844 | D266: 1786297 | E266: 1194032.367 | F266: =MIN(F269-F263-F264-F265,D266) -> 1003694 | G266: =F266*C266/100 -> 670909.2174 | H266: 782603 | I266: 523123.1493
B267: OVER 25,000 THERMS | C267: 59.721 | D267: 874046 | E267: 521989.0117 | F267: =MIN(F269-F263-F264-F265-F266,D267) -> 0 | G267: 0 | H267: 874046 | I267: 521989.0117
B269: TOTAL | D269: =D263+D264+D265+D266+D267 -> 5940558 | E269: =E263+E264+E265+E266+E267 -> 4041811.819 | F269: =F257 -> 4283909 | G269: =G263+G264+G265+G266+G267 -> 2996699.658 | H269: =H263+H264+H265+H266+H267 -> 1656649 | I269: =I262+I263+I264+I265+I266+I267 -> 1045112.161
B270: AVERAGE RATE | E270: =E269/D269*100 -> 68.03757861 | G270: =G269/F269*100 -> 69.95245833 | I270: =I269/H269*100 -> 63.08591385
B272: (1) Base load per bill for Schedule 121 is shown on workpaper PDE-G-18 multiplied by total billings from PDE-G-1, or
B273: ="13,021 X "&TEXT(F26,"#,##0")&" = "&TEXT(F257,"#,##0") -> 13,021 X 329 = 4,283,909
D276: =D195/D48 -> 3.651814353 | E276: =E195/E49 -> 50.0437178 | F276: =F195/F49 -> 549.7055319 | G276: =G195/G48 -> 1791.662917 | H276: =H195/H48 -> 359.197485
D277: =D46/D48 -> 64.92561015 | E277: =E46/E49 -> 1527.840303 | F277: =F46/F49 -> 18056.40729 | G277: =G46/G48 -> 53675.83333 | H277: =H46/H48 -> 61923.90818
D280: =D74-D56 -> 1
... 3 more rows

Sheet Rate Design
A1: PRESENT RATES | D1: 1 | E1: 2 | F1: 3 | G1: 4 | H1: 5 | L1: Tiers - used for bill comparisons
C2: TOTAL | D2: SCH. 101 | E2: SCH. 111,112 | F2: SCH. 121,122 | G2: SCH. 132 | H2: SCH. 146 | J2: Range Name | L2: SCH. 101 | M2: SCH. 111,112 | N2: SCH. 121,122 | O2: SCH. 131,132 | P2: SCH. 146
B3: Base Tariff Rates
A4: 1 | B4: BASIC CHARGE | D4: 8 | H4: 400
A5: 2 | B5: MONTHLY MINIMUM | E5: 161.21 | F5: 409.92
A6: 3 | B6: BLOCK 1 PER THERM | D6: =27.398+0.821+49.803 -> 78.022 | E6: =-41.539+0.065+49.535 -> 8.061 | F6: =-41.437+0.05+47.449 -> 6.062 | G6: =18.464+0.51+44.955 -> 63.929 | H6: =8.151+0.082+0.056 -> 8.289 | L6: 9999999 | M6: 200 | N6: 500 | O6: 10000 | P6: 20000
A7: 4 | B7: BLOCK 2 PER THERM | D7: =37.398+0.929+49.803 -> 88.13 | E7: =25.957+0.687+49.535 -> 76.179 | F7: =27.558+0.688+47.449 -> 75.695 | G7: =13.996+0.474+44.955 -> 59.425 | H7: =7.251+0.073+0.056 -> 7.38 | I7: =H7/H6-1 -> -0.1096634093 | L7: 9999999 | M7: 1000 | N7: 1000 | O7: 25000 | P7: 50000
A8: 5 | B8: BLOCK 3 PER THERM | E8: =18.701+0.621+49.535 -> 68.857 | F8: =20.138+0.62+47.449 -> 68.207 | G8: =12.9+0.465+44.955 -> 58.32 | H8: =6.537+0.066+0.056 -> 6.659 | I8: =H8/H7-1 -> -0.09769647696 | J8: Rates_Base_Present | L8: 9999999 | M8: 9999999 | N8: 10000 | O8: 50000 | P8: 300000
A9: 6 | B9: BLOCK 4 PER THERM | F9: =15.479+0.577+47.449 -> 63.505 | G9: =12.537+0.462+44.955 -> 57.954 | H9: =6.045+0.061+0.056 -> 6.162 | I9: -0.07463583121 | L9: 9999999 | M9: 9999999 | N9: 25000 | O9: 9999999 | P9: 500000
A10: 7 | B10: BLOCK 5 PER THERM | F10: =11.73+0.542+47.449 -> 59.721 | H10: =4.54+0.046+0.056 -> 4.642 | I10: -0.2466731581 | L10: 9999999 | M10: 9999999 | N10: 9999999 | O10: 9999999 | P10: 9999999
L11: 1st block rate | M11: =(M6/100*E6+E5)/M6*100 -> 88.666 | N11: =(N6/100*F6+F5)/N6*100 -> 88.046
B12: Billing Rates | D12: =IF(D13<>'Pres & Prop Rev'!D$5,#VALUE!,"") ->  | E12: =IF(E13<>'Pres & Prop Rev'!E$5,#VALUE!,"") ->  | F12: =IF(F13<>'Pres & Prop Rev'!F$5,#VALUE!,"") ->  | G12: =IF(G13<>'Pres & Prop Rev'!G$5,#VALUE!,"") ->  | H12: =IF(H13<>'Pres & Prop Rev'!H$5,#VALUE!,"") ->  | L12: check | M12: =M6*M11/100-(M6*E6/100+E5) -> 0 | N12: =N6*N11/100-(N6*F6/100+F5) -> 0
D13: SCHEDULE 101 | E13: SCH. 111&112 | F13: SCH. 121&122 | G13: SCH. 131&132 | H13: SCHEDULE 146
A14: 1 | B14: BASIC CHARGE | D14: =D4 -> 8 | E14: 0 | F14: 0 | G14: 0 | H14: 400
A15: 2 | B15: MONTHLY MINIMUM | D15: 0 | E15: =E5 -> 161.21 | F15: =F5 -> 409.92 | G15: 0 | H15: 0
A16: 3 | B16: BLOCK 1 PER THERM | D16: =D6+0.348+3.455 -> 81.825 | E16: =E6+0.623+2.784 -> 11.468 | F16: =F6+1.697+2.506 -> 10.265 | G16: =G6+0.041+2.318 -> 66.288 | H16: =H6+0.004 -> 8.293 | L16: =L6 -> 9999999 | M16: 200 | N16: 500 | O16: 10000 | P16: 20000
A17: 4 | B17: BLOCK 2 PER THERM | D17: =D7+0.348+3.455 -> 91.933 | E17: =E7+0.623+2.784 -> 79.586 | F17: =F7+1.697+2.506 -> 79.898 | G17: =G7+0.041+2.318 -> 61.784 | H17: =H7+0.004 -> 7.384 | L17: 9999999 | M17: 1000 | N17: 1000 | O17: 25000 | P17: 50000
A18: 5 | B18: BLOCK 3 PER THERM | D18: =D8 -> 0 | E18: =E8+0.623+2.784 -> 72.264 | F18: =F8+1.697+2.506 -> 72.41 | G18: =G8+0.041+2.318 -> 60.679 | H18: =H8+0.004 -> 6.663 | J18: Rates_Billing_Present | L18: 9999999 | M18: 9999999 | N18: 10000 | O18: 50000 | P18: 300000
A19: 6 | B19: BLOCK 4 PER THERM | D19: =D9 -> 0 | E19: =E9 -> 0 | F19: =F9+1.697+2.506 -> 67.708 | G19: =G9+0.041+2.318 -> 60.313 | H19: =H9+0.004 -> 6.166 | L19: =L9 -> 9999999 | M19: 9999999 | N19: 25000 | O19: 9999999 | P19: 500000
A20: 7 | B20: BLOCK 5 PER THERM | D20: =D10 -> 0 | E20: =E10 -> 0 | F20: =F10+1.697+2.506 -> 63.924 | H20: =H10+0.004 -> 4.646 | L20: 9999999 | M20: 9999999 | N20: 9999999 | O20: 9999999 | P20: 9999999
L21: 1st block rate | M21: =(M16/100*E16+E15)/M16*100 -> 92.073 | N21: =(N16/100*F16+F15)/N16*100 -> 92.249
A22: PROPOSED RATES | L22: check | M22: =M16*M21/100-(M16*E16/100+E15) -> 0 | N22: =N16*N21/100-(N16*F16/100+F15) -> 0
B24: Base Tariff Rates | D24: =IF(D25<>'Pres & Prop Rev'!D$5,#VALUE!,"") ->  | E24: =IF(E25<>'Pres & Prop Rev'!E$5,#VALUE!,"") ->  | F24: =IF(F25<>'Pres & Prop Rev'!F$5,#VALUE!,"") ->  | G24: =IF(G25<>'Pres & Prop Rev'!G$5,#VALUE!,"") ->  | H24: =IF(H25<>'Pres & Prop Rev'!H$5,#VALUE!,"") -> 
D25: SCHEDULE 101 | E25: SCH. 111&112 | F25: SCH. 121&122 | G25: SCH. 131&132 | H25: SCHEDULE 146
A26: 1 | B26: BASIC CHARGE | D26: =IF(D4>0,ROUND(D63,2),0) -> 9 | E26: =IF(E4>0,ROUND(E63,2),0) -> 0 | F26: =IF(F4>0,ROUND(F63,2),0) -> 0 | G26: =IF(G4>0,ROUND(G63,2),0) -> 0 | H26: =IF(H4>0,ROUND(H63,2),0) -> 500
A27: 2 | B27: MONTHLY MINIMUM | D27: =IF(D5>0,ROUND(D63,2),0) -> 0 | E27: =IF(E5>0,ROUND(E63,2),0) -> 87.04 | F27: =IF(F5>0,ROUND(F63,2),0) -> 215.24 | G27: =IF(G5>0,ROUND(G63,2),0) -> 0 | H27: =IF(H5>0,ROUND(H63,2),0) -> 0
A28: 2 | B28: BLOCK 1 PER THERM | D28: =ROUND(D82,3) -> 81.923 | E28: =ROUND(E82,3) -> 49.535 | F28: 47.449 | G28: 67.509 | H28: 8.771 | L28: 9999999 | M28: 200 | N28: 500 | O28: 10000 | P28: 20000
A29: 3 | B29: BLOCK 2 PER THERM | D29: =ROUND(D83,3) -> 92.536 | E29: 79.914 | F29: 79.675 | G29: 62.753 | H29: 7.809 | I29: =H29/H28-1 -> -0.109679626 | L29: 9999999 | M29: 1000 | N29: 1000 | O29: 25000 | P29: 50000
A30: 4 | B30: BLOCK 3 PER THERM | D30: 0 | E30: 72.233 | F30: 71.793 | G30: 61.586 | H30: 7.046 | I30: =H30/H29-1 -> -0.09770777308 | J30: Rates_Base_Proposed | L30: 9999999 | M30: 9999999 | N30: 10000 | O30: 50000 | P30: 300000
A31: 5 | B31: BLOCK 4 PER THERM | D31: =ROUND(D85,3) -> 0 | E31: 0 | F31: 66.844 | G31: 61.199 | H31: 6.52 | I31: -0.07465228498 | L31: 9999999 | M31: 9999999 | N31: 25000 | O31: 9999999 | P31: 500000
A32: 6 | B32: BLOCK 5 PER THERM | D32: 0 | E32: 0 | F32: 59.721 | G32: 0 | H32: 4.912 | I32: =H32/H31-1 -> -0.2466257669 | L32: 9999999 | M32: 9999999 | N32: 9999999 | O32: 9999999 | P32: 9999999
L33: 1st block rate | M33: =(M28/100*E28+E27)/M28*100 -> 93.055 | N33: =(N28/100*F28+F27)/N28*100 -> 90.497
B34: Billing Rates | D34: =D28/D6-1 -> 0.04999871831 | E34: =IF(E35<>'Pres & Prop Rev'!E$5,#VALUE!,"") ->  | F34: =IF(F35<>'Pres & Prop Rev'!F$5,#VALUE!,"") ->  | G34: =IF(G35<>'Pres & Prop Rev'!G$5,#VALUE!,"") ->  | H34: =IF(H35<>'Pres & Prop Rev'!H$5,#VALUE!,"") ->  | L34: check | M34: =M28*M33/100-(M28*E28/100+E27) -> 0 | N34: =N28*N33/100-(N28*F28/100+F27) -> 0
D35: SCHEDULE 101 | E35: SCH. 111&112 | F35: SCH. 121&122 | G35: SCH. 131&132 | H35: SCHEDULE 146 | L35: Basic Charge Calc | M35: =E5+(D26-D4)+(((D28/100)-(D6/100))*200) -> 170.012 | N35: =+(D26)+(500*((D28/100)-(F28/100))) -> 181.37 | S35: 100
A36: 1 | B36: BASIC CHARGE | D36: =D26 -> 9 | E36: 0 | F36: 0 | G36: 0 | H36: 500 | S36: LIRAP increase
A37: 2 | B37: MONTHLY MINIMUM | D37: 0 | E37: 87.04 | F37: =F27 -> 215.24 | G37: 0 | H37: 0 | S37: 101 | T37: 111 | U37: 121 | V37: 131
A38: 2 | B38: BLOCK 1 PER THERM | D38: =D28+0.348+3.455+0.133 -> 85.859 | E38: =E28+0.623+2.784+0.111 -> 53.053 | F38: =F28+1.697+2.506+0.102 -> 51.754 | G38: =G28+0.041+2.318+0.098 -> 69.966 | H38: =H28+0.004 -> 8.775 | L38: =L28 -> 9999999 | M38: 200 | N38: 500 | O38: 10000 | P38: 20000 | S38: 0 | T38: 0 | U38: 0 | V38: 0
A39: 3 | B39: BLOCK 2 PER THERM | D39: =D29+0.348+3.455+0.133 -> 96.472 | E39: =E29+0.623+2.784+0.111 -> 83.432 | F39: =F29+1.697+2.506+0.102 -> 83.98 | G39: =G29+0.041+2.318+0.098 -> 65.21 | H39: =H29+0.004 -> 7.813 | L39: 9999999 | M39: 1000 | N39: 1000 | O39: 25000 | P39: 50000 | S39: =S$38 -> 0 | T39: =T$38 -> 0 | U39: =U$38 -> 0 | V39: =V$38 -> 0
A40: 4 | B40: BLOCK 3 PER THERM | D40: =D30 -> 0 | E40: 75.751 | F40: 76.098 | G40: 64.043 | H40: =H30+0.004 -> 7.05 | J40: Rates_Billing_Proposed | L40: 9999999 | M40: 9999999 | N40: 10000 | O40: 50000 | P40: 300000 | S40: =S$38 -> 0 | T40: 0 | U40: 0 | V40: 0
A41: 5 | B41: BLOCK 4 PER THERM | D41: =D31 -> 0 | E41: =E31 -> 0 | F41: 71.149 | G41: 63.656 | H41: =H31+0.004 -> 6.524 | L41: 9999999 | M41: 9999999 | N41: 25000 | O41: 9999999 | P41: 500000 | S41: 0 | T41: 0 | U41: 0 | V41: 0
A42: 6 | B42: BLOCK 5 PER THERM | D42: =D32 -> 0 | E42: =E32 -> 0 | F42: 64.026 | H42: =H32+0.004 -> 4.916 | L42: 9999999 | M42: 9999999 | N42: 9999999 | O42: 9999999 | P42: 9999999 | S42: 0 | T42: 0 | U42: 0 | V42: 0
L43: 1st block rate | M43: =(M38/100*E38+E37)/M38*100 -> 96.573 | N43: =(N38/100*F38+F37)/N38*100 -> 94.802
L44: check | M44: =M38*M43/100-(M38*E38/100+E37) -> 0 | N44: =N38*N43/100-(N38*F38/100+F37) -> 0
B47: Proposed Rate Workup - from Pres & Prop Rev tab
B49: THERMS
B50: BLOCK 1 | C50: =SUM(D50:H50) -> 88877941 | D50: ='Pres & Prop Rev'!D31 -> 74519037 | E50: ='Pres & Prop Rev'!E31 -> 5632648 | F50: ='Pres & Prop Rev'!F31 -> 177068 | G50: ='Pres & Prop Rev'!G31 -> 240000 | H50: ='Pres & Prop Rev'!H31 -> 8309188
B51: BLOCK 2 | C51: 65392554 | D51: ='Pres & Prop Rev'!D32 -> 42492170 | E51: ='Pres & Prop Rev'!E32 -> 14800997 | F51: ='Pres & Prop Rev'!F32 -> 176746 | G51: ='Pres & Prop Rev'!G32 -> 360000 | H51: ='Pres & Prop Rev'!H32 -> 7562641
B52: BLOCK 3 | C52: 41125869 | D52: ='Pres & Prop Rev'!D33 -> 0 | E52: ='Pres & Prop Rev'!E33 -> 25823248 | F52: ='Pres & Prop Rev'!F33 -> 2926401 | G52: ='Pres & Prop Rev'!G33 -> 449338 | H52: ='Pres & Prop Rev'!H33 -> 11926882
B53: BLOCK 4 | C53: 4864872 | D53: ='Pres & Prop Rev'!D34 -> 0 | E53: ='Pres & Prop Rev'!E34 -> 0 | F53: ='Pres & Prop Rev'!F34 -> 1786297 | G53: ='Pres & Prop Rev'!G34 -> 238882 | H53: ='Pres & Prop Rev'!H34 -> 2839693
B54: BLOCK 5 | C54: 1259520 | D54: ='Pres & Prop Rev'!D35 -> 0 | E54: ='Pres & Prop Rev'!E35 -> 0 | F54: ='Pres & Prop Rev'!F35 -> 874046 | G54: ='Pres & Prop Rev'!G35 -> 0 | H54: ='Pres & Prop Rev'!H35 -> 385474
B55: ADJ. TO ACTUAL | C55: 0 | D55: ='Pres & Prop Rev'!D41 -> 0 | E55: ='Pres & Prop Rev'!E41 -> 0 | F55: ='Pres & Prop Rev'!F41 -> 0 | G55: ='Pres & Prop Rev'!G41 -> 0 | H55: ='Pres & Prop Rev'!H41 -> 0
B56: WEATHER & U/B THERMS | C56: 0 | D56: ='Pres & Prop Rev'!D44 -> 0 | E56: ='Pres & Prop Rev'!E44 -> 0 | F56: ='Pres & Prop Rev'!F44 -> 0 | G56: ='Pres & Prop Rev'!G44 -> 0 | H56: ='Pres & Prop Rev'!H44 -> 0 | I56: Proposed rates:
B57: TOTAL PROFORMA THERMS | C57: =IF(ROUND(SUM(D57:H57),3)<>ROUND(SUM(C50:C56),3),#VALUE!,SUM(D57:H57)) -> 201520756 | D57: =SUM(D50:D56) -> 117011207 | E57: =SUM(E50:E56) -> 46256893 | F57: =SUM(F50:F56) -> 5940558 | G57: =SUM(G50:G56) -> 1288220 | H57: =SUM(H50:H56) -> 31023878 | I57: same as current
B58: TOTAL BILLS | D58: =SUM('Pres & Prop Rev'!D48:D49) -> 1802235 | E58: =SUM('Pres & Prop Rev'!E48:E49) -> 30276 | F58: =SUM('Pres & Prop Rev'!F48:F49) -> 329 | G58: =SUM('Pres & Prop Rev'!G48:G49) -> 24 | H58: =SUM('Pres & Prop Rev'!H48:H49) -> 501 | I58: diff than current
I59: Formulas to copy
B60: Proposed Revenue | C60: =SUM(D60:H60) -> 160032665.6 | D60: =ROR!D46 -> 116588472.5 | E60: =ROR!E46 -> 35906345.67 | F60: =ROR!F46 -> 4112634.213 | G60: =ROR!G46 -> 810855.0806 | H60: =ROR!H46 -> 2614358.15 | I60: FLOOR | J60: CEILING | K60: OTHER
B61: Targeted Rate Increase | C61: =ROR!C47 -> 0.05609351599 | D61: =ROR!D47 -> 0.05982320884 | E61: =ROR!E47 -> 0.04405598681 | F61: =ROR!F47 -> 0.046 | G61: =ROR!G47 -> 0.056 | H61: =ROR!H47 -> 0.07394146174
B62: Present Basic/Min Charge | D62: =D4+D5 -> 8 | E62: =E4+E5 -> 161.21 | F62: =F4+F5 -> 409.92 | G62: =G4+G5 -> 0 | H62: =H4+H5 -> 400
B63: BASIC/MIN CHARGE | D63: 9 | E63: =(0.28219*70)+(0.38327*130)+D62+(70*'Exh3'!I15)+(130*'Exh3'!I16)+'Exh3'!I13 -> 87.0369 | F63: =(0.28219*70)+(0.38327*430)+(70*'Exh3'!I15)+(430*'Exh3'!I16)+'Exh3'!K13 -> 215.2359 | G63: 0 | H63: 500 | I63: =FLOOR(I62*(1+I$61),$I64) -> 0 | J63: =CEILING(J62*(1+J$61),$J64) -> 0 | K63: 1.05
B64: % D in Basic Charge | D64: =IF(D62,D63/D62-1,0) -> 0.125 | E64: =IF(E62,E63/E62-1,0) -> -0.460102351 | F64: =IF(F62,F63/F62-1,0) -> -0.4749319379 | G64: =IF(G62,G63/G62-1,0) -> 0 | H64: =IF(H62,H63/H62-1,0) -> 0.25 | I64: 0.05 | J64: 0.05
B65: Basic Charge Revenue | C65: =SUM(D65:H65) -> 19176556.8 | D65: =D58*D63 -> 16220115 | E65: =E58*E63 -> 2635129.184 | F65: =F58*F63 -> 70812.6111 | G65: =G58*G63 -> 0 | H65: =H58*H63 -> 250500
D66: 0
B67: Present Block 1 Rate | D67: =D6 -> 78.022 | E67: 8.061 | F67: 6.062 | G67: 63.929 | H67: 8.289 | J67: =+E62+(D63-D62)+30*(D82/100)+130*(D83/100) -> 307.0833485
B68: Present Block 2 Rate | D68: 88.13 | E68: 76.179 | F68: 75.695 | G68: 59.425 | H68: 7.38
B69: Present Block 3 Rate | D69: 0 | E69: 68.857 | F69: 68.207 | G69: 58.32 | H69: 6.659
B70: Present Block 4 Rate | D70: =D9 -> 0 | E70: 0 | F70: =F9 -> 63.505 | G70: 57.954 | H70: 6.162
B71: Present Block 5 Rate | D71: 0 | E71: 0 | F71: 59.721 | G71: 0 | H71: 4.642
B73: 1) Flat Rate Increase | D73: 1 | E73: 1 | F73: 1 | G73: 1 | H73: 0.2786616865
B74: 2) % Rate Increase | D74: 0.04999252405 | E74: 0.04903293639 | F74: 0.05257955998 | G74: 0.05599999191 | H74: 0.05814790771 | K74: =K$61 -> 0
B75: Method ---> | D75: 2 | E75: 2 | F75: 2 | G75: 2 | H75: 2
F76: 0
A77: Calculated | B77: BLOCK 1 PER THERM | D77: =CHOOSE(D$75,D67+D$73,D67*(1+D$74)) -> 81.92251671 | E77: 49.535 | F77: 47.449 | G77: =CHOOSE(G$75,G67+G$73,G67*(1+G$74)) -> 67.50902348 | H77: 8.770988007
B78: BLOCK 2 PER THERM | D78: =CHOOSE(D$75,D68+D$73,D68*(1+D$74)) -> 92.53584114 | E78: =CHOOSE(E$75,E68+E$73,E68*(1+E$74)) -> 79.91428006 | F78: =CHOOSE(F$75,F68+F$73,F68*(1+F$74+F76)) -> 79.67500979 | G78: 62.75279952 | H78: 7.809131559
B79: BLOCK 3 PER THERM | D79: 0 | E79: 72.2332609 | F79: =CHOOSE(F$75,F69+F$73,F69*(1+F$74+F76)) -> 71.79329405 | G79: 61.58591953 | H79: 7.046206917
B80: BLOCK 4 PER THERM | D80: 0 | E80: 0 | F80: =CHOOSE(F$75,F70+F$73,F70*(1+F$74+F76)) -> 66.84406496 | G80: 61.19942353 | H80: 6.520307407
B81: BLOCK 5 PER THERM | D81: 0 | E81: 0 | F81: =F71 -> 59.721 | G81: 0 | H81: =CHOOSE(H$75,H71+H$73,H71*(1+H$74)) -> 4.911922588
A82: Input | B82: BLOCK 1 PER THERM | D82: =D77 -> 81.92251671 | E82: =E77 -> 49.535 | F82: =F77 -> 47.449 | G82: =G77 -> 67.50902348 | H82: =H77 -> 8.770988007 | J82: =F82-F67 -> 41.387 | K82: =H82-H67 -> 0.481988007 | L82: =D63+((D77/100)*200) -> 172.8450334 | M82: =E63+((E82/100)*200) -> 186.1069 | P82: =F63+((F82/100)*500) -> 452.4809
B83: BLOCK 2 PER THERM | D83: =D78 -> 92.53584114 | E83: =E78 -> 79.91428006 | F83: =F78 -> 79.67500979 | G83: =G78 -> 62.75279952 | H83: =H78 -> 7.809131559 | J83: =F83-F68 -> 3.980009793 | K83: =H83-H68 -> 0.4291315589
B84: BLOCK 3 PER THERM | E84: =E79 -> 72.2332609 | F84: =F79 -> 71.79329405 | G84: 61.58591953 | H84: 7.046206917 | J84: =F84-F69 -> 3.586294047 | K84: =H84-H69 -> 0.3872069175
B85: BLOCK 4 PER THERM | E85: =E80 -> 0 | F85: =F80 -> 66.84406496 | G85: =G80 -> 61.19942353 | H85: =H80 -> 6.520307407 | J85: =F85-F70 -> 3.339064956 | K85: 0.3583074073
B86: BLOCK 5 PER THERM | E86: 0 | F86: =F81 -> 59.721 | G86: 0 | H86: =H81 -> 4.911922588 | J86: 0 | K86: 0.2699225876
B87: Blocks 1-5 Revenue | C87: =SUM(D87:H87) -> 140856108.8 | D87: =SUMPRODUCT(D50:D54,D82:D86)/100 -> 100368357.5 | E87: =SUMPRODUCT(E50:E54,E82:E86)/100 -> 33271216.48 | F87: =SUMPRODUCT(F50:F54,F82:F86)/100 -> 4041821.602 | G87: =SUMPRODUCT(G50:G54,G82:G86)/100 -> 810855.0806 | H87: =SUMPRODUCT(H50:H54,H82:H86)/100 -> 2363858.15 | L87: 101 | M87: 111/112 | N87: 101 | O87: 111 | P87: 121
B88: Adj. to Actual Revenue | C88: =SUM(D88:H88) -> 0 | D88: ='Pres & Prop Rev'!D168 -> 0 | E88: ='Pres & Prop Rev'!E168 -> 0 | F88: ='Pres & Prop Rev'!F168 -> 0 | G88: ='Pres & Prop Rev'!G168 -> 0 | H88: ='Pres & Prop Rev'!H168 -> 0 | K88: Breakeven Proof Calc | M88: 200 | N88: 500
B89: Weather & U/B Revenue | C89: =SUM(D89:H89) -> 0 | D89: ='Pres & Prop Rev'!D190 -> 0 | E89: ='Pres & Prop Rev'!E190 -> 0 | F89: ='Pres & Prop Rev'!F190 -> 0 | G89: ='Pres & Prop Rev'!G190 -> 0 | H89: ='Pres & Prop Rev'!H190 -> 0 | K89: Basic Charge/Minimum | L89: =D63 -> 9 | M89: =E63 -> 87.0369 | N89: =D63 -> 9 | O89: =E63 -> 87.0369 | P89: =F63 -> 215.2359
K90: Therm Rate | L90: =D82/100 -> 0.8192251671 | M90: ='Exh3'!E19 -> 0.49535 | N90: =D82/100 -> 0.8192251671 | O90: =(E82/100) -> 0.49535 | P90: =F82/100 -> 0.47449
B91: Revenue Remaining | C91: =IF(ROUND(C60-C65-SUM(C87:C89),3)<>ROUND(SUM(D91:H91),3),#VALUE!,SUM(D91:H91)) -> 0 | D91: =D60-D65-SUM(D87:D89) -> 0 | E91: =E60-E65-SUM(E87:E89) -> 0 | F91: =F60-F65-SUM(F87:F89) -> 0 | G91: =G60-G65-SUM(G87:G89) -> 0 | H91: =H60-H65-SUM(H87:H89) -> 0 | K91: Therm Rate | L91: =D83/100 -> 0.9253584114 | N91: =L91 -> 0.9253584114 | O91: =E83/100 -> 0.7991428006
B92: Revenue Remaining - ¢/Th | C92: =C91/C57*100 -> 0 | D92: 0 | E92: 0 | F92: 0 | G92: 0 | H92: 0 | K92: Bill Calculation | L92: =(70*L90)+(130*L91)+L89 -> 186.6423552 | M92: =(M88*M90)+M89 -> 186.1069 | N92: =((70*N90)+(430*N91))+N89 -> 464.2498786 | O92: =O89+(200*O90)+((N88-200)*O91) -> 425.8497402 | P92: =P89+(N88*P90) -> 452.4809
B93: check - < $4k is rounding | C93: =SUM(D93:H93) -> -362.21 | D93: =D60-'Pres & Prop Rev'!D192-D91 -> -427.64 | E93: =E60-'Pres & Prop Rev'!E192-E91 -> 14.96653999 | F93: =F60-'Pres & Prop Rev'!F192-F91 -> 8.42282 | G93: =G60-'Pres & Prop Rev'!G192-G91 -> -0.01935999992 | H93: =H60-'Pres & Prop Rev'!H192-H91 -> 42.06
K94: Gas Costs | L94: 0.49803 | M94: 0.49535 | N94: 0.49803 | O94: 0.49535 | P94: 0.47449
B95: Proposed Target | C95: =SUM(D95:H95) -> 160032665.6 | D95: =D60 -> 116588472.5 | E95: =E60 -> 35906345.67 | F95: =F60 -> 4112634.213 | G95: =G60 -> 810855.0806 | H95: =H60 -> 2614358.15 | K95: Gas Cost Revenue | L95: =L94*200 -> 99.606 | M95: =M94*200 -> 99.07 | N95: =$N$88*N94 -> 249.015 | O95: =$N$88*O94 -> 247.675 | P95: 237.245
B96: Proposed Actual | C96: ='Pres & Prop Rev'!C192-SUM('Pres & Prop Rev'!I192:J192) -> 160033027.8 | D96: ='Pres & Prop Rev'!D192 -> 116588900.1 | E96: ='Pres & Prop Rev'!E192 -> 35906330.7 | F96: ='Pres & Prop Rev'!F192 -> 4112625.79 | G96: ='Pres & Prop Rev'!G192 -> 810855.1 | H96: ='Pres & Prop Rev'!H192 -> 2614316.09 | K96: Gas Cost Difference | M96: =L95-M95 -> 0.536 | P96: =N95-P95 -> 11.77
C97: =SUM(D97:H97) -> 362.21 | D97: =D96-D95 -> 427.64 | E97: =E96-E95 -> -14.96653999 | F97: =F96-F95 -> -8.42282 | G97: =G96-G95 -> 0.01935999992 | H97: =H96-H95 -> -42.06
B98: Rate D Check | M98: =L92-M92-M96 -> -0.0005448133775 | P98: =N92-P92-P96 -> -0.001021378645
B99: Basic/Min Charge | C99: =SUM('Pres & Prop Rev'!C155:C156)/SUM('Pres & Prop Rev'!C106:C107)-1 -> -0.02291065128 | D99: =SUM('Pres & Prop Rev'!D155:D156)/SUM('Pres & Prop Rev'!D106:D107)-1 -> 0.125 | E99: =SUM('Pres & Prop Rev'!E155:E156)/SUM('Pres & Prop Rev'!E106:E107)-1 -> -0.4600831214 | F99: =SUM('Pres & Prop Rev'!F155:F156)/SUM('Pres & Prop Rev'!F106:F107)-1 -> -0.474921936 | G99: =SUM('Pres & Prop Rev'!G155:G156)/SUM('Pres & Prop Rev'!G106:G107)-1 ->  | H99: =SUM('Pres & Prop Rev'!H155:H156)/SUM('Pres & Prop Rev'!H106:H107)-1 -> 0.25
B100: Adj. to Actual Revenue | C100: ='Pres & Prop Rev'!C168/'Pres & Prop Rev'!C119-1 ->  | D100: ='Pres & Prop Rev'!D168/'Pres & Prop Rev'!D119-1 ->  | E100: ='Pres & Prop Rev'!E168/'Pres & Prop Rev'!E119-1 ->  | F100: ='Pres & Prop Rev'!F168/'Pres & Prop Rev'!F119-1 ->  | G100: ='Pres & Prop Rev'!G168/'Pres & Prop Rev'!G119-1 ->  | H100: ='Pres & Prop Rev'!H168/'Pres & Prop Rev'!H119-1 -> 
B101: Weather & U/B Revenue | C101: ='Pres & Prop Rev'!C190/'Pres & Prop Rev'!C142-1 ->  | D101: ='Pres & Prop Rev'!D190/'Pres & Prop Rev'!D142-1 ->  | E101: ='Pres & Prop Rev'!E190/'Pres & Prop Rev'!E142-1 ->  | F101: ='Pres & Prop Rev'!F190/'Pres & Prop Rev'!F142-1 ->  | G101: ='Pres & Prop Rev'!G190/'Pres & Prop Rev'!G142-1 ->  | H101: ='Pres & Prop Rev'!H190/'Pres & Prop Rev'!H142-1 -> 
B102: Block Therm Charges | C102: =SUM('Pres & Prop Rev'!C157:C161)/SUM('Pres & Prop Rev'!C108:C112)-1 -> 0.06729240973 | D102: =SUM('Pres & Prop Rev'!D157:D161)/SUM('Pres & Prop Rev'!D108:D112)-1 -> 0.04999699775 | E102: =SUM('Pres & Prop Rev'!E157:E161)/SUM('Pres & Prop Rev'!E108:E112)-1 -> 0.1274361868 | F102: =SUM('Pres & Prop Rev'!F157:F161)/SUM('Pres & Prop Rev'!F108:F112)-1 -> 0.06450058209 | G102: =SUM('Pres & Prop Rev'!G157:G161)/SUM('Pres & Prop Rev'!G108:G112)-1 -> 0.05600002521 | H102: =SUM('Pres & Prop Rev'!H157:H161)/SUM('Pres & Prop Rev'!H108:H112)-1 -> 0.05812908357
B103: Overall Revenue | C103: ='Pres & Prop Rev'!C192/'Pres & Prop Rev'!C193-1 -> 0.05553077458 | D103: ='Pres & Prop Rev'!D192/'Pres & Prop Rev'!D193-1 -> 0.05982709622 | E103: ='Pres & Prop Rev'!E192/'Pres & Prop Rev'!E193-1 -> 0.04405555163 | F103: ='Pres & Prop Rev'!F192/'Pres & Prop Rev'!F193-1 -> 0.04599785776 | G103: ='Pres & Prop Rev'!G192/'Pres & Prop Rev'!G193-1 -> 0.05600002521 | H103: ='Pres & Prop Rev'!H192/'Pres & Prop Rev'!H193-1 -> 0.07392418408
B105: Avg. Usage | D105: =D57/D58 -> 64.92561015 | E105: =E57/E58 -> 1527.840303 | F105: =F57/F58 -> 18056.40729 | G105: =G57/G58 -> 53675.83333 | H105: =H57/H58 -> 61923.90818
B106: Bill Compare: | C106: =INDEX($D$2:$H$2,I106) -> SCH. 101 | F106: =INDEX($D$2:$H$2,J106) -> SCH. 111,112 | I106: 1 | J106: 2
C107: Pres | D107: Prop | E107: % Incr | F107: Pres | G107: Prop | H107: % Incr
B108: 0 | C108: =I$108+MIN($B108,M$109)*I$109/100+MAX(0,MIN($B108-M$109,M$110-M$109))*I$110/100+MAX(0,MIN($B108-M$110,M$111-M$110))*I$111/100+MAX(0,MIN($B108-M$111,M$112-M$111))*I$112/100+MAX(0,B108-M$113)*I$113/100 -> 8 | D108: =J$108+MIN($B108,N$109)*J$109/100+MAX(0,MIN($B108-N$109,N$110-N$109))*J$110/100+MAX(0,MIN($B108-N$110,N$111-N$110))*J$111/100+MAX(0,MIN($B108-N$111,N$112-N$111))*J$112/100+MAX(0,C108-N$113)*J$113/100 -> 9 | E108: =D108/C108-1 -> 0.125 | F108: =K$108+MIN($B108,O$109)*K$109/100+MAX(0,MIN($B108-O$109,O$110-O$109))*K$110/100+MAX(0,MIN($B108-O$110,O$111-O$110))*K$111/100+MAX(0,MIN($B108-O$111,O$112-O$111))*K$112/100+MAX(0,E108-O$113)*K$113/100 -> 161.21 | G108: =L$108+MIN($B108,P$109)*L$109/100+MAX(0,MIN($B108-P$109,P$110-P$109))*L$110/100+MAX(0,MIN($B108-P$110,P$111-P$110))*L$111/100+MAX(0,MIN($B108-P$111,P$112-P$111))*L$112/100+MAX(0,F108-P$113)*L$113/100 -> 87.04 | H108: =G108/F108-1 -> -0.4600831214 | I108: =INDEX(CHOOSE(Base1_Billing2,$D$4:$H$4,$D$14:$H$14),$I$106)+INDEX(CHOOSE(Base1_Billing2,$D$5:$H$5,$D$15:$H$15),$I$106) -> 8 | J108: =INDEX(CHOOSE(Base1_Billing2,$D$26:$H$26,$D$36:$H$36),$I$106)+INDEX(CHOOSE(Base1_Billing2,$D$27:$H$27,$D$37:$H$37),$I$106) -> 9 | K108: =INDEX(CHOOSE(Base1_Billing2,$D$4:$H$4,$D$14:$H$14),$J$106)+INDEX(CHOOSE(Base1_Billing2,$D$5:$H$5,$D$15:$H$15),$J$106) -> 161.21 | L108: =INDEX(CHOOSE(Base1_Billing2,$D$26:$H$26,$D$36:$H$36),$J$106)+INDEX(CHOOSE(Base1_Billing2,$D$27:$H$27,$D$37:$H$37),$J$106) -> 87.04
B109: 68 | C109: =I$108+MIN($B109,M$109)*I$109/100+MAX(0,MIN($B109-M$109,M$110-M$109))*I$110/100+MAX(0,MIN($B109-M$110,M$111-M$110))*I$111/100+MAX(0,MIN($B109-M$111,M$112-M$111))*I$112/100+MAX(0,B109-M$113)*I$113/100 -> 61.05496 | D109: =J$108+MIN($B109,N$109)*J$109/100+MAX(0,MIN($B109-N$109,N$110-N$109))*J$110/100+MAX(0,MIN($B109-N$110,N$111-N$110))*J$111/100+MAX(0,MIN($B109-N$111,N$112-N$111))*J$112/100+MAX(0,C109-N$113)*J$113/100 -> 64.70764 | E109: 0.05982609767 | F109: =K$108+MIN($B109,O$109)*K$109/100+MAX(0,MIN($B109-O$109,O$110-O$109))*K$110/100+MAX(0,MIN($B109-O$110,O$111-O$110))*K$111/100+MAX(0,MIN($B109-O$111,O$112-O$111))*K$112/100+MAX(0,E109-O$113)*K$113/100 -> 166.69148 | G109: =L$108+MIN($B109,P$109)*L$109/100+MAX(0,MIN($B109-P$109,P$110-P$109))*L$110/100+MAX(0,MIN($B109-P$110,P$111-P$110))*L$111/100+MAX(0,MIN($B109-P$111,P$112-P$111))*L$112/100+MAX(0,F109-P$113)*L$113/100 -> 120.7238 | H109: -0.2757650241 | I109: =INDEX(CHOOSE(Base1_Billing2,$D6:$H6,$D16:$H16),$I$106) -> 78.022 | J109: =INDEX(CHOOSE(Base1_Billing2,$D28:$H28,$D38:$H38),$I$106) -> 81.923 | K109: =INDEX(CHOOSE(Base1_Billing2,$D6:$H6,$D16:$H16),$J$106) -> 8.061 | L109: =INDEX(CHOOSE(Base1_Billing2,$D28:$H28,$D38:$H38),$J$106) -> 49.535 | M109: =INDEX($L6:$P6,$I$106) -> 9999999 | N109: =INDEX($L28:$P28,$I$106) -> 9999999 | O109: =INDEX($L6:$P6,$J$106) -> 200 | P109: =INDEX($L28:$P28,$J$106) -> 200
B110: 2000 | C110: 1568.44 | D110: 1647.46 | E110: 0.05038127056 | F110: 1475.334 | G110: 1547.752 | H110: 0.04908583412 | I110: =INDEX(CHOOSE(Base1_Billing2,$D7:$H7,$D17:$H17),$I$106) -> 88.13 | J110: =INDEX(CHOOSE(Base1_Billing2,$D29:$H29,$D39:$H39),$I$106) -> 92.536 | K110: =INDEX(CHOOSE(Base1_Billing2,$D7:$H7,$D17:$H17),$J$106) -> 76.179 | L110: =INDEX(CHOOSE(Base1_Billing2,$D29:$H29,$D39:$H39),$J$106) -> 79.914 | M110: =INDEX($L7:$P7,$I$106) -> 9999999 | N110: =INDEX($L29:$P29,$I$106) -> 9999999 | O110: =INDEX($L7:$P7,$J$106) -> 1000 | P110: =INDEX($L29:$P29,$J$106) -> 1000
B111: 3000 | C111: 2348.66 | D111: 2466.69 | E111: 0.05025418749 | F111: 2163.904 | G111: 2270.082 | H111: 0.04906779598 | I111: =INDEX(CHOOSE(Base1_Billing2,$D8:$H8,$D18:$H18),$I$106) -> 0 | J111: =INDEX(CHOOSE(Base1_Billing2,$D30:$H30,$D40:$H40),$I$106) -> 0 | K111: =INDEX(CHOOSE(Base1_Billing2,$D8:$H8,$D18:$H18),$J$106) -> 68.857 | L111: =INDEX(CHOOSE(Base1_Billing2,$D30:$H30,$D40:$H40),$J$106) -> 72.233 | M111: =INDEX($L8:$P8,$I$106) -> 9999999 | N111: =INDEX($L30:$P30,$I$106) -> 9999999 | O111: =INDEX($L8:$P8,$J$106) -> 9999999 | P111: =INDEX($L30:$P30,$J$106) -> 9999999
B112: 4000 | C112: 3128.88 | D112: 3285.92 | E112: 0.0501904835 | F112: 2852.474 | G112: 2992.412 | H112: 0.04905846644 | I112: =INDEX(CHOOSE(Base1_Billing2,$D9:$H9,$D19:$H19),$I$106) -> 0 | J112: =INDEX(CHOOSE(Base1_Billing2,$D31:$H31,$D41:$H41),$I$106) -> 0 | K112: =INDEX(CHOOSE(Base1_Billing2,$D9:$H9,$D19:$H19),$J$106) -> 0 | L112: =INDEX(CHOOSE(Base1_Billing2,$D31:$H31,$D41:$H41),$J$106) -> 0 | M112: =INDEX($L9:$P9,$I$106) -> 9999999 | N112: =INDEX($L31:$P31,$I$106) -> 9999999 | O112: =INDEX($L9:$P9,$J$106) -> 9999999 | P112: =INDEX($L31:$P31,$J$106) -> 9999999
B113: 5000 | C113: 3909.1 | D113: 4105.15 | E113: 0.05015220895 | F113: 3541.044 | G113: 3714.742 | H113: 0.04905276523 | I113: =INDEX(CHOOSE(Base1_Billing2,$D10:$H10,$D20:$H20),$I$106) -> 0 | J113: =INDEX(CHOOSE(Base1_Billing2,$D32:$H32,$D42:$H42),$I$106) -> 0 | K113: =INDEX(CHOOSE(Base1_Billing2,$D10:$H10,$D20:$H20),$J$106) -> 0 | L113: =INDEX(CHOOSE(Base1_Billing2,$D32:$H32,$D42:$H42),$J$106) -> 0 | M113: =INDEX($L10:$P10,$I$106) -> 9999999 | N113: =INDEX($L32:$P32,$I$106) -> 9999999 | O113: =INDEX($L10:$P10,$J$106) -> 9999999 | P113: =INDEX($L32:$P32,$J$106) -> 9999999
B114: 6000 | C114: 4689.32 | D114: 4924.38 | E114: 0.05012667082 | F114: 4229.614 | G114: 4437.072 | H114: 0.0490489203
B115: 7000 | C115: 5469.54 | D115: 5743.61 | E115: 0.05010841862 | F115: 4918.184 | G115: 5159.402 | H115: 0.04904615199
B116: 8000 | C116: 6249.76 | D116: 6562.84 | E116: 0.05009472364 | F116: 5606.754 | G116: 5881.732 | H116: 0.04904406364
B117: 9000 | C117: 7029.98 | D117: 7382.07 | E117: 0.05008406852 | F117: 6295.324 | G117: 6604.062 | H117: 0.04904243213
B118: 10000 | C118: 7810.2 | D118: 8201.3 | E118: 0.05007554224 | F118: 6983.894 | G118: 7326.392 | H118: 0.04904112233
B119: 11000 | C119: 8590.42 | D119: 9020.53 | E119: 0.05006856475 | F119: 7672.464 | G119: 8048.722 | H119: 0.04904004763
B120: 12000 | C120: 9370.64 | D120: 9839.76 | E120: 0.05006274918 | F120: 8361.034 | G120: 8771.052 | H120: 0.04903914994
B121: 13000 | C121: 10150.86 | D121: 10658.99 | E121: 0.05005782761 | F121: 9049.604 | G121: 9493.382 | H121: 0.04903838886
B122: 14000 | C122: 10931.08 | D122: 11478.22 | E122: 0.05005360861 | F122: 9738.174 | G122: 10215.712 | H122: 0.04903773541

Sheet Exh1
A1: AVISTA UTILITIES | Q1: This worksheet pulls data from 'Pres & Prop Rev' tab.
A2: WASHINGTON NATURAL GAS
A3: PROPOSED INCREASE BY SERVICE SCHEDULE
A4: 12 MONTHS ENDED DECEMBER 31, 2015
A5: (000s of Dollars)
D8: Base Tariff | F8: Base Tariff | G8: Base | K8: Total Billed | N8: Percent
D9: Revenue | E9: Proposed | F9: Revenue | G9: Tariff | K9: Revenue | L9: Sch. 192 | M9: Total | N9: Increase
A10: Line | B10: Type of | C10: Schedule | D10: Under Present | E10: General | F10: Under Proposed | G10: Percent | K10: at Present | L10: LIRAP | M10: GRC/LIRAP | N10: on Billed
A11: No. | B11: Service | C11: Number | D11: Rates(1) | E11: Increase | F11: Rates | G11: Increase | K11: Rates (2) | L11: Increase | M11: Increase | N11: Revenue (2)
B12: (a) | C12: (b) | D12: (c) | E12: (d) | F12: (e) | G12: (f) | K12: (g) | L12: (h) | M12: (i) | N12: (j)
A14: 1 | B14: General Service | C14: 101 | D14: ='Pres & Prop Rev'!$D$145/1000+0.5 -> 110007.9725 | E14: ='Pres & Prop Rev'!$D$195/1000 -> 6581.42764 | F14: ='Pres & Prop Rev'!$D$192/1000 -> 116588.9001 | G14: =E14/D14 -> 0.05982682429 | K14: 114457.9087 | L14: =LIRAP!Q11/1000 -> 155.6249053 | M14: =E14+L14 -> 6737.052545 | N14: =(M14)/K14 -> 0.05886052456 | P14: =E14/K14 -> 0.05750085526 | R14: LIRAP %
A15: 2 | B15: Large General Service | C15: 111/112 | D15: ='Pres & Prop Rev'!$E$145/1000 -> 34391.2071 | E15: ='Pres & Prop Rev'!$E$195/1000 -> 1515.1236 | F15: ='Pres & Prop Rev'!$E$192/1000 -> 35906.3307 | G15: =E15/D15 -> 0.04405555163 | K15: 35967.17943 | L15: =LIRAP!Q13/1000 -> 51.34515123 | M15: =E15+L15 -> 1566.468751 | N15: =(M15)/K15 -> 0.04355272713
A16: 3 | B16: Large General Svc.-High Annual Load Factor | C16: 121/122 | D16: ='Pres & Prop Rev'!$F$145/1000 -> 3931.77267 | E16: ='Pres & Prop Rev'!$F$195/1000 -> 180.85312 | F16: ='Pres & Prop Rev'!$F$192/1000 -> 4112.62579 | G16: 0.04599785776 | K16: 4181.45433 | L16: =LIRAP!Q15/1000 -> 6.05936916 | M16: 186.9124892 | N16: 0.04470035409
A17: 4 | B17: Interruptible Service | C17: 131/132 | D17: ='Pres & Prop Rev'!$G$145/1000 -> 767.85519 | E17: ='Pres & Prop Rev'!$G$195/1000 -> 42.99991 | F17: ='Pres & Prop Rev'!$G$192/1000 -> 810.8551 | G17: =E17/D17 -> 0.05600002521 | K17: 798.24431 | L17: =LIRAP!Q17/1000 -> 1.2624556 | M17: 44.2623656 | N17: 0.05544964749
A18: 5 | B18: Transportation Service | C18: 146 | D18: ='Pres & Prop Rev'!$H$145/1000 -> 2434.35815 | E18: ='Pres & Prop Rev'!$H$195/1000 -> 179.95794 | F18: ='Pres & Prop Rev'!$H$192/1000 -> 2614.31609 | G18: =E18/D18 -> 0.07392418408 | K18: 2435.59911 | L18: 0 | M18: 179.95794 | N18: 0.07388651903
A19: 6 | B19: Special Contracts | C19: 148 | D19: =SUM('Pres & Prop Rev'!$I$145:$J$145)/1000 -> 1542.13437 | E19: =SUM('Pres & Prop Rev'!$I$195:$J$195)/1000 -> 0 | F19: =SUM('Pres & Prop Rev'!$I$192:$J$192)/1000 -> 1542.13437 | G19: 0 | K19: 1542.13437 | L19: 0 | M19: 0 | N19: 0
A20: 7 | B20: Total | D20: ='Pres & Prop Rev'!$C$145/1000+0.1 -> 153074.8999 | E20: ='Pres & Prop Rev'!$C$195/1000 -> 8500.36221 | F20: ='Pres & Prop Rev'!$C$192/1000 -> 161575.1622 | G20: =E20/D20 -> 0.0555307383 | K20: =SUM(K14:K19) -> 159382.5202 | L20: =SUM(L14:L19) -> 214.2918813 | M20: =SUM(M14:M19)+1 -> 8715.654091 | N20: 0.05468387674
D21: =ROUND(D20-SUM(D14:D19),0) -> 0 | F21: =ROUND(F20-SUM(F14:F19),0) -> 0 | M21: =ROUND(M20-SUM(M14:M19),-1) -> 0 | N21: =ROUND(N20-SUM(N14:N19),0) -> 0
B22: * All revenue based on 2015 billing determinants
D23: =IF(Base1_Billing2=2,"Exhibit won't work until Base1_Billing2 range set to '1'","") -> 
A25: (1) Includes Purchase Adjustment Schedule 150; excludes all other rate adjustments.
A27: (2) Includes Schedule 150 (Purchase Gas Cost Adjustment), Schedule 155 (Gas Rate Adjustment),
A28: Schedule 159 (Decoupling), Schedule 191 (DSM), and Schedule 192 (LIRAP).
D30: =SUM(ROUND(D14:D19,0)) -> 153075 | E30: =SUM(ROUND(E14:E19,0)) -> 8500 | F30: =SUM(ROUND(F14:F19,0)) -> 161575 | K30: =SUM(ROUND(K14:K19,0)) -> 159382 | N30: =SUM(ROUND(N14:N19,0)) -> 0
D31: =ROUND(D20,0)-D30 -> 0 | E31: =ROUND(E20,0)-E30 -> 0 | F31: =ROUND(F20,0)-F30 -> 0 | K31: =ROUND(K20,0)-K30 -> 1 | N31: =ROUND(N20,0)-N30 -> 0
G34: Rate Sch. | K34: Therms | M34: Sch 155 Rate | N34: Sch 155 Rate | O34: Billing Impact
G35: 112 | K35: ='Rev Runs CY'!O40 -> 0 | M35: 0.00623 | N35: 0.00041 | O35: =(K35*(N35-M35)/1000) -> 0 | P35: No 112's in test year
G36: 122 | K36: 0 | M36: 0.01697 | N36: 0.00041 | O36: =(K36*(N36-M36)/1000) -> 0

Sheet Exh2 (hidden)
A1: AVISTA UTILITIES | L1: This worksheet pulls data from 'ROR' tab.
A2: WASHINGTON NATURAL GAS
A3: PRESENT & PROPOSED RATES OF RETURN BY RATE SCHEDULE
A4: 12 MONTHS ENDED JUNE 30, 2013
D9: Present Rates | G9: Base | I9: Proposed Rates
D10: Present | E10: Present | G10: Tariff | I10: Proposed | J10: Proposed
A11: Line | B11: Type of | C11: Sch. | D11: Rate of | E11: Relative | G11: Proposed | I11: Rate of | J11: Relative
A12: No. | B12: Service | C12: Number | D12: Return | E12: ROR | G12: Increase | I12: Return | J12: ROR
B13: (a) | C13: (b) | D13: (c) | E13: (d) | G13: (e) | I13: (f) | J13: (g)
A15: 1 | B15: General Service | C15: 101 | D15: =INDEX(ROR!$C$20:$H$20,$A15+1) -> 0.05306744967 | E15: =INDEX(ROR!$C$21:$H$21,$A15+1) -> 0.9052693524 | G15: =INDEX(ROR!$C$47:$H$47,$A15+1) -> 0.05982320884 | I15: =INDEX(ROR!$C$38:$H$38,$A15+1) -> 0.07458934377 | J15: =INDEX(ROR!$C$37:$H$37,$A15+1) -> 0.9282983166
A16: 2 | B16: Large General Service | C16: 111 | D16: =INDEX(ROR!$C$20:$H$20,$A16+1) -> 0.07670219256 | E16: =INDEX(ROR!$C$21:$H$21,$A16+1) -> 1.308450748 | G16: =INDEX(ROR!$C$47:$H$47,$A16+1) -> 0.04405598681 | I16: =INDEX(ROR!$C$38:$H$38,$A16+1) -> 0.1015103016 | J16: =INDEX(ROR!$C$37:$H$37,$A16+1) -> 1.263341884
A17: 3 | B17: Large General Svc.-High Annual Load Factor | C17: 121 | D17: =INDEX(ROR!$C$20:$H$20,$A17+1) -> 0.1114043854 | E17: =INDEX(ROR!$C$21:$H$21,$A17+1) -> 1.900430047 | G17: =INDEX(ROR!$C$47:$H$47,$A17+1) -> 0.046 | I17: =INDEX(ROR!$C$38:$H$38,$A17+1) -> 0.1336610044 | J17: =INDEX(ROR!$C$37:$H$37,$A17+1) -> 1.663472006
A18: 4 | B18: Interruptible Service | C18: 131 | D18: =INDEX(ROR!$C$20:$H$20,$A18+1) -> 0.1490560796 | E18: =INDEX(ROR!$C$21:$H$21,$A18+1) -> 2.542724429 | G18: =INDEX(ROR!$C$47:$H$47,$A18+1) -> 0.056 | I18: =INDEX(ROR!$C$38:$H$38,$A18+1) -> 0.1851018789 | J18: =INDEX(ROR!$C$37:$H$37,$A18+1) -> 2.303677092
A19: 5 | B19: Transportation Service | C19: 146 | D19: =INDEX(ROR!$C$20:$H$20,$A19+1) -> 0.06085938806 | E19: =INDEX(ROR!$C$21:$H$21,$A19+1) -> 1.038190815 | G19: =INDEX(ROR!$C$47:$H$47,$A19+1) -> 0.07394146174 | I19: =INDEX(ROR!$C$38:$H$38,$A19+1) -> 0.06928070162 | J19: =INDEX(ROR!$C$37:$H$37,$A19+1) -> 0.8622298499
A20: 6 | B20: Total | D20: =INDEX(ROR!$C$20:$H$20,1) -> 0.05862061886 | E20: =INDEX(ROR!$C$21:$H$21,1) -> 1 | G20: =INDEX(ROR!$C$47:$H$47,1) -> 0.05609351599 | I20: =INDEX(ROR!$C$38:$H$38,1) -> 0.08035061836 | J20: =INDEX(ROR!$C$37:$H$37,1) -> 1

Sheet Exh3
A1: AVISTA UTILITIES | S1: This worksheet uses Base & Billing rates from 'Rate Design' tab.
A2: WASHINGTON NATURAL GAS
A3: PRESENT AND PROPOSED RATE COMPONENTS BY SCHEDULE
L7: Proposed | M7: Proposed
E8: Sch. 150 | F8: Base Rate | G8: Present | I8: General | J8: Sch. 192 | K8: Proposed | L8: Base Rate | M8: Base Rate
D9: Base | E9: PGA | F9: including | G9: Billing | H9: Present | I9: Rate | J9: LIRAP | K9: Billing | L9: including | M9: excluding | Q9: GRC
A10: Type of Service | D10: Rate | E10: Rate Adj | F10: Schedule 150 | G10: Rate Adj. | H10: Billing Rate (1) | I10: Increase | J10: Increase | K10: Rate(1) | L10: Schedule 150 | M10: Schedule 150 | O10: Base | P10: Bill | Q10: Revenue
B11: (a) | D11: (b) | E11: (c) | F11: (d) | G11: (e) | H11: (f) | I11: (g) | J11: (h) | K11: (i) | L11: (j) | M11: (k) | O11: check | P11: check | Q11: Check
A12: General Service - Schedule 101
A13: Basic Charge | F13: ='Rate Design'!D4 -> 8 | G13: =H13-F13 -> 0 | H13: ='Rate Design'!D14 -> 8 | I13: =IF(ROUND(K13-H13,5)<>ROUND(L13-F13,5),#VALUE!,L13-F13) -> 1 | K13: ='Rate Design'!D36 -> 9 | L13: ='Rate Design'!D26 -> 9 | M13: =F13+I13 -> 9 | N13: =L13/F13-1 -> 0.125 | Q13: =I13*'Pres & Prop Rev'!D25 -> 1802235 | AA13: =F13 -> 8 | AC13: =L13 -> 9
A14: Usage Charge:
A15: First 70 Therms | D15: 0.28219 | E15: 0.49803 | F15: ='Rate Design'!D6/100 -> 0.78022 | G15: =H15-F15 -> 0.03803 | H15: ='Rate Design'!D16/100 -> 0.81825 | I15: =L15-F15 -> 0.03901 | J15: =LIRAP!P11 -> 0.00133 | K15: ='Rate Design'!D38/100 -> 0.85859 | L15: ='Rate Design'!D28/100 -> 0.81923 | M15: =D15+I15 -> 0.3212 | N15: =L15/F15-1 -> 0.04999871831 | O15: =H15+I15+J15-K15 -> 0 | P15: =D15+I15-M15 -> 0 | Q15: =I15*'Pres & Prop Rev'!D8 -> 2906987.633
A16: All over 70 Therms | D16: 0.38327 | E16: =E15 -> 0.49803 | F16: ='Rate Design'!D7/100 -> 0.8813 | G16: =G15 -> 0.03803 | H16: ='Rate Design'!D17/100 -> 0.91933 | I16: =L16-F16 -> 0.04406 | J16: =J15 -> 0.00133 | K16: ='Rate Design'!D39/100 -> 0.96472 | L16: ='Rate Design'!D29/100 -> 0.92536 | M16: =D16+I16 -> 0.42733 | N16: =L16/F16-1 -> 0.04999432656 | O16: =H16+I16+J16-K16 -> 0 | P16: =D16+I16-M16 -> 0 | Q16: =I16*'Pres & Prop Rev'!D9 -> 1872205.01 | S16: =(70*F15)+(130*F16)+F13 -> 177.1844 | V16: =(70*K15)+(130*K16)+K13 -> 194.5149 | W16: =(70*L15)+(130*L16)+L13 -> 186.6429 | X16: =(70*(D15+I15))+(430*(D16+I16))+L13 -> 215.2359 | Y16: =(F15*70)+(F16*130)+F13 -> 177.1844 | Z16: =((F15+I15)*70)+((F16+I16)*130)+K13 -> 186.6429 | AA16: =D15 -> 0.28219 | AB16: =AA16*70 -> 19.7533 | AC16: =D15+I15 -> 0.3212 | AD16: =AC16*70 -> 22.484
A17: Large General Service - Schedule 111 | Q17: =SUM(Q13:Q16) -> 6581427.644 | R17: =Q17-'Pres & Prop Rev'!D195 -> 0.003569991328 | Y17: =(F15*70)+(F16*430)+F13 -> 441.5744 | Z17: =((F15+I15)*70)+((F16+I16)*430)+K13 -> 464.2509 | AA17: =D16 -> 0.38327 | AB17: =AA17*130 -> 49.8251 | AC17: =D16+I16 -> 0.42733 | AD17: =AC17*130 -> 55.5529
A18: Usage Charge: | N18: =L23/200+L24-L19 -> 0 | AB18: =AA13+AB16+AB17 -> 77.5784 | AD18: =AC13+AD16+AD17 -> 87.0369
A19: ="First "&TEXT('Rate Design'!M6,"#,##0")&" therms" -> First 200 therms | D19: 0.39131 | E19: 0.49535 | F19: ='Rate Design'!M11/100 -> 0.88666 | G19: =H19-F19 -> 0.03407 | H19: ='Rate Design'!M21/100 -> 0.92073 | I19: =L19-F19 -> 0.04389 | J19: =LIRAP!P13 -> 0.00111 | K19: ='Rate Design'!M43/100 -> 0.96573 | L19: ='Rate Design'!M33/100 -> 0.93055 | M19: =D19+I19 -> 0.4352 | N19: =L19/F19-1 -> 0.04950037218 | O19: 0 | P19: 0 | S19: =F19*200 -> 177.332 | T19: =H19*200 -> 184.146 | U19: =I19*200 -> 8.778 | V19: =K19*200 -> 193.146 | W19: =L19*200 -> 186.11 | Y19: =L23/200+L24 -> 0.93055
A20: =TEXT('Rate Design'!M6,"#,##0")&" - "&TEXT('Rate Design'!M7,"#,##0")&" therms" -> 200 - 1,000 therms | D20: 0.26644 | E20: =E19 -> 0.49535 | F20: ='Rate Design'!E7/100 -> 0.76179 | G20: =H20-F20 -> 0.03407 | H20: ='Rate Design'!E17/100 -> 0.79586 | I20: =L20-F20 -> 0.03735 | J20: =J19 -> 0.00111 | K20: ='Rate Design'!E39/100 -> 0.83432 | L20: ='Rate Design'!E29/100 -> 0.79914 | M20: =D20+I20 -> 0.30379 | N20: =L20/F20-1 -> 0.04902926003 | O20: 0 | P20: 0 | Q20: =I20*'Pres & Prop Rev'!E32 -> 552817.2379
A21: ="All over "&TEXT('Rate Design'!M7,"#,##0")&" therms" -> All over 1,000 therms | D21: 0.19322 | E21: =E19 -> 0.49535 | F21: ='Rate Design'!E8/100 -> 0.68857 | G21: =H21-F21 -> 0.03407 | H21: ='Rate Design'!E18/100 -> 0.72264 | I21: =L21-F21 -> 0.03376 | J21: =J19 -> 0.00111 | K21: ='Rate Design'!E40/100 -> 0.75751 | L21: ='Rate Design'!E30/100 -> 0.72233 | M21: 0.22698 | N21: =L21/F21-1 -> 0.04902914736 | O21: 0 | P21: 0 | Q21: =I21*'Pres & Prop Rev'!E33 -> 871792.8525
A22: Minimum Charge:
A23: per month | F23: ='Rate Design'!E5 -> 161.21 | G23: =H23-F23 -> 0 | H23: ='Rate Design'!E15 -> 161.21 | I23: =IF(ROUND(K23-H23,5)<>ROUND(L23-F23,5),#VALUE!,L23-F23) -> -74.17 | K23: ='Rate Design'!E37 -> 87.04 | L23: ='Rate Design'!E27 -> 87.04 | M23: =F23+I23 -> 87.04 | N23: =L23/F23-1 -> -0.4600831214 | Q23: =I23*'Pres & Prop Rev'!E26 -> -2245570.92 | AA23: =H23+I13+(70*I15)+(130*I16) -> 170.6685 | AB23: =AA23 -> 170.6685 | AC23: =(D19+I19)*200 -> 87.04
A24: per therm | D24: -0.41474 | E24: =E19 -> 0.49535 | F24: ='Rate Design'!E6/100 -> 0.08061 | G24: =H24-F24 -> 0.03407 | H24: ='Rate Design'!E16/100 -> 0.11468 | I24: =L24-F24 -> 0.41474 | K24: =G24+L24 -> 0.52942 | L24: 0.49535 | M24: =D24+I24 -> 0 | N24: =L24/F24-1 -> 5.145019228 | O24: 0 | P24: =D24+I24-M24 -> 1.110223025e-16 | Q24: =I24*'Pres & Prop Rev'!E31 -> 2336084.432 | S24: =$F23+F24*200 -> 177.332 | T24: =$H23+H24*200 -> 184.146 | U24: =$I23+I24*200 -> 8.778 | V24: =$K23+K24*200 -> 192.924 | W24: =$L23+L24*200 -> 186.11 | AA24: =F24 -> 0.08061 | AB24: =AA24*200 -> 16.122 | AC24: =E19*200 -> 99.07
Q25: =SUM(Q19:Q24) -> 1515123.602 | R25: =Q25-'Pres & Prop Rev'!E195 -> 0.001949992031 | S25: =S19-S24 -> 0 | T25: =T19-T24 -> 0 | U25: =U19-U24 -> 0 | V25: =V19-V24 -> 0.222 | W25: =W19-W24 -> 0 | AB25: =SUM(AB23:AB24) -> 186.7905 | AC25: =SUM(AC23:AC24) -> 186.11
A26: High Annual Load Factor Large General Service - Schedule 121
A27: Usage Charge: | N27: =L34/500+L35-L28 -> 0 | O27: 0 | P27: 0
A28: ="First "&TEXT('Rate Design'!N6,"#,##0")&" therms" -> First 500 therms | D28: 0.40597 | E28: 0.47449 | F28: ='Rate Design'!N11/100 -> 0.88046 | G28: =H28-F28 -> 0.04203 | H28: ='Rate Design'!N21/100 -> 0.92249 | I28: =L28-F28 -> 0.02451 | J28: =LIRAP!P15 -> 0.00102 | K28: ='Rate Design'!N43/100 -> 0.94802 | L28: ='Rate Design'!N33/100 -> 0.90497 | M28: =D28+I28 -> 0.43048 | N28: =L28/F28-1 -> 0.02783772119 | O28: 0 | P28: 0 | S28: =F28*500 -> 440.23 | T28: =H28*500 -> 461.245 | U28: =I28*500 -> 12.255 | V28: =K28*500 -> 474.01 | W28: =L28*500 -> 452.485 | Y28: =L34/500+L35 -> 0.90497
A29: =TEXT('Rate Design'!N6,"#,##0")&" - "&TEXT('Rate Design'!N7,"#,##0")&" therms" -> 500 - 1,000 therms | D29: 0.28246 | E29: =E28 -> 0.47449 | F29: ='Rate Design'!F7/100 -> 0.75695 | G29: =H29-F29 -> 0.04203 | H29: ='Rate Design'!F17/100 -> 0.79898 | I29: =L29-F29 -> 0.0398 | J29: =J28 -> 0.00102 | K29: ='Rate Design'!F39/100 -> 0.8398 | L29: ='Rate Design'!F29/100 -> 0.79675 | M29: =D29+I29 -> 0.32226 | N29: =L29/F29-1 -> 0.05257943061 | O29: 0 | P29: 0 | Q29: =I29*'Pres & Prop Rev'!F32 -> 7034.4908
A30: =TEXT('Rate Design'!N7,"#,##0")&" - "&TEXT('Rate Design'!N8,"#,##0")&" therms" -> 1,000 - 10,000 therms | D30: 0.20758 | E30: =E28 -> 0.47449 | F30: ='Rate Design'!F8/100 -> 0.68207 | G30: =H30-F30 -> 0.04203 | H30: ='Rate Design'!F18/100 -> 0.7241 | I30: =L30-F30 -> 0.03586 | J30: =J28 -> 0.00102 | K30: ='Rate Design'!F40/100 -> 0.76098 | L30: ='Rate Design'!F30/100 -> 0.71793 | M30: 0.24344 | N30: =L30/F30-1 -> 0.05257524887 | O30: 0 | P30: 0 | Q30: =I30*'Pres & Prop Rev'!F33 -> 104940.7399
A31: =TEXT('Rate Design'!N8,"#,##0")&" - "&TEXT('Rate Design'!N9,"#,##0")&" therms" -> 10,000 - 25,000 therms | D31: 0.16056 | E31: =E28 -> 0.47449 | F31: ='Rate Design'!F9/100 -> 0.63505 | G31: =H31-F31 -> 0.04203 | H31: ='Rate Design'!F19/100 -> 0.67708 | I31: =L31-F31 -> 0.03339 | J31: =J28 -> 0.00102 | K31: ='Rate Design'!F41/100 -> 0.71149 | L31: ='Rate Design'!F31/100 -> 0.66844 | M31: 0.19395 | N31: =L31/F31-1 -> 0.05257853712 | O31: 0 | P31: 0 | Q31: =I31*'Pres & Prop Rev'!F34 -> 59644.45683
A32: ="All over "&TEXT('Rate Design'!N9,"#,##0")&" therms" -> All over 25,000 therms | D32: 0.12272 | E32: =E28 -> 0.47449 | F32: ='Rate Design'!F10/100 -> 0.59721 | G32: =H32-F32 -> 0.04203 | H32: ='Rate Design'!F20/100 -> 0.63924 | I32: =L32-F32 -> 0 | J32: =J28 -> 0.00102 | K32: ='Rate Design'!F42/100 -> 0.64026 | L32: ='Rate Design'!F32/100 -> 0.59721 | M32: 0.12272 | N32: =L32/F32-1 -> 0 | O32: =H32+I32+J32-K32 -> 0 | P32: 0 | Q32: =I32*'Pres & Prop Rev'!F35 -> 0
A33: Minimum Charge:
A34: per month | F34: ='Rate Design'!F5 -> 409.92 | G34: =H34-F34 -> 0 | H34: ='Rate Design'!F15 -> 409.92 | I34: =IF(ROUND(K34-H34,5)<>ROUND(L34-F34,5),#VALUE!,L34-F34) -> -194.68 | K34: ='Rate Design'!F37 -> 215.24 | L34: ='Rate Design'!F27 -> 215.24 | M34: =F34+I34 -> 215.24 | N34: =L34/F34-1 -> -0.474921936 | Q34: =I34*'Pres & Prop Rev'!F49 -> -64049.72 | AA34: =H34+I13+(70*I15)+(430*I16) -> 432.5965
A35: per therm | D35: -0.41387 | E35: =E28 -> 0.47449 | F35: ='Rate Design'!F6/100 -> 0.06062 | G35: =H35-F35 -> 0.04203 | H35: ='Rate Design'!F16/100 -> 0.10265 | I35: =L35-F35 -> 0.41387 | J35: =J28 -> 0.00102 | K35: ='Rate Design'!F38/100 -> 0.51754 | L35: ='Rate Design'!F28/100 -> 0.47449 | M35: =D35+I35 -> 0 | N35: =L35/F35-1 -> 6.827284725 | O35: =H35+I35+J35-K35 -> 0 | P35: =D35+I35-M35 -> -5.551115123e-17 | Q35: =I35*'Pres & Prop Rev'!F31 -> 73283.13316 | S35: =F34+F35*500 -> 440.23 | T35: =H34+H35*500 -> 461.245 | U35: =I34+I35*500 -> 12.255 | V35: =K34+K35*500 -> 474.01 | W35: =L34+L35*500 -> 452.485 | X35: =(D28+I28)*500 -> 215.24
A36: Annual Minimum per therm | F36: Present: | G36: 0.30041 | K36: Proposed: | L36: =F30-0.37977-N("Tariffed Commodity Rate, 2013 PGA - Grossed up for Rev Related Items")+I30 -> 0.33816 | M36: =F30-0.37977-N("Tariffed Commodity Rate, 2013 PGA - Grossed up for Rev Related Items")+I30 -> 0.33816 | N36: =L36/G36-1 -> 0.1256615958 | Q36: =SUM(Q28:Q35) -> 180853.1007 | R36: =Q36-'Pres & Prop Rev'!F195 -> -0.0193499999 | S36: =S28-S35 -> 0 | T36: =T28-T35 -> 0 | U36: =U28-U35 -> 4.97379915e-14 | V36: =V28-V35 -> 0 | W36: =W28-W35 -> 0
A38: Interruptible Service - Schedule 132
A39: Usage Charge:
A40: ="First "&TEXT('Rate Design'!O6,"#,##0")&" therms" -> First 10,000 therms | D40: 0.18974 | E40: 0.44955 | F40: ='Rate Design'!G6/100 -> 0.63929 | G40: =H40-F40 -> 0.02359 | H40: ='Rate Design'!G16/100 -> 0.66288 | I40: =L40-F40 -> 0.0358 | J40: =LIRAP!P17 -> 0.00098 | K40: ='Rate Design'!G38/100 -> 0.69966 | L40: ='Rate Design'!G28/100 -> 0.67509 | M40: =D40+I40 -> 0.22554 | N40: =L40/F40-1 -> 0.05599962458 | O40: 0 | P40: 0 | Q40: =I40*'Pres & Prop Rev'!G31 -> 8592
A41: =TEXT('Rate Design'!O6,"#,##0")&" - "&TEXT('Rate Design'!O7,"#,##0")&" therms" -> 10,000 - 25,000 therms | D41: 0.1447 | E41: =E40 -> 0.44955 | F41: ='Rate Design'!G7/100 -> 0.59425 | G41: =H41-F41 -> 0.02359 | H41: ='Rate Design'!G17/100 -> 0.61784 | I41: =L41-F41 -> 0.03328 | J41: =J40 -> 0.00098 | K41: ='Rate Design'!G39/100 -> 0.6521 | L41: ='Rate Design'!G29/100 -> 0.62753 | M41: =D41+I41 -> 0.17798 | N41: =L41/F41-1 -> 0.05600336559 | O41: 0 | P41: 0 | Q41: =I41*'Pres & Prop Rev'!G32 -> 11980.8
A42: =TEXT('Rate Design'!O7,"#,##0")&" - "&TEXT('Rate Design'!O8,"#,##0")&" therms" -> 25,000 - 50,000 therms | D42: 0.13365 | E42: =E40 -> 0.44955 | F42: ='Rate Design'!G8/100 -> 0.5832 | G42: =H42-F42 -> 0.02359 | H42: ='Rate Design'!G18/100 -> 0.60679 | I42: =L42-F42 -> 0.03266 | J42: =J40 -> 0.00098 | K42: ='Rate Design'!G40/100 -> 0.64043 | L42: ='Rate Design'!G30/100 -> 0.61586 | M42: 0.16631 | N42: =L42/F42-1 -> 0.05600137174 | O42: 0 | P42: 0 | Q42: =I42*'Pres & Prop Rev'!G33 -> 14675.37908
A43: ="All over "&TEXT('Rate Design'!O8,"#,##0")&" therms" -> All over 50,000 therms | D43: 0.12999 | E43: =E40 -> 0.44955 | F43: ='Rate Design'!G9/100 -> 0.57954 | G43: =H43-F43 -> 0.02359 | H43: ='Rate Design'!G19/100 -> 0.60313 | I43: =L43-F43 -> 0.03245 | J43: =J40 -> 0.00098 | K43: ='Rate Design'!G41/100 -> 0.63656 | L43: ='Rate Design'!G31/100 -> 0.61199 | M43: 0.16244 | N43: =L43/F43-1 -> 0.05599268385 | O43: 0 | P43: 0 | Q43: =I43*'Pres & Prop Rev'!G34 -> 7751.7209
A44: Annual Minimum per therm | F44: Present: | G44: 0.21578 | K44: Proposed: | L44: =F41-0.37977-N("Tariffed Commodity Rate, 2013 PGA - Grossed up for Rev Related Items")+I41 -> 0.24776 | M44: =F41-0.37977-N("Tariffed Commodity Rate, 2013 PGA - Grossed up for Rev Related Items")+I41 -> 0.24776 | N44: =L44/G44-1 -> 0.1482065066 | Q44: =SUM(Q40:Q43) -> 42999.89998 | R44: =Q44-'Pres & Prop Rev'!G195 -> -0.01001999994
A46: Transportation Service - Schedule 146
A47: Basic Charge | F47: ='Rate Design'!H4 -> 400 | G47: =H47-F47 -> 0 | H47: ='Rate Design'!H14 -> 400 | I47: =IF(ROUND(K47-H47,5)<>ROUND(L47-F47,5),#VALUE!,L47-F47) -> 100 | K47: ='Rate Design'!H36 -> 500 | L47: ='Rate Design'!H26 -> 500 | M47: =F47+I47 -> 500 | N47: =L47/F47-1 -> 0.25 | Q47: =I47*'Pres & Prop Rev'!H48 -> 50100
A48: Usage Charge:
A49: ="First "&TEXT('Rate Design'!P6,"#,##0")&" therms" -> First 20,000 therms | D49: 0.08233 | E49: 0.00056 | F49: ='Rate Design'!H6/100 -> 0.08289 | G49: =H49-F49 -> 4e-05 | H49: ='Rate Design'!H16/100 -> 0.08293 | I49: =L49-F49 -> 0.00482 | K49: ='Rate Design'!H38/100 -> 0.08775 | L49: ='Rate Design'!H28/100 -> 0.08771 | M49: =D49+I49 -> 0.08715 | N49: =L49/F49-1 -> 0.05814935457 | O49: 0 | P49: 0 | Q49: =I49*'Pres & Prop Rev'!H31 -> 40050.28616 | U49: =L49-F49 -> 0.00482 | V49: =K49-H49 -> 0.00482
A50: =TEXT('Rate Design'!P6,"#,##0")&" - "&TEXT('Rate Design'!P7,"#,##0")&" therms" -> 20,000 - 50,000 therms | D50: 0.07324 | E50: =E49 -> 0.00056 | F50: ='Rate Design'!H7/100 -> 0.0738 | G50: =H50-F50 -> 4e-05 | H50: ='Rate Design'!H17/100 -> 0.07384 | I50: =L50-F50 -> 0.00429 | K50: ='Rate Design'!H39/100 -> 0.07813 | L50: ='Rate Design'!H29/100 -> 0.07809 | M50: =D50+I50 -> 0.07753 | N50: =L50/F50-1 -> 0.0581300813 | O50: 0 | P50: 0 | Q50: =I50*'Pres & Prop Rev'!H32 -> 32443.72989
A51: =TEXT('Rate Design'!P7,"#,##0")&" - "&TEXT('Rate Design'!P8,"#,##0")&" therms" -> 50,000 - 300,000 therms | D51: 0.06603 | E51: =E49 -> 0.00056 | F51: ='Rate Design'!H8/100 -> 0.06659 | G51: =H51-F51 -> 4e-05 | H51: ='Rate Design'!H18/100 -> 0.06663 | I51: =L51-F51 -> 0.00387 | K51: ='Rate Design'!H40/100 -> 0.0705 | L51: ='Rate Design'!H30/100 -> 0.07046 | M51: 0.0699 | N51: =L51/F51-1 -> 0.05811683436 | O51: 0 | P51: 0 | Q51: =I51*'Pres & Prop Rev'!H33 -> 46157.03334
A52: =TEXT('Rate Design'!P8,"#,##0")&" - "&TEXT('Rate Design'!P9,"#,##0")&" therms" -> 300,000 - 500,000 therms | D52: 0.06106 | E52: =E49 -> 0.00056 | F52: ='Rate Design'!H9/100 -> 0.06162 | G52: =H52-F52 -> 4e-05 | H52: ='Rate Design'!H19/100 -> 0.06166 | I52: =L52-F52 -> 0.00358 | K52: ='Rate Design'!H41/100 -> 0.06524 | L52: ='Rate Design'!H31/100 -> 0.0652 | M52: 0.06464 | N52: =L52/F52-1 -> 0.05809802012 | O52: 0 | P52: 0 | Q52: =I52*'Pres & Prop Rev'!H34 -> 10166.10094
A53: ="All over "&TEXT('Rate Design'!P9,"#,##0")&" therms" -> All over 500,000 therms | D53: 0.04586 | E53: =E49 -> 0.00056 | F53: ='Rate Design'!H10/100 -> 0.04642 | G53: =H53-F53 -> 4e-05 | H53: ='Rate Design'!H20/100 -> 0.04646 | I53: =L53-F53 -> 0.0027 | K53: ='Rate Design'!H42/100 -> 0.04916 | L53: ='Rate Design'!H32/100 -> 0.04912 | M53: 0.04856 | N53: =L53/F53-1 -> 0.05816458423 | O53: 0 | P53: 0 | Q53: =I53*'Pres & Prop Rev'!H35 -> 1040.7798
A54: Annual Minimum per therm | F54: Present: | G54: =F50 -> 0.0738 | K54: Proposed: | L54: =L50 -> 0.07809 | M54: =L50 -> 0.07809 | N54: =L54/G54-1 -> 0.0581300813 | Q54: =SUM(Q47:Q53) -> 179957.9301 | R54: =Q54-'Pres & Prop Rev'!H195 -> -0.00986999966
A59: (1) Includes Schedule 150 (Purchase Gas Cost Adjustment), Schedule 155 (Gas Rate Adjustment), | Q59: =Q17+Q25+Q36+Q44+Q54 -> 8500362.176 | R59: =R17+R25+R36+R44+R54 -> -0.03372001614
A60: Schedule 191 (DSM Adjustment), and Schedule 192 (LIRAP Adjustment).

Sheet LIRAP
B2: Avista Natural Gas
B3: LIRAP Rate Calculation
B4: UG-140189
D8: Present | H8: Present | J8: =L27 -> 0.116 | L8: Settlement | N8: Settlement
D9: Sch 192 | F9: Billing | H9: LIRAP | J9: LIRAP | L9: LIRAP | N9: Sch 192 | P9: Rate | Q9: Revenue | R9: Percentage
D10: Therm Rate | F10: Determinants | H10: Revenue | J10: Increase | L10: Revenue | N10: Therm Rate | P10: Impact | Q10: Impact | R10: Increase
A11: 1 | B11: General Service | C11: 101 | D11: 0.01145 | F11: ='Pres & Prop Rev'!D23 -> 117011207 | H11: =D11*F11 -> 1339778.32 | J11: =L11-H11 -> 155414.2851 | L11: =H11*(1+$L$27) -> 1495192.605 | N11: =ROUND(L11/F11,5) -> 0.01278 | P11: =ROUND(N11-D11,5) -> 0.00133 | Q11: =F11*P11 -> 155624.9053 | R11: =Q11/H11 -> 0.1161572052
A13: 2 | B13: Large General Service | C13: 111/112 | D13: 0.0096 | F13: ='Pres & Prop Rev'!E23 -> 46256893 | H13: =D13*F13 -> 444066.1728 | J13: =L13-H13 -> 51511.67604 | L13: =H13*(1+$L$27) -> 495577.8488 | N13: =ROUND(L13/F13,5) -> 0.01071 | P13: =ROUND(N13-D13,5) -> 0.00111 | Q13: =F13*P13 -> 51345.15123 | R13: =Q13/H13 -> 0.115625
A15: 3 | B15: Large General Svc.-High Annual Load Factor | C15: 121/122 | D15: 0.00876 | F15: ='Pres & Prop Rev'!F23 -> 5940558 | H15: =D15*F15 -> 52039.28808 | J15: =L15-H15 -> 6036.557417 | L15: =H15*(1+$L$27) -> 58075.8455 | N15: 0.00978 | P15: =ROUND(N15-D15,5) -> 0.00102 | Q15: =F15*P15 -> 6059.36916 | R15: 0.1164383562
A17: 4 | B17: Interruptible Service | C17: 131/132 | D17: 0.00842 | F17: ='Pres & Prop Rev'!G23 -> 1288220 | H17: =D17*F17 -> 10846.8124 | J17: =L17-H17 -> 1258.230238 | L17: =H17*(1+$L$27) -> 12105.04264 | N17: 0.0094 | P17: =ROUND(N17-D17,5) -> 0.00098 | Q17: =F17*P17 -> 1262.4556 | R17: 0.1163895487
A19: 5 | B19: Transportation Service | C19: 146 | D19: 0 | F19: ='Pres & Prop Rev'!H23 -> 31023878 | H19: =D19*F19 -> 0 | J19: =L19-H19 -> 0 | L19: =H19*(1+$L$27) -> 0 | N19: 0 | P19: =ROUND(N19-D19,5) -> 0 | Q19: =F19*P19 -> 0 | R19: 0
A21: 6 | B21: Special Contracts | C21: 148 | D21: 0 | F21: ='Pres & Prop Rev'!I23+'Pres & Prop Rev'!J23 -> 46142216 | H21: =D21*F21 -> 0 | J21: =L21-H21 -> 0 | L21: =H21*(1+$L$27) -> 0 | N21: 0 | P21: =ROUND(N21-D21,5) -> 0 | Q21: =F21*P21 -> 0 | R21: 0
A23: 7 | B23: Total | F23: =SUM(F11:F22) -> 247662972 | H23: =SUM(H11:H22) -> 1846730.593 | J23: =L23-H23 -> 214220.7488 | L23: =SUM(L11:L22) -> 2060951.342 | Q23: =SUM(Q11:Q21) -> 214291.8813 | R23: =Q23/H23 -> 0.1160385181
L27: =ROUND(0.058,3)*2 -> 0.116

Sheet ROR
B1: AVISTA UTILITIES
B2: WASHINGTON GAS
B3: PRESENT & PROPOSED RATE OF RETURN BY RATE SCHEDULE
B4: 12 MONTHS ENDED JUNE 30, 2013
C7: Total | D7: Sch 101 | E7: Sch 111 | F7: Sch 121 | G7: Sch 131 | H7: Sch 146
B8: Total Rate Base | C8: =SUM(D8:H8) -> 242844000 | D8: 187932930.5 | E8: 42819754.11 | F8: 3841452.937 | G8: 545813.2844 | H8: 7704049.205 | I8: from COS
B10: Revenue From Retail Rates | C10: =SUM(D10:H10) -> 151532665.6 | D10: 110007472.5 | E10: 34391207.1 | F10: 3931772.67 | G10: 767855.19 | H10: 2434358.15 | I10: from COS
B11: Other Operating Revenues | C11: =SUM(D11:H11) -> 1950000 | D11: 1509359.026 | E11: 343591.5744 | F11: 30809.15335 | G11: 4372.462754 | H11: 61867.78326 | I11: from COS
B12: Total Revenues | C12: =IF(ROUND(C10+C11,0)<>ROUND(SUM(D12:H12),0),#VALUE!,SUM(D12:H12)) -> 153482665.6 | D12: =D10+D11 -> 111516831.5 | E12: =E10+E11 -> 34734798.67 | F12: =F10+F11 -> 3962581.823 | G12: =G10+G11 -> 772227.6528 | H12: =H10+H11 -> 2496225.933
B14: Total Operating Exp b4 conv items & taxes | C14: =SUM(D14:H14) -> 128355000 | D14: =D17-D15-D16 -> 94044128.93 | E14: =E17-E15-E16 -> 28593099.6 | F14: =F17-F15-F16 -> 3228701.916 | G14: =G17-G15-G16 -> 632299.3322 | H14: =H17-H15-H16 -> 1856770.233
B15: Revenue Related conversion items | C15: =SUM(D15:H15) -> 7420000 | D15: 5393983.289 | E15: 1688942.234 | F15: 188002.1569 | G15: 36484.09411 | H15: 112588.2268 | I15: from COS
B16: Income Taxes | C16: =SUM(D16:H16) -> 3472000 | D16: 2105597.95 | E16: 1168387.812 | F16: 117923.0469 | G16: 22087.43805 | H16: 58003.75356 | I16: from COS
B17: Total Expenses | C17: =IF(ROUND(SUM(C14:C16),0)<>ROUND(SUM(D17:H17),0),#VALUE!,SUM(D17:H17)) -> 139247000 | D17: 101543710.2 | E17: 31450429.65 | F17: 3534627.12 | G17: 690870.8644 | H17: 2027362.213 | I17: from COS
B19: Net Operating Income | C19: =IF(ROUND(C12-C17,0)<>ROUND(SUM(D19:H19),0),#VALUE!,SUM(D19:H19)) -> 14235665.57 | D19: =D12-D17 -> 9973121.328 | E19: =E12-E17 -> 3284369.026 | F19: =F12-F17 -> 427954.7036 | G19: =G12-G17 -> 81356.78836 | H19: =H12-H17 -> 468863.7202
B20: Present Rate of Return | C20: =C19/C8 -> 0.05862061886 | D20: =D19/D8 -> 0.05306744967 | E20: 0.07670219256 | F20: 0.1114043854 | G20: 0.1490560796 | H20: =H19/H8 -> 0.06085938806
B21: Present Return Ratio | C21: =C20/$C20 -> 1 | D21: =D20/$C20 -> 0.9052693524 | E21: 1.308450748 | F21: 1.900430047 | G21: 2.542724429 | H21: =H20/$C20 -> 1.038190815
B23: Interest Expense | C23: =SUM(D23:H23) -> 6702000 | D23: 5186566.273 | E23: 1181738.038 | F23: 106016.2803 | G23: 15063.33544 | H23: 212616.0736 | I23: from COS
B25: Proposed Misc Revenue Increase | C25: 0
B26: Proposed Rate Revenue Increase | C26: 8500000 | D26: =C26/C10 -> 0.05609351599 | J26: % excludes special contract revenue
B27: Proposed Rev Increase | C27: =C25+C26 -> 8500000
D28: change
B29: Proposed Rate Revenues | C29: =C10+C26 -> 160032665.6 | D29: =C29-C10 -> 8500000 | F29: Uncollectibles | G29: 0.004449
B30: incremental conversion expenses | C30: =ROUND(C27*G29,-3)+ROUND(C27*G30,-3)+ROUND(C27*G31,-3) -> 381000 | F30: Commiss Fees | G30: 0.002
B31: incremental Income Taxes | C31: =ROUND(C27*G32,-3) -> 2842000 | F31: Excise Tax | G31: 0.038349
B32: Proposed Return | C32: =C19+C27-C30-C31 -> 19512665.57 | D32: =C32-C19 -> 5277000 | F32: Federal Inc Tax | G32: 0.334321
B33: Proposed Return % | C33: =C32/C8 -> 0.08035061836
B35: Allocation of incremental Misc Rev | C35: =SUM(D35:H35) -> 0 | D35: 0 | E35: 0 | F35: 0 | G35: 0 | H35: 0 | I35: from COS
B37: Target Relative Return | C37: =C38/C33 -> 1 | D37: =D39/D8/C33 -> 0.9282983166 | E37: 1.263341884 | F37: 1.663472006 | G37: 2.303677092 | H37: 0.8622298499 | I37: Input | K37: =D26 -> 0.05609351599
B38: Target Return % | C38: =C39/C8 -> 0.08035061836 | D38: 0.07458934377 | E38: =E39/E8 -> 0.1015103016 | F38: =F39/F8 -> 0.1336610044 | G38: 0.1851018789 | H38: =H39/H8 -> 0.06928070162
B39: Target Return (NOI b4 Interest) | C39: =C32 -> 19512665.57 | D39: =$C$32-SUM(E39:H39) -> 14017793.95 | E39: =E8*E37*$C$32/$C$8 -> 4346646.155 | F39: =F8*F37*$C$32/$C$8 -> 513452.4577 | G39: =G8*G37*$C$32/$C$8 -> 101031.0645 | H39: =H8*H37*$C$32/$C$8 -> 533741.9342 | I39: =ROUND(C39-SUM(D39:H39),0) -> 0
B40: Target Return after Interest Expense | C40: =C39-C23 -> 12810665.57 | D40: 8831227.682 | E40: 3164908.117 | F40: 407436.1774 | G40: 85967.72902 | H40: 321125.8606 | I40: =ROUND(C40-SUM(D40:H40),0) -> 0
B41: Target Return b4 Income Taxes & Interest | C41: =C40+C16+C31+C23 -> 25826665.57 | D41: =D40+D23+D40/$C40*SUM($C$16,$C$31) -> 18370446.15 | E41: =E40+E23+E40/$C40*SUM($C$16,$C$31) -> 5906536.213 | F41: =F40+F23+F40/$C40*SUM($C$16,$C$31) -> 714265.7574 | G41: =G40+G23+G40/$C40*SUM($C$16,$C$31) -> 143402.0278 | H41: =H40+H23+H40/$C40*SUM($C$16,$C$31) -> 692015.4192 | I41: 0
B42: Target Return b4 Misc Rev | C42: =C41-C11-$C$25*C35 -> 23876665.57 | D42: =D41-D11-$C$25*D35 -> 16861087.12 | E42: 5562944.638 | F42: 683456.6041 | G42: =G41-G11-$C$25*G35 -> 139029.565 | H42: =H41-H11-$C$25*H35 -> 630147.6359 | I42: 0
B43: =B14 -> Total Operating Exp b4 conv items & taxes | C43: 128355000 | D43: 94044128.93 | E43: 28593099.6 | F43: 3228701.916 | G43: =G14 -> 632299.3322 | H43: =H14 -> 1856770.233 | I43: 0
B44: Conversion Items | C44: =C15+C30 -> 7801000 | D44: =$C44*D46/$C46 -> 5683256.418 | E44: =$C44*E46/$C46 -> 1750301.425 | F44: =$C44*F46/$C46 -> 200475.6927 | G44: =$C44*G46/$C46 -> 39526.18336 | H44: =$C44*H46/$C46 -> 127440.2814 | I44: 0
B45: Incremental Rate Revenue | C45: =C26 -> 8500000 | D45: =(D42-D10+D14+($C$44*D10)/$C$29)/(1-$C$44/$C$29) -> 6581000 | E45: =(E42-E10+E14+($C$44*E10)/$C$29)/(1-$C$44/$C$29) -> 1515138.567 | F45: =(F42-F10+F14+($C$44*F10)/$C$29)/(1-$C$44/$C$29) -> 180861.5428 | G45: =(G42-G10+G14+($C$44*G10)/$C$29)/(1-$C$44/$C$29) -> 42999.89064 | H45: =(H42-H10+H14+($C$44*H10)/$C$29)/(1-$C$44/$C$29) -> 180000 | I45: 0 | K45: CM %
B46: Target Rate Revenue | C46: =C42+C43+C44 -> 160032665.6 | D46: =D10+D45 -> 116588472.5 | E46: =E10+E45 -> 35906345.67 | F46: =F10+F45 -> 4112634.213 | G46: =G10+G45 -> 810855.0806 | H46: =H10+H45 -> 2614358.15 | I46: 0
B47: Change in Rate Revenue | C47: =C46/C10-1 -> 0.05609351599 | D47: =D46/D10-1 -> 0.05982320884 | E47: =E46/E10-1 -> 0.04405598681 | F47: =F46/F10-1 -> 0.046 | G47: =G46/G10-1 -> 0.056 | H47: =H46/H10-1 -> 0.07394146174 | K47: 0.7744632691 | L47: 0.1723073562 | M47: 0.01618719029 | N47: 0.002716932305 | O47: 0.03432525206
B49: Incremental Rate Revenue - rounded | C49: =SUM(D49:H49) -> 8499000 | D49: =ROUND(D45,-3) -> 6581000 | E49: =ROUND(E45,-3)-1000 -> 1514000 | F49: 181000 | G49: 43000 | H49: 180000 | K49: =$C$26*K47 -> 6582937.787 | L49: =$C$26*L47 -> 1464612.528 | M49: 137591.1175 | N49: 23093.92459 | O49: =$C$26*O47 -> 291764.6425
B50: Target Rate Revenue - rounded | C50: =SUM(D50:H50) -> 160032000 | D50: 116588000 | E50: 35906000 | F50: 4113000 | G50: 811000 | H50: 2614000
B52: Billed Revenue | C52: =SUM(D52:I52) -> 156193000 | D52: 112307000 | E52: 35342000 | F52: 3987000 | G52: 759000 | H52: 2254000 | I52: 1544000 | K52: =SUM(K49:O49) -> 8500000
B53: Billed Increase | C53: =C45/C52 -> 0.05441985236 | D53: =D45/D52 -> 0.05859830643 | E53: =E45/E52 -> 0.04287076471 | F53: 0.04536281485 | G53: 0.05665334735 | H53: 0.07985803017
B57: % movement towards unity | D57: =(D37-D21)/(1-D21) -> 0.2430994067 | E57: =(E37-E21)/(1-E21) -> 0.146243326 | F57: 0.2631609653 | G57: 0.1549514169 | H57: 4.607415832
B60: Uniform Present Return | C60: =C19 -> 14235665.57 | D60: =$C$60*D8/$C$8 -> 11016744.69 | E60: =$C$60*E8/$C$8 -> 2510120.485 | F60: 225188.3485 | G60: 31995.91251 | H60: 451616.1321
B61: Present Income Taxes at Unity | C61: =C16 -> 3472000 | D61: =$C$61*D8/$C$8 -> 2686923.023 | E61: =$C$61*E8/$C$8 -> 612204.4863 | F61: 54922.19119 | G61: 7803.62588 | H61: 110146.6737
B62: Operating Expenses (Excl. Rev Rel exp & inc tax) | C62: =SUM(D62:H62) -> 128355000 | D62: =D14 -> 94044128.93 | E62: =E14 -> 28593099.6 | F62: 3228701.916 | G62: 632299.3322 | H62: 1856770.233
B63: Deduct Other Operating Revenues | C63: =SUM(D63:H63) -> -1950000 | D63: =-D11 -> -1509359.026 | E63: =-E11 -> -343591.5744 | F63: -30809.15335 | G63: -4372.462754 | H63: -61867.78326
B64: Revenue Related Expenses at Unity | C64: =C15 -> 7420000 | D64: =$C64*(SUM(D60:D63)/SUM($C$60:$C$63)) -> 5469950.916 | E64: =$C64*(SUM(E60:E63)/SUM($C$60:$C$63)) -> 1615257.062 | F64: 179073.6741 | G64: 34379.5594 | H64: 121338.7881
B65: Total Uniform Cost at Present Return | C65: =SUM(C60:C64) -> 151532665.6 | D65: =SUM(D60:D64) -> 111708388.5 | E65: 32987090.06 | F65: 3657076.976 | G65: 702105.9673 | H65: 2478004.043 | I65: Ties to COS line 568
B66: Exclude Cost of Gas w / Revenue Exp. | C66: =SUM(D66:H66) -> 83322753 | D66: 57475690 | E66: 22570258 | F66: 2707403 | G66: 553058 | H66: 16344 | I66: from COS line 569
B67: Total Uniform Current Margin | C67: =C65-C66 -> 68209912.58 | D67: =D65-D66 -> 54232698.53 | E67: 10416832.06 | F67: 949673.9764 | G67: 149047.9673 | H67: 2461660.043 | I67: Ties to COS line 570
B69: Uniform Proposed Return | C69: =C32 -> 19512665.57 | D69: =$C$69*D8/$C$8 -> 15100527.17 | E69: =$C$69*E8/$C$8 -> 3440593.721 | F69: 308663.1189 | G69: 43856.43491 | H69: 619025.1175
B70: Proposed Income Taxes at Unity | C70: =C16+C31 -> 6314000 | D70: =$C$70*D8/$C$8 -> 4886299.529 | E70: =$C$70*E8/$C$8 -> 1113323.481 | F70: 99878.6622 | G70: 14191.27126 | H70: 200307.0559
B71: Operating Expenses (Excl. Rev Rel exp & inc tax) | C71: =SUM(D71:H71) -> 128355000 | D71: =D14 -> 94044128.93 | E71: =E14 -> 28593099.6 | F71: 3228701.916 | G71: 632299.3322 | H71: 1856770.233
B72: Deduct Other Operating Revenues | C72: =SUM(D72:H72) -> -1950000 | D72: =-D11+C25*D35 -> -1509359.026 | E72: =-E11+D25*E35 -> -343591.5744 | F72: -30809.15335 | G72: -4372.462754 | H72: -61867.78326
B73: Proposed Revenue Related Expenses at Unity | C73: =C15+C30 -> 7801000 | D73: =$C73*(SUM(D69:D72)/SUM($C$69:$C$72)) -> 5766086.653 | E73: =$C73*(SUM(E69:E72)/SUM($C$69:$C$72)) -> 1680987.456 | F73: =$C73*(SUM(F69:F72)/SUM($C$69:$C$72)) -> 184809.0919 | G73: =$C73*(SUM(G69:G72)/SUM($C$69:$C$72)) -> 35152.26378 | H73: =$C73*(SUM(H69:H72)/SUM($C$69:$C$72)) -> 133964.535
B74: Total Uniform Cost at Proposed Return | C74: =SUM(C69:C73) -> 160032665.6 | D74: =SUM(D69:D73) -> 118287683.3 | E74: 34484412.69 | F74: 3791243.636 | G74: 721126.8394 | H74: 2748199.158 | I74: Ties to COS line 603
B75: Exclude Cost of Gas w / Revenue Exp. | C75: =SUM(D75:H75) -> 83288147 | D75: 57451818 | E75: 22560884 | F75: 2706279 | G75: 552829 | H75: 16337 | I75: from COS line 604
B76: Total Uniform Proposed Margin | C76: =C74-C75 -> 76744518.58 | D76: =D74-D75 -> 60835865.26 | E76: =E74-E75 -> 11923528.69 | F76: =F74-F75 -> 1084964.636 | G76: =G74-G75 -> 168297.8394 | H76: =H74-H75 -> 2731862.158 | I76: Ties to COS line 605
B78: Revenue Change to Achieve Unity (rounded) | C78: =SUM(D78:H78) -> 8500000 | D78: =D74-D10 -> 8280210.789 | E78: =E74-E10 -> 93205.5877 | F78: -140529.0344 | G78: -46728.35057 | H78: 313841.0079
B80: Revenue to Cost Ratio at Present Rates | C80: =C10/C65 -> 1 | D80: =D10/D65 -> 0.9847736049 | E80: =E10/E65 -> 1.042565653 | F80: 1.075113457 | G80: 1.093645726 | H80: 0.9823866738
B81: Revenue to Cost Ratio at Proposed Rates | C81: =C46/C74 -> 1 | D81: =D46/D74 -> 0.9856349305 | E81: =E46/E74 -> 1.041234078 | F81: 1.084771808 | G81: 1.124427821 | H81: 0.9512986504
B82: Change in Revenue to Cost Ratio | C82: =ROUND(C81-C80,4) -> 0 | D82: =ROUND(D81-D80,2) -> 0 | E82: =ROUND(E81-E80,2) -> 0 | F82: =ROUND(F81-F80,2) -> 0.01 | G82: =ROUND(G81-G80,2) -> 0.03 | H82: =ROUND(H81-H80,2) -> -0.03
B84: % movement towards unity | D84: =(D81-D80)/(1-D80) -> 0.05656792725 | E84: =(E81-E80)/(1-E80) -> 0.03128284533 | F84: -0.1285834983 | G84: -0.3287079589 | H84: -1.765028543
B87: Margin to Cost Ratio at Present Rates | C87: =(C10-C66)/C67 -> 1 | D87: =(D10-D66)/D67 -> 0.9686367062 | E87: =(E10-E66)/E67 -> 1.134793095 | F87: 1.289252628 | G87: 1.44112794 | H87: 0.9822697315
B88: Margin to Cost Ratio at Proposed Rates | C88: =(C46-C75)/C76 -> 1 | D88: =(D46-D75)/D76 -> 0.9720689304 | E88: 1.119254376 | F88: 1.296222169 | G88: 1.533151474 | H88: 0.9510074081
B89: Change in Margin to Cost Ratio | C89: =ROUND(C88-C87,4) -> 0 | D89: =ROUND(D88-D87,2) -> 0 | E89: =ROUND(E88-E87,2) -> -0.02 | F89: =ROUND(F88-F87,2) -> 0.01 | G89: =ROUND(G88-G87,2) -> 0.09 | H89: =ROUND(H88-H87,2) -> -0.03
B91: % movement towards unity | D91: =(D88-D87)/(1-D87) -> 0.1094344302 | E91: =(E88-E87)/(1-E87) -> 0.1152782993 | F91: -0.02409499385 | G91: -0.2086096259 | H91: -1.763217715

Sheet BFG (hidden)
A1: AVISTA UTILITIES
A2: GAS ANNUAL MINIMUM DEFICIENCY FOR B.F. GOODRICH
A3: STATE OF WASHINGTON
A4: BASED ON 2007 ANNUAL MINIMUM
F6: Gas
A7: Annual Minimum Usage Requirement(1) | F7: 10500000
A8: Less: Jan 09 - Dec 09 Usage(2) | F8: =SUMIF('Big Schedules'!$A$4:$A$44,"BF Goodrich",'Big Schedules'!$N$4:$N$44) -> 0
A9: Usage Deficiency | F9: =F7-F8 -> 10500000
A10: Deficiency Charge per therm(3) | F10: 0
A11: Annual Minimum Deficiency | F11: =F9*F10 -> 0
A16: (1) Per Contract - workpaper BJH-G-36
A17: (2) From workpaper BJH-G-9
A18: (3) From workpaper BJH-G-35
A21: ** Annual Minimum Ended in 2009
F24: =ROUND(F11-'Pres & Prop Rev'!J113,0) -> 0

Sheet Bill Impact
A2: Schedule 101 Bill Impact
A6: Schedule 101 Present | G6: Schedule 101 Proposed
B7: Basic Charge | C7: Block 1 | D7: Block 2 | E7: Total Bill | G7: Basic Charge | H7: Block 1 | I7: Block 2 | J7: Total Bill | L7: Bill Impact | M7: % Change
B8: ='Rate Design'!D4 -> 8 | C8: ='Rate Design'!D16/100 -> 0.81825 | D8: ='Rate Design'!D17/100 -> 0.91933 | G8: ='Rate Design'!D26 -> 9 | H8: ='Rate Design'!D38/100 -> 0.85859 | I8: ='Rate Design'!D39/100 -> 0.96472
A9: 10 | B9: =$B$8 -> 8 | C9: =A9*$C$8 -> 8.1825 | E9: =SUM(B9:D9) -> 16.1825 | G9: =$G$8 -> 9 | H9: =A9*$H$8 -> 8.5859 | J9: =SUM(G9:I9) -> 17.5859 | L9: =J9-E9 -> 1.4034 | M9: =L9/E9 -> 0.08672331222
A10: =A9+10 -> 20 | B10: =$B$8 -> 8 | C10: 16.365 | E10: =SUM(B10:D10) -> 24.365 | G10: =$G$8 -> 9 | H10: =A10*$H$8 -> 17.1718 | J10: 26.1718 | L10: 1.8068 | M10: 0.074155551
A11: =A10+10 -> 30 | B11: 8 | C11: 24.5475 | E11: 32.5475 | G11: 9 | H11: 25.7577 | J11: 34.7577 | L11: 2.2102 | M11: 0.06790690529
A12: 40 | B12: 8 | C12: 32.73 | E12: 40.73 | G12: 9 | H12: 34.3436 | J12: 43.3436 | L12: 2.6136 | M12: 0.06416891726
A13: 50 | B13: 8 | C13: 40.9125 | E13: 48.9125 | G13: 9 | H13: 42.9295 | J13: 51.9295 | L13: 3.017 | M13: 0.06168157424
A14: 60 | B14: 8 | C14: 49.095 | E14: 57.095 | G14: 9 | H14: 51.5154 | J14: 60.5154 | L14: 3.4204 | M14: 0.05990717226
A15: 65 | B15: 8 | C15: =ROUND(A15*$C$8,2) -> 53.19 | E15: =SUM(B15:D15) -> 61.19 | G15: 9 | H15: =ROUND(A15*$H$8,2) -> 55.81 | J15: =SUM(G15:I15) -> 64.81 | L15: 3.62 | M15: 0.05915999346
A16: =A14+10 -> 70 | B16: 8 | C16: =ROUND(A16*$C$8,2) -> 57.28 | E16: 65.28 | G16: 9 | H16: =ROUND(A16*$H$8,2) -> 60.1 | J16: 69.1 | L16: =J16-E16 -> 3.82 | M16: 0.05851715686
A17: 80 | B17: 8 | C17: =70*$C$8 -> 57.2775 | D17: =(A17-70)*$D$8 -> 9.1933 | E17: =SUM(B17:D17) -> 74.4708 | G17: 9 | H17: =70*$H$8 -> 60.1013 | I17: =(A17-70)*$I$8 -> 9.6472 | J17: 78.7485 | L17: 4.2777 | M17: 0.05744130585
A18: 90 | B18: 8 | C18: =70*$C$8 -> 57.2775 | D18: =(A18-70)*$D$8 -> 18.3866 | E18: 83.6641 | G18: 9 | H18: =70*$H$8 -> 60.1013 | I18: =(A18-70)*$I$8 -> 19.2944 | J18: 88.3957 | L18: 4.7316 | M18: 0.05655472299
A19: 100 | B19: 8 | C19: 57.2775 | D19: =(A19-70)*$D$8 -> 27.5799 | E19: 92.8574 | G19: 9 | H19: 60.1013 | I19: 28.9416 | J19: 98.0429 | L19: 5.1855 | M19: 0.05584369151
A20: 110 | B20: 8 | C20: 57.2775 | D20: 36.7732 | E20: 102.0507 | G20: 9 | H20: 60.1013 | I20: 38.5888 | J20: 107.6901 | L20: 5.6394 | M20: 0.05526076744
A21: 120 | B21: 8 | C21: 57.2775 | D21: 45.9665 | E21: 111.244 | G21: 9 | H21: 60.1013 | I21: 48.236 | J21: 117.3373 | L21: 6.0933 | M21: 0.05477419007
A22: 130 | B22: 8 | C22: 57.2775 | D22: 55.1598 | E22: 120.4373 | G22: 9 | H22: 60.1013 | I22: 57.8832 | J22: 126.9845 | L22: 6.5472 | M22: 0.05436189619
A23: 140 | B23: 8 | C23: 57.2775 | D23: 64.3531 | E23: 129.6306 | G23: 9 | H23: 60.1013 | I23: 67.5304 | J23: 136.6317 | L23: 7.0011 | M23: 0.05400808143
A24: 150 | B24: 8 | C24: 57.2775 | D24: 73.5464 | E24: 138.8239 | G24: 9 | H24: 60.1013 | I24: 77.1776 | J24: 146.2789 | L24: 7.455 | M24: 0.05370112783
A25: 160 | B25: 8 | C25: 57.2775 | D25: 82.7397 | E25: 148.0172 | G25: 9 | H25: 60.1013 | I25: 86.8248 | J25: 155.9261 | L25: 7.9089 | M25: 0.05343230381
A26: 170 | B26: 8 | C26: 57.2775 | D26: 91.933 | E26: 157.2105 | G26: 9 | H26: 60.1013 | I26: 96.472 | J26: 165.5733 | L26: 8.3628 | M26: 0.05319492019
A27: 180 | B27: 8 | C27: 57.2775 | D27: 101.1263 | E27: 166.4038 | G27: 9 | H27: 60.1013 | I27: 106.1192 | J27: 175.2205 | L27: 8.8167 | M27: 0.052983766
A28: 190 | B28: 8 | C28: 57.2775 | D28: 110.3196 | E28: 175.5971 | G28: 9 | H28: 60.1013 | I28: 115.7664 | J28: 184.8677 | L28: 9.2706 | M28: 0.05279472155
A29: 200 | B29: 8 | C29: 57.2775 | D29: 119.5129 | E29: 184.7904 | G29: 9 | H29: 60.1013 | I29: 125.4136 | J29: 194.5149 | L29: 9.7245 | M29: 0.05262448699
A30: 210 | B30: 8 | C30: 57.2775 | D30: 128.7062 | E30: 193.9837 | G30: 9 | H30: 60.1013 | I30: 135.0608 | J30: 204.1621 | L30: 10.1784 | M30: 0.05247038798
A31: 220 | B31: 8 | C31: 57.2775 | D31: 137.8995 | E31: 203.177 | G31: 9 | H31: 60.1013 | I31: 144.708 | J31: 213.8093 | L31: 10.6323 | M31: 0.05233023423
A32: 230 | B32: 8 | C32: 57.2775 | D32: 147.0928 | E32: 212.3703 | G32: 9 | H32: 60.1013 | I32: 154.3552 | J32: 223.4565 | L32: 11.0862 | M32: 0.05220221472
A33: 240 | B33: 8 | C33: 57.2775 | D33: 156.2861 | E33: 221.5636 | G33: 9 | H33: 60.1013 | I33: 164.0024 | J33: 233.1037 | L33: 11.5401 | M33: 0.05208481899
A34: 250 | B34: 8 | C34: 57.2775 | D34: 165.4794 | E34: 230.7569 | G34: 9 | H34: 60.1013 | I34: 173.6496 | J34: 242.7509 | L34: 11.994 | M34: 0.05197677729
A35: 260 | B35: 8 | C35: 57.2775 | D35: 174.6727 | E35: 239.9502 | G35: 9 | H35: 60.1013 | I35: 183.2968 | J35: 252.3981 | L35: 12.4479 | M35: 0.05187701448
A36: 270 | B36: 8 | C36: 57.2775 | D36: 183.866 | E36: 249.1435 | G36: 9 | H36: 60.1013 | I36: 192.944 | J36: 262.0453 | L36: 12.9018 | M36: 0.05178461409
A37: 280 | B37: 8 | C37: 57.2775 | D37: 193.0593 | E37: 258.3368 | G37: 9 | H37: 60.1013 | I37: 202.5912 | J37: 271.6925 | L37: 13.3557 | M37: 0.05169879011
A38: 290 | B38: 8 | C38: 57.2775 | D38: 202.2526 | E38: =SUM(B38:D38) -> 267.5301 | G38: 9 | H38: 60.1013 | I38: 212.2384 | J38: 281.3397 | L38: 13.8096 | M38: 0.05161886457
A39: 300 | B39: 8 | C39: 57.2775 | D39: 211.4459 | E39: 276.7234 | G39: 9 | H39: 60.1013 | I39: 221.8856 | J39: 290.9869 | L39: 14.2635 | M39: 0.0515442496
A40: 310 | B40: 8 | C40: 57.2775 | D40: =(A40-70)*$D$8 -> 220.6392 | E40: =SUM(B40:D40) -> 285.9167 | G40: 9 | H40: 60.1013 | I40: =(A40-70)*$I$8 -> 231.5328 | J40: =SUM(G40:I40) -> 300.6341 | L40: 14.7174 | M40: 0.05147443294
A41: 320 | B41: 8 | C41: 57.2775 | D41: 229.8325 | E41: 295.11 | G41: 9 | H41: 60.1013 | I41: 241.18 | J41: 310.2813 | L41: 15.1713 | M41: 0.05140896615
A42: 330 | B42: 8 | C42: 57.2775 | D42: 239.0258 | E42: 304.3033 | G42: 9 | H42: 60.1013 | I42: 250.8272 | J42: 319.9285 | L42: 15.6252 | M42: 0.05134745499
A43: 340 | B43: 8 | C43: 57.2775 | D43: 248.2191 | E43: 313.4966 | G43: 9 | H43: 60.1013 | I43: 260.4744 | J43: 329.5757 | L43: 16.0791 | M43: 0.05128955147
A44: 350 | B44: 8 | C44: 57.2775 | D44: 257.4124 | E44: 322.6899 | G44: 9 | H44: 60.1013 | I44: 270.1216 | J44: 339.2229 | L44: 16.533 | M44: 0.05123494724
A45: 360 | B45: 8 | C45: 57.2775 | D45: 266.6057 | E45: 331.8832 | G45: 9 | H45: 60.1013 | I45: 279.7688 | J45: 348.8701 | L45: 16.9869 | M45: 0.05118336812
A46: 370 | B46: 8 | C46: 57.2775 | D46: 275.799 | E46: 341.0765 | G46: 9 | H46: 60.1013 | I46: 289.416 | J46: 358.5173 | L46: 17.4408 | M46: 0.05113456952
A47: 380 | B47: 8 | C47: 57.2775 | D47: =(A47-70)*$D$8 -> 284.9923 | E47: =SUM(B47:D47) -> 350.2698 | G47: 9 | H47: 60.1013 | I47: 299.0632 | J47: 368.1645 | L47: 17.8947 | M47: 0.05108833248
A48: 390 | B48: 8 | C48: 57.2775 | D48: 294.1856 | E48: 359.4631 | G48: 9 | H48: 60.1013 | I48: 308.7104 | J48: 377.8117 | L48: 18.3486 | M48: 0.05104446047
A49: 400 | B49: 8 | C49: 57.2775 | D49: 303.3789 | E49: 368.6564 | G49: 9 | H49: 60.1013 | I49: 318.3576 | J49: 387.4589 | L49: 18.8025 | M49: 0.05100277657
A53: Breakeven Analysis (Base Rates - Includes Cost of Gas)
A55: Schedule 101 | G55: Schedule 111
B56: Basic Charge | C56: Block 1 | D56: Block 2 | E56: Total Bill | G56: Minimum Charge | H56: Block 1 | I56: Block 2 | J56: Block 3 | K56: Total Bill | M56: Bill Differential
B57: ='Exh3'!L13 -> 9 | C57: ='Rate Design'!D28/100 -> 0.81923 | D57: ='Rate Design'!D29/100 -> 0.92536 | G57: ='Rate Design'!E27 -> 87.04 | H57: ='Rate Design'!E28/100 -> 0.49535 | I57: ='Rate Design'!E29/100 -> 0.79914 | J57: ='Rate Design'!E30/100 -> 0.72233
A58: 10 | B58: =$B$57 -> 9 | C58: =A58*$C$57 -> 8.1923 | E58: =SUM(B58:D58) -> 17.1923 | G58: =$G$57 -> 87.04 | H58: =A58*$H$57 -> 4.9535 | K58: =SUM(G58:J58) -> 91.9935 | M58: =K58-E58 -> 74.8012
A59: =A58+10 -> 20 | B59: 9 | C59: =A59*$C$57 -> 16.3846 | E59: =SUM(B59:D59) -> 25.3846 | G59: =$G$57 -> 87.04 | H59: =A59*$H$57 -> 9.907 | K59: =SUM(G59:J59) -> 96.947 | M59: 71.5624
A60: =A59+10 -> 30 | B60: 9 | C60: 24.5769 | E60: 33.5769 | G60: 87.04 | H60: 14.8605 | K60: 101.9005 | M60: 68.3236
A61: 40 | B61: 9 | C61: 32.7692 | E61: 41.7692 | G61: 87.04 | H61: 19.814 | K61: 106.854 | M61: 65.0848
A62: 50 | B62: 9 | C62: 40.9615 | E62: 49.9615 | G62: 87.04 | H62: 24.7675 | K62: 111.8075 | M62: 61.846
A63: 60 | B63: 9 | C63: 49.1538 | E63: 58.1538 | G63: 87.04 | H63: 29.721 | K63: 116.761 | M63: 58.6072
A64: 70 | B64: 9 | C64: =A64*$C$57 -> 57.3461 | E64: 66.3461 | G64: 87.04 | H64: 34.6745 | K64: 121.7145 | M64: 55.3684
A65: 80 | B65: 9 | C65: =70*$C$57 -> 57.3461 | D65: =(A65-70)*$D$57 -> 9.2536 | E65: 75.5997 | G65: 87.04 | H65: 39.628 | K65: 126.668 | M65: 51.0683
A66: 90 | B66: 9 | C66: =70*$C$57 -> 57.3461 | D66: =(A66-70)*$D$57 -> 18.5072 | E66: 84.8533 | G66: 87.04 | H66: 44.5815 | K66: 131.6215 | M66: 46.7682
A67: 100 | B67: 9 | C67: 57.3461 | D67: 27.7608 | E67: 94.1069 | G67: 87.04 | H67: 49.535 | K67: 136.575 | M67: 42.4681
A68: 110 | B68: 9 | C68: 57.3461 | D68: 37.0144 | E68: 103.3605 | G68: 87.04 | H68: 54.4885 | K68: 141.5285 | M68: 38.168
A69: 120 | B69: 9 | C69: 57.3461 | D69: 46.268 | E69: 112.6141 | G69: 87.04 | H69: 59.442 | K69: 146.482 | M69: 33.8679
A70: 130 | B70: 9 | C70: 57.3461 | D70: 55.5216 | E70: 121.8677 | G70: 87.04 | H70: 64.3955 | K70: 151.4355 | M70: 29.5678
A71: 140 | B71: 9 | C71: 57.3461 | D71: 64.7752 | E71: 131.1213 | G71: 87.04 | H71: 69.349 | K71: 156.389 | M71: 25.2677
A72: 150 | B72: 9 | C72: 57.3461 | D72: 74.0288 | E72: 140.3749 | G72: 87.04 | H72: 74.3025 | K72: 161.3425 | M72: 20.9676
A73: 160 | B73: 9 | C73: 57.3461 | D73: 83.2824 | E73: 149.6285 | G73: 87.04 | H73: 79.256 | K73: 166.296 | M73: 16.6675
A74: 170 | B74: 9 | C74: 57.3461 | D74: 92.536 | E74: 158.8821 | G74: 87.04 | H74: 84.2095 | K74: 171.2495 | M74: 12.3674
A75: 180 | B75: 9 | C75: 57.3461 | D75: 101.7896 | E75: 168.1357 | G75: 87.04 | H75: 89.163 | K75: 176.203 | M75: 8.0673
A76: 190 | B76: 9 | C76: 57.3461 | D76: 111.0432 | E76: 177.3893 | G76: 87.04 | H76: 94.1165 | K76: 181.1565 | M76: 3.7672
A77: 200 | B77: 9 | C77: 57.3461 | D77: 120.2968 | E77: 186.6429 | G77: 87.04 | H77: 99.07 | K77: 186.11 | M77: -0.5329 | O77: Differential sb cost of gas between 101 & 111
A78: 210 | B78: 9 | C78: 57.3461 | D78: 129.5504 | E78: 195.8965 | G78: 87.04 | H78: =200*$H$57 -> 99.07 | I78: =(A78-200)*$I$57 -> 7.9914 | K78: 194.1014 | M78: -1.7951
A79: 220 | B79: 9 | C79: 57.3461 | D79: 138.804 | E79: 205.1501 | G79: 87.04 | H79: 99.07 | I79: =(A79-200)*$I$57 -> 15.9828 | K79: 202.0928 | M79: -3.0573
A80: 230 | B80: 9 | C80: 57.3461 | D80: 148.0576 | E80: 214.4037 | G80: 87.04 | H80: 99.07 | I80: 23.9742 | K80: 210.0842 | M80: -4.3195
A81: 240 | B81: 9 | C81: 57.3461 | D81: 157.3112 | E81: 223.6573 | G81: 87.04 | H81: 99.07 | I81: 31.9656 | K81: 218.0756 | M81: -5.5817
A82: 250 | B82: 9 | C82: 57.3461 | D82: 166.5648 | E82: 232.9109 | G82: 87.04 | H82: 99.07 | I82: 39.957 | K82: 226.067 | M82: -6.8439
A83: 260 | B83: 9 | C83: 57.3461 | D83: 175.8184 | E83: 242.1645 | G83: 87.04 | H83: 99.07 | I83: 47.9484 | K83: 234.0584 | M83: -8.1061
A84: 270 | B84: 9 | C84: 57.3461 | D84: 185.072 | E84: 251.4181 | G84: 87.04 | H84: 99.07 | I84: 55.9398 | K84: 242.0498 | M84: -9.3683
A85: 280 | B85: 9 | C85: 57.3461 | D85: 194.3256 | E85: 260.6717 | G85: 87.04 | H85: 99.07 | I85: 63.9312 | K85: 250.0412 | M85: -10.6305
A86: 290 | B86: 9 | C86: 57.3461 | D86: 203.5792 | E86: 269.9253 | G86: 87.04 | H86: 99.07 | I86: 71.9226 | K86: 258.0326 | M86: -11.8927
A87: 300 | B87: 9 | C87: 57.3461 | D87: 212.8328 | E87: 279.1789 | G87: 87.04 | H87: 99.07 | I87: 79.914 | K87: 266.024 | M87: -13.1549
A88: 310 | B88: 9 | C88: 57.3461 | D88: 222.0864 | E88: 288.4325 | G88: 87.04 | H88: 99.07 | I88: 87.9054 | K88: 274.0154 | M88: -14.4171
A89: 320 | B89: 9 | C89: 57.3461 | D89: 231.34 | E89: 297.6861 | G89: 87.04 | H89: 99.07 | I89: 95.8968 | K89: 282.0068 | M89: -15.6793
A90: 330 | B90: 9 | C90: 57.3461 | D90: 240.5936 | E90: 306.9397 | G90: 87.04 | H90: 99.07 | I90: 103.8882 | K90: 289.9982 | M90: -16.9415
A91: 340 | B91: 9 | C91: 57.3461 | D91: 249.8472 | E91: 316.1933 | G91: 87.04 | H91: 99.07 | I91: 111.8796 | K91: 297.9896 | M91: -18.2037
A92: 350 | B92: 9 | C92: 57.3461 | D92: 259.1008 | E92: 325.4469 | G92: 87.04 | H92: 99.07 | I92: 119.871 | K92: 305.981 | M92: -19.4659
A93: 500 | B93: 9 | C93: 57.3461 | D93: =(A93-70)*$D$57 -> 397.9048 | E93: =SUM(B93:D93) -> 464.2509 | G93: 87.04 | H93: 99.07 | I93: =(A93-200)*$I$57 -> 239.742 | K93: =SUM(G93:J93) -> 425.852 | M93: -38.3989
A96: Breakeven Analysis (Base Rates)
A98: Schedule 111 | H98: Schedule 121
B99: Basic Charge | C99: Block 1 | D99: Block 2 | E99: Block 3 | F99: Total Bill | H99: Minimum Charge | I99: Block 1 | J99: Block 2 | K99: Block 3 | L99: Block 4 | M99: Total Bill | O99: Bill Differential
B100: ='Rate Design'!E37 -> 87.04 | C100: ='Rate Design'!E28/100 -> 0.49535 | D100: ='Rate Design'!E29/100 -> 0.79914 | E100: ='Rate Design'!E40/100 -> 0.75751 | H100: ='Rate Design'!F27 -> 215.24 | I100: ='Rate Design'!F28/100 -> 0.47449 | J100: ='Rate Design'!F29/100 -> 0.79675 | K100: ='Rate Design'!F30/100 -> 0.71793 | L100: ='Rate Design'!F31/100 -> 0.66844
A101: 200 | B101: =$B$100 -> 87.04 | C101: =A101*$C$100 -> 99.07 | F101: =SUM(B101:E101) -> 186.11 | H101: =$H$100 -> 215.24 | I101: =A101*$I$100 -> 94.898 | M101: =SUM(H101:L101) -> 310.138 | O101: =M101-F101 -> 124.028
A102: 500 | B102: =$B$100 -> 87.04 | C102: =$C$101 -> 99.07 | D102: =(A102-200)*$D$100 -> 239.742 | F102: =SUM(B102:E102) -> 425.852 | H102: =$H$100 -> 215.24 | I102: =A102*$I$100 -> 237.245 | M102: =SUM(H102:L102) -> 452.485 | O102: 26.633
A103: 1000 | B103: 87.04 | C103: =$C$101 -> 99.07 | D103: =(A103-200)*$D$100 -> 639.312 | F103: 825.422 | H103: 215.24 | I103: =$I$102 -> 237.245 | J103: =(A103-500)*J100 -> 398.375 | M103: 850.86 | O103: 25.438
A104: 5000 | B104: 87.04 | C104: 99.07 | D104: =$D$103 -> 639.312 | E104: =(A104-1000)*$E$100 -> 3030.04 | F104: 3855.462 | H104: 215.24 | I104: =$I$102 -> 237.245 | J104: =$J$103 -> 398.375 | K104: =(A104-1000)*$K$100 -> 2871.72 | M104: 3722.58 | O104: -132.882
A105: 10000 | B105: 87.04 | C105: 99.07 | D105: =$D$103 -> 639.312 | E105: =(A105-1000)*$E$100 -> 6817.59 | F105: 7643.012 | H105: 215.24 | I105: 237.245 | J105: =$J$103 -> 398.375 | K105: =(A105-1000)*$K$100 -> 6461.37 | M105: 7312.23 | O105: -330.782
A106: 15000 | B106: 87.04 | C106: 99.07 | D106: 639.312 | E106: 10605.14 | F106: 11430.562 | H106: 215.24 | I106: 237.245 | J106: 398.375 | K106: =$K$105 -> 6461.37 | L106: =(A106-10000)*$L$100 -> 3342.2 | M106: 10654.43 | O106: -776.132
A107: 20000 | B107: 87.04 | C107: 99.07 | D107: 639.312 | E107: =(A107-1000)*$E$100 -> 14392.69 | F107: 15218.112 | H107: 215.24 | I107: 237.245 | J107: 398.375 | K107: =$K$105 -> 6461.37 | L107: =(A107-10000)*$L$100 -> 6684.4 | M107: 13996.63 | O107: -1221.482

Sheet Bill Determ
A1: AVISTA UTILITIES
A2: WASHINGTON GAS
A3: USAGE & BILLINGS BY RATE SCHEDULE
A4: 12 MONTHS ENDED DECEMBER 31, 2015
A6: Schedule 101 | B6: Total therms | C6: Total Billings | E6: 0-70 | F6: >70 | G6: Total Therms
A7: therms per Revenue Run(1)(2) | B7: 117011207 | C7: 1802235 | E7: 74519037 | F7: 42492170 | G7: =SUM(D7:F7) -> 117011207
G8: 117011207
A9: Schedule 111,112 | B9: 0-200 thms | C9: 201-1000 thms | D9: > 1000 thms | G9: =G8-G7 -> 0
A10: therms by block(2) | B10: 5632648 | C10: 14800997 | D10: 25823248 | E10: =SUM(B10:D10) -> 46256893
A11: less: shifted to Sch 146 | B11: 0 | C11: 0 | D11: 0 | E11: =SUM(B11:D11) -> 0
A12: Total therms by block | B12: =SUM(B10:B11) -> 5632648 | C12: =SUM(C10:C11) -> 14800997 | D12: =SUM(D10:D11) -> 25823248 | E12: =SUM(E10:E11) -> 46256893
A13: Per Rev. Run(1) | E13: 46256893 | F13: 30276
A14: less: shifted to Sch. 146 (2) | B14: 0 | C14: 0 | D14: 0 | E14: =SUM(B14:D14) -> 0 | F14: 0
A15: less: shifted from Sch. 121 | E15: 0 | F15: 0
A16: Total | E16: =E13+E14+E15 -> 46256893 | F16: =F13+F14+F15 -> 30276
A17: Adjust. To Actual | E17: =E16-E12 -> 0
D19: 1001-10000 | E19: 10000- | G19: Total
A20: Schedule 121,122 | B20: 0-500 thms | C20: 501-1000 thms | D20: therms | E20: 25000 thms | F20: >25000 thms | G20: therms | H20: Total Billings
A21: therms by block(3) | B21: 177068 | C21: 176746 | D21: 2926401 | E21: 1786297 | F21: 874046 | G21: =SUM(B21:F21) -> 5940558 | H21: 329
B23: first | C23: next | D23: next | E23: over | F23: Total
A24: Schedule 131,132 | B24: 10000 thms | C24: 15000 thms | D24: 25000 thms | E24: 50000 thms | F24: therms | G24: Total Billings
A25: billed/pro forma therms(3) | B25: ='Big Schedules'!P103 -> 240000 | C25: 360000 | D25: 449338 | E25: 238882 | F25: =SUM(B25:E25) -> 1288220 | G25: 24
B27: first | C27: next | D27: next | E27: next | F27: over | G27: Total
A28: Schedule 146 | B28: 20000 thms | C28: 30000 thms | D28: 250000 thms | E28: 200000 thms | F28: 500000 thms | G28: therms | H28: Total Billings
A29: billed/pro forma therms(4) | B29: 8309188 | C29: 7562641 | D29: 11926882 | E29: 2839693 | F29: 385474 | G29: =SUM(B29:F29) -> 31023878 | H29: 501
A31: Sch. 147-Interdepartmental(3) | B31: Total therms
A32: billed/pro forma therms | B32: 739727 | C32: 10
A34: Sch. 148-Sp. Contracts(3) | B34: Total therms | C34: Total Billings
A35: Kaiser -Trentwood | B35: 20651786 | C35: 12
A36: Lamb-Weston | B36: 7028636 | C36: 12
A37: Mutual Materials | B37: 1730058 | C37: 12
A38: Washington Potato | B38: 6121048 | C38: 12
A39: Total | B39: =SUM(B35:B38) -> 35531528 | C39: =SUM(C35:C38) -> 48
A41: Wash. State Univ. | B41: 9870961 | C41: 12
A43: (1) shown on workpaper PDE-G-12
A44: (2) shown on workpaper PDE-G-29
A45: (3) shown on workpaper PDE-G-10
A46: (4) shown on workpaper PDE-G-9
A54: USAGE
A55: Revenue Run therms, this sheet | B55: =B7+E16+F25+G29+B32+B39+B41+G21 -> 247662972
A57: actual Revenue Run therms | B57: =#REF! -> 
A58: less:
A59: Misc adjustment | B59: 0
A60: Sch 121/122 normalize | B60: =#REF!+#REF!-G21 -> 
A61: Sch 146 normalize | B61: =#REF!-G29 -> 
A62: Sch 11/12 Shifting | B62: =-E15-E14 -> 0
B63: =B57-SUM(B58:B62) -> 
A64: Diff | B64: =B55-B63 -> 
A66: from Present Rev tab | B66: =SUM('Pres & Prop Rev'!D20:J20) -> 247662972
A67: this sheet | B67: =B55 -> 247662972
A68: Diff | B68: =B66-B67 -> 0
A71: CUSTOMERS
A72: Customers from this sheet | B72: =C7+F16+G25+H29+C39+C41+H21 -> 1833425
A74: Rev. Run customers | B74: =#REF!*12 -> 
A75: less:
A76: Sch 111 | B76: =-F14 -> 0
A77: Sch 121/122 | B77: =-F15 -> 0
A78: Sch 131 normalize | B78: 0
A79: Stimson switching--reduce Sch 146 | B79: 0
A80: Sch 146 normalize | B80: =#REF!*12-(H29+B79) -> 
A81: Sch 147 customers not billed | B81: =#REF!*12 -> 
A82: Sch 148 normalize | B82: 0
B83: =B74-SUM(B75:B82) -> 
A84: Diff | B84: =B72-B83 -> 
A86: from Present Rev tab | B86: =SUM('Pres & Prop Rev'!D25:J26) -> 1833425
A87: Diff | B87: =B83-B86 -> 

Sheet Block Usage (hidden)
A1: WASHINGTON NATURAL GAS SYSTEM
C2: July | D2: August | E2: September | F2: October | G2: November | H2: December | I2: January | J2: February | K2: March | L2: April | M2: May | N2: June | O2: Annual Total
A3: Rate Design Program Monthly Results
A4: Block ID 994 | B4: Schedule 101
B5: Block 1 | C5: =2289856+338058 -> 2627914 | D5: =1685830+153167 -> 1838997 | E5: =1748325+172886 -> 1921211 | F5: =2425764+440062 -> 2865826 | G5: =3838030+2758236 -> 6596266 | H5: =4148979+4700019 -> 8848998 | I5: =4227979+5233524 -> 9461503 | J5: =4250537+5275282 -> 9525819 | K5: =4209112+4882989 -> 9092101 | L5: =4123889+4015673 -> 8139562 | M5: 6221393 | N5: =2904457+709593 -> 3614050 | O5: =SUM(C5:N5) -> 70753640
B6: Block 2 | C6: 286903 | D6: 144006 | E6: 224810 | F6: 278742 | G6: 1447215 | H6: 5714564 | I6: 10740840 | J6: 10755014 | K6: 6221729 | L6: 3048323 | M6: 1011294 | N6: 374714 | O6: =SUM(C6:N6) -> 40248154
A7: Therms | B7: Total | C7: =SUM(C5:C6) -> 2914817 | D7: 1983003 | E7: 2146021 | F7: 3144568 | G7: 8043481 | H7: 14563562 | I7: 20202343 | J7: 20280833 | K7: 15313830 | L7: 11187885 | M7: 7232687 | N7: 3988764 | O7: 111001794
B8: Billed Customers | C8: 146524 | D8: 146433 | E8: 147360 | F8: 146875 | G8: 147245 | H8: 147536 | I8: 147902 | J8: 147934 | K8: 147801 | L8: 147781 | M8: 147555 | N8: 147321 | O8: =SUM(C8:N8) -> 1768267
B9: Block 1 Limit | C9: =C8*70 -> 10256680 | D9: =D8*70 -> 10250310 | E9: 10315200 | F9: 10281250 | G9: 10307150 | H9: 10327520 | I9: 10353140 | J9: 10355380 | K9: 10346070 | L9: 10344670 | M9: 10328850 | N9: 10312470 | O9: =SUM(C9:N9) -> 123778690
B10: Revenue Run Total | C10: 2891517 | D10: 1968467 | E10: 2118366 | F10: 3134468 | G10: 8101674 | H10: 14671902 | I10: 20307726 | J10: 20355015 | K10: 15326447 | L10: 11144122 | M10: 7232104 | N10: 3936374 | O10: =SUM(C10:N10) -> 111188182
B11: Difference | C11: =C10-C7 -> -23300 | D11: -14536 | E11: -27655 | F11: -10100 | G11: 58193 | H11: 108340 | I11: 105383 | J11: 74182 | K11: 12617 | L11: -43763 | M11: -583 | N11: -52390 | O11: =SUM(C11:N11) -> 186388 | P11: =O11/O10 -> 0.001676329234
B13: Block 1 | C13: =(C5/C$7)*C$11 -> -21006.60048 | D13: =(D5/D$7)*D$11 -> -13480.39332 | E13: -24757.95447 | F13: -9204.711935 | G13: 47722.68466 | H13: 65828.70614 | I13: 49354.74913 | J13: 34842.96257 | K13: 7490.943697 | L13: -31839.05196 | M13: -501.4833518 | N13: -47468.35849 | O13: =SUM(C13:N13) -> 56981.4922
B14: Block 2 | C14: =(C6/C$7)*C$11 -> -2293.399517 | D14: =(D6/D$7)*D$11 -> -1055.606681 | E14: -2897.045532 | F14: -895.288065 | G14: 10470.31534 | H14: 42511.29386 | I14: 56028.25087 | J14: 39339.03743 | K14: 5126.056303 | L14: -11923.94804 | M14: -81.51664824 | N14: -4921.641506 | O14: =SUM(C14:N14) -> 129406.5078
C15: =SUM(C13:C14) -> -23300 | D15: -14536 | E15: -27655 | F15: -10100 | G15: 58193 | H15: 108340 | I15: 105383 | J15: 74182 | K15: 12617 | L15: -43763 | M15: -583 | N15: -52390 | O15: 186388
B17: Block 1 | C17: =C5+C13 -> 2606907.4 | D17: 1825516.607 | E17: 1896453.046 | F17: 2856621.288 | G17: 6643988.685 | H17: 8914826.706 | I17: 9510857.749 | J17: 9560661.963 | K17: 9099591.944 | L17: 8107722.948 | M17: 6220891.517 | N17: 3566581.642 | O17: =SUM(C17:N17) -> 70810621.49
B18: Block 2 | C18: =C6+C14 -> 284609.6005 | D18: 142950.3933 | E18: 221912.9545 | F18: 277846.7119 | G18: 1457685.315 | H18: 5757075.294 | I18: 10796868.25 | J18: 10794353.04 | K18: 6226855.056 | L18: 3036399.052 | M18: 1011212.483 | N18: 369792.3585 | O18: =SUM(C18:N18) -> 40377560.51
C19: =SUM(C17:C18) -> 2891517 | D19: 1968467 | E19: 2118366 | F19: 3134468 | G19: 8101674 | H19: 14671902 | I19: 20307726 | J19: 20355015 | K19: 15326447 | L19: 11144122 | M19: 7232104 | N19: 3936374 | O19: 111188182
C20: =C19-C10 -> 0 | D20: 0 | E20: 0 | F20: 0 | G20: 0 | H20: 0 | I20: 0 | J20: 0 | K20: 0 | L20: 0 | M20: 0 | N20: 0 | O20: 0
A22: Block ID 112 | B22: Schedule 111/112
B23: Block 1 | C23: 385837 | D23: 328604 | E23: 344979 | F23: 414826 | G23: 484771 | H23: 491754 | I23: 499898 | J23: 497370 | K23: 497803 | L23: 494976 | M23: 484842 | N23: 439745 | O23: =SUM(C23:N23) -> 5365405
B24: Block 2 | C24: 630575 | D24: 484518 | E24: 524497 | F24: 733663 | G24: 1281404 | H24: 1657418 | I24: 1780879 | J24: 1771850 | K24: 1684564 | L24: 1519740 | M24: 1206001 | N24: 813773 | O24: =SUM(C24:N24) -> 14088882
B25: Block 3 | C25: 544238 | D25: 418051 | E25: 432733 | F25: 667237 | G25: 1696849 | H25: 3254601 | I25: 4865771 | J25: 4776248 | K25: 3393296 | L25: 2368373 | M25: 1405487 | N25: 736422 | O25: =SUM(C25:N25) -> 24559306
A26: Therms | B26: Total | C26: =SUM(C23:C25) -> 1560650 | D26: =SUM(D23:D25) -> 1231173 | E26: 1302209 | F26: 1815726 | G26: 3463024 | H26: 5403773 | I26: =SUM(I23:I25) -> 7146548 | J26: =SUM(J23:J25) -> 7045468 | K26: 5575663 | L26: 4383089 | M26: 3096330 | N26: 1989940 | O26: 44013593
B27: Revenue Run Total | C27: 1554169 | D27: 1217415 | E27: 1298886 | F27: 1814340 | G27: 3475374 | H27: 5430995 | I27: 7129379 | J27: 7046659 | K27: 5587113 | L27: 4364404 | M27: 3039370 | N27: 1984763 | O27: =SUM(C27:N27) -> 43942867
C28: =C27-C26 -> -6481 | D28: -13758 | E28: -3323 | F28: -1386 | G28: 12350 | H28: 27222 | I28: -17169 | J28: 1191 | K28: 11450 | L28: -18685 | M28: -56960 | N28: -5177 | O28: =SUM(C28:N28) -> -70726 | P28: =O28/O27 -> -0.001609498989
B30: Block 1 | C30: =(C23/C$26)*C$28 -> -1602.28725 | D30: =(D23/D$26)*D$28 -> -3672.054075 | E30: -880.3235249 | F30: -316.6495584 | G30: 1728.813271 | H30: 2477.255686 | I30: -1200.964264 | J30: 84.07783131 | K30: 1022.272033 | L30: -2110.070446 | M30: -8919.139859 | N30: -1144.034426 | O30: =SUM(C30:N30) -> -14533.10458
B31: Block 2 | C31: =(C24/C$26)*C$28 -> -2618.62466 | D31: =(D24/D$26)*D$28 -> -5414.347654 | E31: -1338.420738 | F31: -560.0277344 | G31: 4569.803559 | H31: 8349.394543 | I31: -4278.416874 | J31: 299.522097 | K31: 3459.365783 | L31: -6478.614032 | M31: -22185.56063 | N31: -2117.100426 | O31: =SUM(C31:N31) -> -28313.02677
B32: Block 3 | C32: =(C25/C$26)*C$28 -> -2260.08809 | D32: =(D25/D$26)*D$28 -> -4671.598271 | E32: -1104.255737 | F32: -509.3227073 | G32: 6051.38317 | H32: 16395.34977 | I32: -11689.61886 | J32: 807.4000716 | K32: 6968.362184 | L32: -10096.31552 | M32: -25855.29951 | N32: -1915.865149 | O32: =SUM(C32:N32) -> -27879.86865
C33: =SUM(C30:C32) -> -6481 | D33: =SUM(D30:D32) -> -13758 | E33: -3323 | F33: -1386 | G33: 12350 | H33: 27222 | I33: -17169 | J33: 1191 | K33: 11450 | L33: -18685 | M33: -56960 | N33: -5177 | O33: =SUM(O30:O32) -> -70726
B35: Block 1 | C35: =C23+C30 -> 384234.7127 | D35: =D23+D30 -> 324931.9459 | E35: 344098.6765 | F35: 414509.3504 | G35: 486499.8133 | H35: 494231.2557 | I35: 498697.0357 | J35: 497454.0778 | K35: 498825.272 | L35: 492865.9296 | M35: 475922.8601 | N35: 438600.9656 | O35: =SUM(C35:N35) -> 5350871.895
B36: Block 2 | C36: =C24+C31 -> 627956.3753 | D36: 479103.6523 | E36: 523158.5793 | F36: 733102.9723 | G36: 1285973.804 | H36: 1665767.395 | I36: 1776600.583 | J36: 1772149.522 | K36: 1688023.366 | L36: 1513261.386 | M36: 1183815.439 | N36: 811655.8996 | O36: =SUM(C36:N36) -> 14060568.97
B37: Block 3 | C37: 541977.9119 | D37: 413379.4017 | E37: 431628.7443 | F37: 666727.6773 | G37: 1702900.383 | H37: 3270996.35 | I37: 4854081.381 | J37: 4777055.4 | K37: 3400264.362 | L37: 2358276.684 | M37: 1379631.7 | N37: 734506.1349 | O37: =SUM(C37:N37) -> 24531426.13
C38: =SUM(C35:C37) -> 1554169 | D38: 1217415 | E38: 1298886 | F38: 1814340 | G38: 3475374 | H38: 5430995 | I38: 7129379 | J38: 7046659 | K38: 5587113 | L38: 4364404 | M38: 3039370 | N38: 1984763 | O38: 43942867
C39: =C38-C27 -> 0 | D39: 0 | E39: 0 | F39: 0 | G39: 0 | H39: 0 | I39: 0 | J39: 0 | K39: 0 | L39: 0 | M39: 0 | N39: 0 | O39: 0

Sheet Big Schedules (hidden)
A1: Washington Gas Billing Determinants by Customer
P2: 1st | Q2: =P3 -> 20000 | R2: =Q3 -> 50000 | S2: =R3 -> 300000 | T2: =S3 -> 500000
A3: ANNUAL USAGE, Sch 146 | N3: 12-mo ended | P3: 20000 | Q3: 50000 | R3: 300000 | S3: 500000 | T3: 99999999 | W3: Present Base | X3: Proposed Base
A4: Washington | B4: 2012-07-01 | C4: 2012-08-01 | D4: 2012-09-01 | E4: 2012-10-01 | F4: 2012-11-01 | G4: 2012-12-01 | H4: 2013-01-01 | I4: 2013-02-01 | J4: 2013-03-01 | K4: 2013-04-01 | L4: 2013-05-01 | M4: 2013-06-01 | N4: Total | P4: thms/mo | Q4: thms/mo | R4: thms/mo | S4: thms/mo | T4: thms/mo | W4: Revenue | X4: Revenue
A5: 92 CES/CER-M | B5: 20564 | C5: 573 | D5: 6848 | E5: 22580 | F5: 188950 | G5: 347042 | H5: 470645 | I5: 527900 | J5: 351026 | K5: 272295 | L5: 183435 | M5: 23446 | N5: =SUM(B5:M5) -> 2415304 | P5: =P$3*12-SUMPRODUCT(--($B5:$M5<=P$3),P$3-$B5:$M5) -> 207421 | Q5: =Q$3*12-SUM($P5:P5)-SUMPRODUCT(--($B5:$M5<=Q$3),Q$3-$B5:$M5) -> 216590 | R5: =R$3*12-SUM($P5:Q5)-SUMPRODUCT(--($B5:$M5<=R$3),R$3-$B5:$M5) -> 1494680 | S5: =S$3*12-SUM($P5:R5)-SUMPRODUCT(--($B5:$M5<=S$3),S$3-$B5:$M5) -> 468713 | T5: =T$3*12-SUM($P5:S5)-SUMPRODUCT(--($B5:$M5<=T$3),T$3-$B5:$M5) -> 27900 | W5: =P5*'Exh3'!$F$49+'Big Schedules'!Q5*'Exh3'!$F$50+'Big Schedules'!R5*'Exh3'!$F$51+'Big Schedules'!S5*'Exh3'!$F$52+'Big Schedules'!T5*'Exh3'!$F$53+'Exh3'!$F$47*12 -> 167685.4229 | X5: =P5*'Exh3'!$L$49+'Big Schedules'!Q5*'Exh3'!$L$50+'Big Schedules'!R5*'Exh3'!$L$51+'Big Schedules'!S5*'Exh3'!$L$52+'Big Schedules'!T5*'Exh3'!$L$53+'Exh3'!$L$47*12 -> 178352.0974 | Z5: =X5/W5-1 -> 0.06361122077
A6: ALSCO | B6: 25131 | C6: 24359 | D6: 26353 | E6: 23294 | F6: 29175 | G6: 26926 | H6: 26435 | I6: 29483 | J6: 25565 | K6: 25713 | L6: 26414 | M6: 26613 | N6: =SUM(B6:M6) -> 315461 | P6: 240000 | Q6: =Q$3*12-SUM($P6:P6)-SUMPRODUCT(--($B6:$M6<=Q$3),Q$3-$B6:$M6) -> 75461 | R6: =R$3*12-SUM($P6:Q6)-SUMPRODUCT(--($B6:$M6<=R$3),R$3-$B6:$M6) -> 0 | S6: =S$3*12-SUM($P6:R6)-SUMPRODUCT(--($B6:$M6<=S$3),S$3-$B6:$M6) -> 0 | T6: =T$3*12-SUM($P6:S6)-SUMPRODUCT(--($B6:$M6<=T$3),T$3-$B6:$M6) -> 0 | W6: =P6*'Exh3'!$F$49+'Big Schedules'!Q6*'Exh3'!$F$50+'Big Schedules'!R6*'Exh3'!$F$51+'Big Schedules'!S6*'Exh3'!$F$52+'Big Schedules'!T6*'Exh3'!$F$53+'Exh3'!$F$47*12 -> 30262.6218 | X6: =P6*'Exh3'!$L$49+'Big Schedules'!Q6*'Exh3'!$L$50+'Big Schedules'!R6*'Exh3'!$L$51+'Big Schedules'!S6*'Exh3'!$L$52+'Big Schedules'!T6*'Exh3'!$L$53+'Exh3'!$L$47*12 -> 32943.14949 | Z6: =X6/W6-1 -> 0.08857552752
A7: BAKER COMMODITIES, INC | B7: 28687 | C7: 32273 | D7: 45398 | E7: 27675 | F7: 42624 | G7: 48836 | H7: 33733 | I7: 50735 | J7: 39818 | K7: 45937 | L7: 33067 | M7: 42330 | N7: 471113 | P7: 240000 | Q7: =Q$3*12-SUM($P7:P7)-SUMPRODUCT(--($B7:$M7<=Q$3),Q$3-$B7:$M7) -> 230378 | R7: =R$3*12-SUM($P7:Q7)-SUMPRODUCT(--($B7:$M7<=R$3),R$3-$B7:$M7) -> 735 | S7: =S$3*12-SUM($P7:R7)-SUMPRODUCT(--($B7:$M7<=S$3),S$3-$B7:$M7) -> 0 | T7: =T$3*12-SUM($P7:S7)-SUMPRODUCT(--($B7:$M7<=T$3),T$3-$B7:$M7) -> 0 | W7: =P7*'Exh3'!$F$49+'Big Schedules'!Q7*'Exh3'!$F$50+'Big Schedules'!R7*'Exh3'!$F$51+'Big Schedules'!S7*'Exh3'!$F$52+'Big Schedules'!T7*'Exh3'!$F$53+'Exh3'!$F$47*12 -> 41744.44005 | X7: =P7*'Exh3'!$L$49+'Big Schedules'!Q7*'Exh3'!$L$50+'Big Schedules'!R7*'Exh3'!$L$51+'Big Schedules'!S7*'Exh3'!$L$52+'Big Schedules'!T7*'Exh3'!$L$53+'Exh3'!$L$47*12 -> 45092.40612 | Z7: 0.0802014847
A8: BOISE CASCADE LLC INLAND REGION | B8: 34079 | C8: 57633 | D8: 35917 | E8: 29740 | F8: 35920 | G8: 31209 | H8: 24090 | I8: 39532 | J8: 32771 | K8: 33116 | L8: 34667 | M8: 31156 | N8: 419830 | P8: 240000 | Q8: =Q$3*12-SUM($P8:P8)-SUMPRODUCT(--($B8:$M8<=Q$3),Q$3-$B8:$M8) -> 172197 | R8: =R$3*12-SUM($P8:Q8)-SUMPRODUCT(--($B8:$M8<=R$3),R$3-$B8:$M8) -> 7633 | S8: =S$3*12-SUM($P8:R8)-SUMPRODUCT(--($B8:$M8<=S$3),S$3-$B8:$M8) -> 0 | T8: =T$3*12-SUM($P8:S8)-SUMPRODUCT(--($B8:$M8<=T$3),T$3-$B8:$M8) -> 0 | W8: =P8*'Exh3'!$F$49+'Big Schedules'!Q8*'Exh3'!$F$50+'Big Schedules'!R8*'Exh3'!$F$51+'Big Schedules'!S8*'Exh3'!$F$52+'Big Schedules'!T8*'Exh3'!$F$53+'Exh3'!$F$47*12 -> 37910.02007 | X8: =P8*'Exh3'!$L$49+'Big Schedules'!Q8*'Exh3'!$L$50+'Big Schedules'!R8*'Exh3'!$L$51+'Big Schedules'!S8*'Exh3'!$L$52+'Big Schedules'!T8*'Exh3'!$L$53+'Exh3'!$L$47*12 -> 41035.08491 | Z8: 0.08243374269
A9: BOISE CASCADE LLC INLAND REGION | B9: 108951 | C9: 0 | D9: 0 | F9: 6717 | G9: 20259 | H9: 17788 | I9: 30614 | J9: 36063 | K9: 32644 | L9: 74305 | M9: 16747 | N9: 344088 | P9: 161252 | Q9: =Q$3*12-SUM($P9:P9)-SUMPRODUCT(--($B9:$M9<=Q$3),Q$3-$B9:$M9) -> 99580 | R9: =R$3*12-SUM($P9:Q9)-SUMPRODUCT(--($B9:$M9<=R$3),R$3-$B9:$M9) -> 83256 | S9: =S$3*12-SUM($P9:R9)-SUMPRODUCT(--($B9:$M9<=S$3),S$3-$B9:$M9) -> 0 | T9: =T$3*12-SUM($P9:S9)-SUMPRODUCT(--($B9:$M9<=T$3),T$3-$B9:$M9) -> 0 | W9: =P9*'Exh3'!$F$49+'Big Schedules'!Q9*'Exh3'!$F$50+'Big Schedules'!R9*'Exh3'!$F$51+'Big Schedules'!S9*'Exh3'!$F$52+'Big Schedules'!T9*'Exh3'!$F$53+'Exh3'!$F$47*12 -> 31059.19932 | X9: =P9*'Exh3'!$L$49+'Big Schedules'!Q9*'Exh3'!$L$50+'Big Schedules'!R9*'Exh3'!$L$51+'Big Schedules'!S9*'Exh3'!$L$52+'Big Schedules'!T9*'Exh3'!$L$53+'Exh3'!$L$47*12 -> 33785.83288 | Z9: 0.08778827593
A10: CENTRAL PRE-MIX BLOCK | B10: 22163 | C10: 13832 | D10: 15498 | E10: 21585 | F10: 25609 | G10: 20647 | H10: 11565 | I10: 31991 | J10: 29346 | K10: 28397 | L10: 22651 | M10: 22785 | N10: 266069 | P10: 220895 | Q10: =Q$3*12-SUM($P10:P10)-SUMPRODUCT(--($B10:$M10<=Q$3),Q$3-$B10:$M10) -> 45174 | R10: =R$3*12-SUM($P10:Q10)-SUMPRODUCT(--($B10:$M10<=R$3),R$3-$B10:$M10) -> 0 | S10: =S$3*12-SUM($P10:R10)-SUMPRODUCT(--($B10:$M10<=S$3),S$3-$B10:$M10) -> 0 | T10: =T$3*12-SUM($P10:S10)-SUMPRODUCT(--($B10:$M10<=T$3),T$3-$B10:$M10) -> 0 | W10: =P10*'Exh3'!$F$49+'Big Schedules'!Q10*'Exh3'!$F$50+'Big Schedules'!R10*'Exh3'!$F$51+'Big Schedules'!S10*'Exh3'!$F$52+'Big Schedules'!T10*'Exh3'!$F$53+'Exh3'!$F$47*12 -> 26443.82775 | X10: =P10*'Exh3'!$L$49+'Big Schedules'!Q10*'Exh3'!$L$50+'Big Schedules'!R10*'Exh3'!$L$51+'Big Schedules'!S10*'Exh3'!$L$52+'Big Schedules'!T10*'Exh3'!$L$53+'Exh3'!$L$47*12 -> 28902.33811 | Z10: 0.09297104728
A11: COMMUNITY COLLEGES OF SPOKANE (SCC) | B11: 17185 | C11: 6084 | D11: 5232 | E11: 11128 | F11: 37892 | G11: 54229 | H11: 71400 | I11: 86076 | J11: 61617 | K11: 52938 | L11: 39222 | M11: 20035 | N11: 463038 | P11: 199629 | Q11: =Q$3*12-SUM($P11:P11)-SUMPRODUCT(--($B11:$M11<=Q$3),Q$3-$B11:$M11) -> 187149 | R11: =R$3*12-SUM($P11:Q11)-SUMPRODUCT(--($B11:$M11<=R$3),R$3-$B11:$M11) -> 76260 | S11: =S$3*12-SUM($P11:R11)-SUMPRODUCT(--($B11:$M11<=S$3),S$3-$B11:$M11) -> 0 | T11: =T$3*12-SUM($P11:S11)-SUMPRODUCT(--($B11:$M11<=T$3),T$3-$B11:$M11) -> 0 | W11: =P11*'Exh3'!$F$49+'Big Schedules'!Q11*'Exh3'!$F$50+'Big Schedules'!R11*'Exh3'!$F$51+'Big Schedules'!S11*'Exh3'!$F$52+'Big Schedules'!T11*'Exh3'!$F$53+'Exh3'!$F$47*12 -> 40236.99741 | X11: =P11*'Exh3'!$L$49+'Big Schedules'!Q11*'Exh3'!$L$50+'Big Schedules'!R11*'Exh3'!$L$51+'Big Schedules'!S11*'Exh3'!$L$52+'Big Schedules'!T11*'Exh3'!$L$53+'Exh3'!$L$47*12 -> 43497.2046 | Z11: 0.08102511121
A12: COMMUNITY COLLEGES OF SPOKANE (SFCC) | B12: 10968 | C12: 3275 | D12: 4464 | E12: 9372 | F12: 23630 | G12: 36192 | H12: 48104 | I12: 63853 | J12: 45043 | K12: 37101 | L12: 25694 | M12: 13420 | N12: 321116 | P12: 181499 | Q12: =Q$3*12-SUM($P12:P12)-SUMPRODUCT(--($B12:$M12<=Q$3),Q$3-$B12:$M12) -> 125764 | R12: =R$3*12-SUM($P12:Q12)-SUMPRODUCT(--($B12:$M12<=R$3),R$3-$B12:$M12) -> 13853 | S12: =S$3*12-SUM($P12:R12)-SUMPRODUCT(--($B12:$M12<=S$3),S$3-$B12:$M12) -> 0 | T12: =T$3*12-SUM($P12:S12)-SUMPRODUCT(--($B12:$M12<=T$3),T$3-$B12:$M12) -> 0 | W12: =P12*'Exh3'!$F$49+'Big Schedules'!Q12*'Exh3'!$F$50+'Big Schedules'!R12*'Exh3'!$F$51+'Big Schedules'!S12*'Exh3'!$F$52+'Big Schedules'!T12*'Exh3'!$F$53+'Exh3'!$F$47*12 -> 30048.30658 | X12: =P12*'Exh3'!$L$49+'Big Schedules'!Q12*'Exh3'!$L$50+'Big Schedules'!R12*'Exh3'!$L$51+'Big Schedules'!S12*'Exh3'!$L$52+'Big Schedules'!T12*'Exh3'!$L$53+'Exh3'!$L$47*12 -> 32716.27043 | Z12: 0.08878915831
A13: CREACH GREENHOUSE | B13: 8108 | C13: 2887 | D13: 4065 | E13: 8055 | F13: 20990 | G13: 28692 | H13: 35444 | I13: 38943 | J13: 44017 | K13: 41053 | L13: 32972 | M13: 11554 | N13: 276780 | P13: 174669 | Q13: =Q$3*12-SUM($P13:P13)-SUMPRODUCT(--($B13:$M13<=Q$3),Q$3-$B13:$M13) -> 102111 | R13: =R$3*12-SUM($P13:Q13)-SUMPRODUCT(--($B13:$M13<=R$3),R$3-$B13:$M13) -> 0 | S13: =S$3*12-SUM($P13:R13)-SUMPRODUCT(--($B13:$M13<=S$3),S$3-$B13:$M13) -> 0 | T13: =T$3*12-SUM($P13:S13)-SUMPRODUCT(--($B13:$M13<=T$3),T$3-$B13:$M13) -> 0 | W13: =P13*'Exh3'!$F$49+'Big Schedules'!Q13*'Exh3'!$F$50+'Big Schedules'!R13*'Exh3'!$F$51+'Big Schedules'!S13*'Exh3'!$F$52+'Big Schedules'!T13*'Exh3'!$F$53+'Exh3'!$F$47*12 -> 26814.10521 | X13: =P13*'Exh3'!$L$49+'Big Schedules'!Q13*'Exh3'!$L$50+'Big Schedules'!R13*'Exh3'!$L$51+'Big Schedules'!S13*'Exh3'!$L$52+'Big Schedules'!T13*'Exh3'!$L$53+'Exh3'!$L$47*12 -> 29294.06598 | Z13: 0.09248717235
A14: DEACONESS MEDICAL CENTER | B14: 71210 | C14: 62731 | D14: 67381 | E14: 72357 | F14: 88319 | G14: 99425 | H14: 123643 | I14: 145667 | J14: 106276 | K14: 101556 | L14: 90062 | M14: 75455 | N14: 1104082 | P14: 240000 | Q14: =Q$3*12-SUM($P14:P14)-SUMPRODUCT(--($B14:$M14<=Q$3),Q$3-$B14:$M14) -> 360000 | R14: =R$3*12-SUM($P14:Q14)-SUMPRODUCT(--($B14:$M14<=R$3),R$3-$B14:$M14) -> 504082 | S14: =S$3*12-SUM($P14:R14)-SUMPRODUCT(--($B14:$M14<=S$3),S$3-$B14:$M14) -> 0 | T14: =T$3*12-SUM($P14:S14)-SUMPRODUCT(--($B14:$M14<=T$3),T$3-$B14:$M14) -> 0 | W14: =P14*'Exh3'!$F$49+'Big Schedules'!Q14*'Exh3'!$F$50+'Big Schedules'!R14*'Exh3'!$F$51+'Big Schedules'!S14*'Exh3'!$F$52+'Big Schedules'!T14*'Exh3'!$F$53+'Exh3'!$F$47*12 -> 84828.42038 | X14: =P14*'Exh3'!$L$49+'Big Schedules'!Q14*'Exh3'!$L$50+'Big Schedules'!R14*'Exh3'!$L$51+'Big Schedules'!S14*'Exh3'!$L$52+'Big Schedules'!T14*'Exh3'!$L$53+'Exh3'!$L$47*12 -> 90680.41772 | Z14: 0.06898628212
A15: EASTERN STATE HOSPITAL | B15: 21801 | C15: 14051 | D15: 13402 | E15: 18124 | F15: 37130 | G15: 52076 | H15: 60581 | I15: 64620 | J15: 50666 | K15: 46763 | L15: 36371 | M15: 27261 | N15: 442846 | P15: 225577 | Q15: =Q$3*12-SUM($P15:P15)-SUMPRODUCT(--($B15:$M15<=Q$3),Q$3-$B15:$M15) -> 189326 | R15: =R$3*12-SUM($P15:Q15)-SUMPRODUCT(--($B15:$M15<=R$3),R$3-$B15:$M15) -> 27943 | S15: =S$3*12-SUM($P15:R15)-SUMPRODUCT(--($B15:$M15<=S$3),S$3-$B15:$M15) -> 0 | T15: =T$3*12-SUM($P15:S15)-SUMPRODUCT(--($B15:$M15<=T$3),T$3-$B15:$M15) -> 0 | W15: =P15*'Exh3'!$F$49+'Big Schedules'!Q15*'Exh3'!$F$50+'Big Schedules'!R15*'Exh3'!$F$51+'Big Schedules'!S15*'Exh3'!$F$52+'Big Schedules'!T15*'Exh3'!$F$53+'Exh3'!$F$47*12 -> 39331.0607 | X15: =P15*'Exh3'!$L$49+'Big Schedules'!Q15*'Exh3'!$L$50+'Big Schedules'!R15*'Exh3'!$L$51+'Big Schedules'!S15*'Exh3'!$L$52+'Big Schedules'!T15*'Exh3'!$L$53+'Exh3'!$L$47*12 -> 42538.68979 | Z15: 0.08155460425
A16: EASTERN WASHINGTON UNIVERSITY | B16: 125830 | C16: 91471 | D16: 93395 | E16: 109341 | F16: 185750 | G16: 252094 | H16: 326069 | I16: 387174 | J16: 302341 | K16: 253075 | L16: 194397 | M16: 144586 | N16: 2465523 | P16: 240000 | Q16: =Q$3*12-SUM($P16:P16)-SUMPRODUCT(--($B16:$M16<=Q$3),Q$3-$B16:$M16) -> 360000 | R16: =R$3*12-SUM($P16:Q16)-SUMPRODUCT(--($B16:$M16<=R$3),R$3-$B16:$M16) -> 1749939 | S16: =S$3*12-SUM($P16:R16)-SUMPRODUCT(--($B16:$M16<=S$3),S$3-$B16:$M16) -> 115584 | T16: =T$3*12-SUM($P16:S16)-SUMPRODUCT(--($B16:$M16<=T$3),T$3-$B16:$M16) -> 0 | W16: =P16*'Exh3'!$F$49+'Big Schedules'!Q16*'Exh3'!$F$50+'Big Schedules'!R16*'Exh3'!$F$51+'Big Schedules'!S16*'Exh3'!$F$52+'Big Schedules'!T16*'Exh3'!$F$53+'Exh3'!$F$47*12 -> 174912.3241 | X16: =P16*'Exh3'!$L$49+'Big Schedules'!Q16*'Exh3'!$L$50+'Big Schedules'!R16*'Exh3'!$L$51+'Big Schedules'!S16*'Exh3'!$L$52+'Big Schedules'!T16*'Exh3'!$L$53+'Exh3'!$L$47*12 -> 185999.5787 | Z16: 0.06338749832
A17: FRANZ BAKERY | B17: 30967 | C17: 28721 | D17: 31071 | E17: 29171 | F17: 36477 | G17: 38445 | H17: 41951 | I17: 47338 | J17: 35165 | K17: 36112 | L17: 34083 | M17: 36645 | N17: 426146 | P17: 240000 | Q17: =Q$3*12-SUM($P17:P17)-SUMPRODUCT(--($B17:$M17<=Q$3),Q$3-$B17:$M17) -> 186146 | R17: =R$3*12-SUM($P17:Q17)-SUMPRODUCT(--($B17:$M17<=R$3),R$3-$B17:$M17) -> 0 | S17: =S$3*12-SUM($P17:R17)-SUMPRODUCT(--($B17:$M17<=S$3),S$3-$B17:$M17) -> 0 | T17: =T$3*12-SUM($P17:S17)-SUMPRODUCT(--($B17:$M17<=T$3),T$3-$B17:$M17) -> 0 | W17: =P17*'Exh3'!$F$49+'Big Schedules'!Q17*'Exh3'!$F$50+'Big Schedules'!R17*'Exh3'!$F$51+'Big Schedules'!S17*'Exh3'!$F$52+'Big Schedules'!T17*'Exh3'!$F$53+'Exh3'!$F$47*12 -> 38431.1748 | X17: =P17*'Exh3'!$L$49+'Big Schedules'!Q17*'Exh3'!$L$50+'Big Schedules'!R17*'Exh3'!$L$51+'Big Schedules'!S17*'Exh3'!$L$52+'Big Schedules'!T17*'Exh3'!$L$53+'Exh3'!$L$47*12 -> 41586.54114 | Z17: 0.08210434254
A18: GONZAGA UNIVERSITY | B18: 12775 | C18: 5639 | D18: 6079 | E18: 12533 | F18: 52178 | G18: 74320 | H18: 87455 | I18: 106097 | J18: 80047 | K18: 66150 | L18: 51690 | M18: 15885 | N18: 570848 | P18: 192911 | Q18: =Q$3*12-SUM($P18:P18)-SUMPRODUCT(--($B18:$M18<=Q$3),Q$3-$B18:$M18) -> 210000 | R18: =R$3*12-SUM($P18:Q18)-SUMPRODUCT(--($B18:$M18<=R$3),R$3-$B18:$M18) -> 167937 | S18: =S$3*12-SUM($P18:R18)-SUMPRODUCT(--($B18:$M18<=S$3),S$3-$B18:$M18) -> 0 | T18: =T$3*12-SUM($P18:S18)-SUMPRODUCT(--($B18:$M18<=T$3),T$3-$B18:$M18) -> 0 | W18: =P18*'Exh3'!$F$49+'Big Schedules'!Q18*'Exh3'!$F$50+'Big Schedules'!R18*'Exh3'!$F$51+'Big Schedules'!S18*'Exh3'!$F$52+'Big Schedules'!T18*'Exh3'!$F$53+'Exh3'!$F$47*12 -> 47471.31762 | X18: =P18*'Exh3'!$L$49+'Big Schedules'!Q18*'Exh3'!$L$50+'Big Schedules'!R18*'Exh3'!$L$51+'Big Schedules'!S18*'Exh3'!$L$52+'Big Schedules'!T18*'Exh3'!$L$53+'Exh3'!$L$47*12 -> 51151.96483 | Z18: 0.07753412786
A19: GOODRICH | B19: 417973 | C19: 409302 | D19: 491644 | E19: 461423 | F19: 427804 | G19: 485819 | H19: 604869 | I19: 573657 | J19: 526557 | K19: 589583 | L19: 534731 | M19: 453856 | N19: 5977218 | P19: 240000 | Q19: =Q$3*12-SUM($P19:P19)-SUMPRODUCT(--($B19:$M19<=Q$3),Q$3-$B19:$M19) -> 360000 | R19: =R$3*12-SUM($P19:Q19)-SUMPRODUCT(--($B19:$M19<=R$3),R$3-$B19:$M19) -> 3000000 | S19: =S$3*12-SUM($P19:R19)-SUMPRODUCT(--($B19:$M19<=S$3),S$3-$B19:$M19) -> 2047821 | T19: =T$3*12-SUM($P19:S19)-SUMPRODUCT(--($B19:$M19<=T$3),T$3-$B19:$M19) -> 329397 | W19: =P19*'Exh3'!$F$49+'Big Schedules'!Q19*'Exh3'!$F$50+'Big Schedules'!R19*'Exh3'!$F$51+'Big Schedules'!S19*'Exh3'!$F$52+'Big Schedules'!T19*'Exh3'!$F$53+'Exh3'!$F$47*12 -> 392508.9388 | X19: =P19*'Exh3'!$L$49+'Big Schedules'!Q19*'Exh3'!$L$50+'Big Schedules'!R19*'Exh3'!$L$51+'Big Schedules'!S19*'Exh3'!$L$52+'Big Schedules'!T19*'Exh3'!$L$53+'Exh3'!$L$47*12 -> 416240.7098 | Z19: 0.06046173408
A20: HOLY FAMILY HOSPITAL | B20: 34826 | C20: 29632 | D20: 31495 | E20: 31756 | F20: 42622 | G20: 52523 | H20: 63823 | I20: 74075 | J20: 53814 | K20: 51441 | L20: 43919 | M20: 36823 | N20: 546749 | P20: 240000 | Q20: =Q$3*12-SUM($P20:P20)-SUMPRODUCT(--($B20:$M20<=Q$3),Q$3-$B20:$M20) -> 261073 | R20: =R$3*12-SUM($P20:Q20)-SUMPRODUCT(--($B20:$M20<=R$3),R$3-$B20:$M20) -> 45676 | S20: =S$3*12-SUM($P20:R20)-SUMPRODUCT(--($B20:$M20<=S$3),S$3-$B20:$M20) -> 0 | T20: =T$3*12-SUM($P20:S20)-SUMPRODUCT(--($B20:$M20<=T$3),T$3-$B20:$M20) -> 0 | W20: =P20*'Exh3'!$F$49+'Big Schedules'!Q20*'Exh3'!$F$50+'Big Schedules'!R20*'Exh3'!$F$51+'Big Schedules'!S20*'Exh3'!$F$52+'Big Schedules'!T20*'Exh3'!$F$53+'Exh3'!$F$47*12 -> 47002.35224 | X20: =P20*'Exh3'!$L$49+'Big Schedules'!Q20*'Exh3'!$L$50+'Big Schedules'!R20*'Exh3'!$L$51+'Big Schedules'!S20*'Exh3'!$L$52+'Big Schedules'!T20*'Exh3'!$L$53+'Exh3'!$L$47*12 -> 50655.92153 | Z20: 0.07773162652
A21: HUNTWOOD INDUSTRIES | B21: 38158 | C21: 35365 | D21: 39841 | E21: 34953 | F21: 44669 | G21: 43663 | H21: 44691 | I21: 59777 | J21: 53496 | K21: 56275 | L21: 49469 | M21: 44676 | N21: 545033 | P21: 240000 | Q21: =Q$3*12-SUM($P21:P21)-SUMPRODUCT(--($B21:$M21<=Q$3),Q$3-$B21:$M21) -> 285485 | R21: =R$3*12-SUM($P21:Q21)-SUMPRODUCT(--($B21:$M21<=R$3),R$3-$B21:$M21) -> 19548 | S21: =S$3*12-SUM($P21:R21)-SUMPRODUCT(--($B21:$M21<=S$3),S$3-$B21:$M21) -> 0 | T21: =T$3*12-SUM($P21:S21)-SUMPRODUCT(--($B21:$M21<=T$3),T$3-$B21:$M21) -> 0 | W21: =P21*'Exh3'!$F$49+'Big Schedules'!Q21*'Exh3'!$F$50+'Big Schedules'!R21*'Exh3'!$F$51+'Big Schedules'!S21*'Exh3'!$F$52+'Big Schedules'!T21*'Exh3'!$F$53+'Exh3'!$F$47*12 -> 47064.09432 | X21: =P21*'Exh3'!$L$49+'Big Schedules'!Q21*'Exh3'!$L$50+'Big Schedules'!R21*'Exh3'!$L$51+'Big Schedules'!S21*'Exh3'!$L$52+'Big Schedules'!T21*'Exh3'!$L$53+'Exh3'!$L$47*12 -> 50721.27573 | Z21: 0.07770640151
A22: INLAND ASPHALT CO | B22: 35091 | C22: 48269 | D22: 72496 | E22: 39615 | F22: 63807 | G22: 21884 | H22: 5 | I22: 6 | J22: 4 | K22: 4 | L22: 10812 | M22: 18945 | N22: 310938 | P22: 149776 | Q22: =Q$3*12-SUM($P22:P22)-SUMPRODUCT(--($B22:$M22<=Q$3),Q$3-$B22:$M22) -> 124859 | R22: =R$3*12-SUM($P22:Q22)-SUMPRODUCT(--($B22:$M22<=R$3),R$3-$B22:$M22) -> 36303 | S22: =S$3*12-SUM($P22:R22)-SUMPRODUCT(--($B22:$M22<=S$3),S$3-$B22:$M22) -> 0 | T22: =T$3*12-SUM($P22:S22)-SUMPRODUCT(--($B22:$M22<=T$3),T$3-$B22:$M22) -> 0 | W22: =P22*'Exh3'!$F$49+'Big Schedules'!Q22*'Exh3'!$F$50+'Big Schedules'!R22*'Exh3'!$F$51+'Big Schedules'!S22*'Exh3'!$F$52+'Big Schedules'!T22*'Exh3'!$F$53+'Exh3'!$F$47*12 -> 28846.94361 | X22: =P22*'Exh3'!$L$49+'Big Schedules'!Q22*'Exh3'!$L$50+'Big Schedules'!R22*'Exh3'!$L$51+'Big Schedules'!S22*'Exh3'!$L$52+'Big Schedules'!T22*'Exh3'!$L$53+'Exh3'!$L$47*12 -> 31445.00165 | Z22: 0.09006354625
A23: INLAND ASPHALT CO | B23: 10779 | C23: 7941 | D23: 44779 | L23: 9194 | M23: 17262 | N23: 89955 | P23: 65176 | Q23: =Q$3*12-SUM($P23:P23)-SUMPRODUCT(--($B23:$M23<=Q$3),Q$3-$B23:$M23) -> 24779 | R23: =R$3*12-SUM($P23:Q23)-SUMPRODUCT(--($B23:$M23<=R$3),R$3-$B23:$M23) -> 0 | S23: =S$3*12-SUM($P23:R23)-SUMPRODUCT(--($B23:$M23<=S$3),S$3-$B23:$M23) -> 0 | T23: =T$3*12-SUM($P23:S23)-SUMPRODUCT(--($B23:$M23<=T$3),T$3-$B23:$M23) -> 0 | W23: =P23*'Exh3'!$F$49+'Big Schedules'!Q23*'Exh3'!$F$50+'Big Schedules'!R23*'Exh3'!$F$51+'Big Schedules'!S23*'Exh3'!$F$52+'Big Schedules'!T23*'Exh3'!$F$53+'Exh3'!$F$47*12 -> 12031.12884 | X23: =P23*'Exh3'!$L$49+'Big Schedules'!Q23*'Exh3'!$L$50+'Big Schedules'!R23*'Exh3'!$L$51+'Big Schedules'!S23*'Exh3'!$L$52+'Big Schedules'!T23*'Exh3'!$L$53+'Exh3'!$L$47*12 -> 13651.57907 | Z23: 0.1346881287
A24: INLAND EMPIRE PAPER CO | B24: 2076 | C24: 0 | D24: 0 | E24: 0 | I24: 181443 | K24: 0 | L24: 0 | M24: 0 | N24: 183519 | P24: 22076 | Q24: =Q$3*12-SUM($P24:P24)-SUMPRODUCT(--($B24:$M24<=Q$3),Q$3-$B24:$M24) -> 30000 | R24: =R$3*12-SUM($P24:Q24)-SUMPRODUCT(--($B24:$M24<=R$3),R$3-$B24:$M24) -> 131443 | S24: =S$3*12-SUM($P24:R24)-SUMPRODUCT(--($B24:$M24<=S$3),S$3-$B24:$M24) -> 0 | T24: =T$3*12-SUM($P24:S24)-SUMPRODUCT(--($B24:$M24<=T$3),T$3-$B24:$M24) -> 0 | W24: =P24*'Exh3'!$F$49+'Big Schedules'!Q24*'Exh3'!$F$50+'Big Schedules'!R24*'Exh3'!$F$51+'Big Schedules'!S24*'Exh3'!$F$52+'Big Schedules'!T24*'Exh3'!$F$53+'Exh3'!$F$47*12 -> 17596.66901 | X24: =P24*'Exh3'!$L$49+'Big Schedules'!Q24*'Exh3'!$L$50+'Big Schedules'!R24*'Exh3'!$L$51+'Big Schedules'!S24*'Exh3'!$L$52+'Big Schedules'!T24*'Exh3'!$L$53+'Exh3'!$L$47*12 -> 19540.45974 | Z24: 0.1104635615
A25: INLAND NORTHWEST DAIRIES | B25: 21273 | C25: 21843 | D25: 21522 | E25: 23661 | F25: 28774 | G25: 31447 | H25: 33921 | I25: 35394 | J25: 29151 | K25: 28797 | L25: 26813 | M25: 24223 | N25: 326819 | P25: 240000 | Q25: =Q$3*12-SUM($P25:P25)-SUMPRODUCT(--($B25:$M25<=Q$3),Q$3-$B25:$M25) -> 86819 | R25: =R$3*12-SUM($P25:Q25)-SUMPRODUCT(--($B25:$M25<=R$3),R$3-$B25:$M25) -> 0 | S25: =S$3*12-SUM($P25:R25)-SUMPRODUCT(--($B25:$M25<=S$3),S$3-$B25:$M25) -> 0 | T25: =T$3*12-SUM($P25:S25)-SUMPRODUCT(--($B25:$M25<=T$3),T$3-$B25:$M25) -> 0 | W25: =P25*'Exh3'!$F$49+'Big Schedules'!Q25*'Exh3'!$F$50+'Big Schedules'!R25*'Exh3'!$F$51+'Big Schedules'!S25*'Exh3'!$F$52+'Big Schedules'!T25*'Exh3'!$F$53+'Exh3'!$F$47*12 -> 31100.8422 | X25: =P25*'Exh3'!$L$49+'Big Schedules'!Q25*'Exh3'!$L$50+'Big Schedules'!R25*'Exh3'!$L$51+'Big Schedules'!S25*'Exh3'!$L$52+'Big Schedules'!T25*'Exh3'!$L$53+'Exh3'!$L$47*12 -> 33830.09571 | Z25: 0.08775497115
A26: LAKELAND VILLAGE | B26: 35633 | C26: 30829 | D26: 31363 | E26: 30686 | F26: 45522 | G26: 52951 | H26: 60058 | I26: 70821 | J26: 56001 | K26: 54430 | L26: 42262 | M26: 33088 | N26: 543644 | P26: 240000 | Q26: =Q$3*12-SUM($P26:P26)-SUMPRODUCT(--($B26:$M26<=Q$3),Q$3-$B26:$M26) -> 259383 | R26: =R$3*12-SUM($P26:Q26)-SUMPRODUCT(--($B26:$M26<=R$3),R$3-$B26:$M26) -> 44261 | S26: =S$3*12-SUM($P26:R26)-SUMPRODUCT(--($B26:$M26<=S$3),S$3-$B26:$M26) -> 0 | T26: =T$3*12-SUM($P26:S26)-SUMPRODUCT(--($B26:$M26<=T$3),T$3-$B26:$M26) -> 0 | W26: =P26*'Exh3'!$F$49+'Big Schedules'!Q26*'Exh3'!$F$50+'Big Schedules'!R26*'Exh3'!$F$51+'Big Schedules'!S26*'Exh3'!$F$52+'Big Schedules'!T26*'Exh3'!$F$53+'Exh3'!$F$47*12 -> 46783.40539 | X26: =P26*'Exh3'!$L$49+'Big Schedules'!Q26*'Exh3'!$L$50+'Big Schedules'!R26*'Exh3'!$L$51+'Big Schedules'!S26*'Exh3'!$L$52+'Big Schedules'!T26*'Exh3'!$L$53+'Exh3'!$L$47*12 -> 50424.24853 | Z26: 0.07782338865
A27: LAMB WESTON | B27: 1688 | C27: 184 | D27: 31 | E27: 52 | F27: 10893 | G27: 52142 | H27: 73664 | I27: 91846 | J27: 74028 | K27: 59366 | L27: 33883 | M27: 8682 | N27: 406459 | P27: 141530 | Q27: =Q$3*12-SUM($P27:P27)-SUMPRODUCT(--($B27:$M27<=Q$3),Q$3-$B27:$M27) -> 163883 | R27: =R$3*12-SUM($P27:Q27)-SUMPRODUCT(--($B27:$M27<=R$3),R$3-$B27:$M27) -> 101046 | S27: =S$3*12-SUM($P27:R27)-SUMPRODUCT(--($B27:$M27<=S$3),S$3-$B27:$M27) -> 0 | T27: =T$3*12-SUM($P27:S27)-SUMPRODUCT(--($B27:$M27<=T$3),T$3-$B27:$M27) -> 0 | W27: =P27*'Exh3'!$F$49+'Big Schedules'!Q27*'Exh3'!$F$50+'Big Schedules'!R27*'Exh3'!$F$51+'Big Schedules'!S27*'Exh3'!$F$52+'Big Schedules'!T27*'Exh3'!$F$53+'Exh3'!$F$47*12 -> 35354.64024 | X27: =P27*'Exh3'!$L$49+'Big Schedules'!Q27*'Exh3'!$L$50+'Big Schedules'!R27*'Exh3'!$L$51+'Big Schedules'!S27*'Exh3'!$L$52+'Big Schedules'!T27*'Exh3'!$L$53+'Exh3'!$L$47*12 -> 38330.92093 | Z27: 0.08418359428
A28: LANE MT SILICA CO | B28: 95230 | C28: 87260 | D28: 90819 | E28: 72792 | F28: 90495 | G28: 98362 | H28: 90157 | I28: 97566 | J28: 98632 | K28: 115738 | L28: 107912 | M28: 108985 | N28: 1153948 | P28: 240000 | Q28: =Q$3*12-SUM($P28:P28)-SUMPRODUCT(--($B28:$M28<=Q$3),Q$3-$B28:$M28) -> 360000 | R28: =R$3*12-SUM($P28:Q28)-SUMPRODUCT(--($B28:$M28<=R$3),R$3-$B28:$M28) -> 553948 | S28: =S$3*12-SUM($P28:R28)-SUMPRODUCT(--($B28:$M28<=S$3),S$3-$B28:$M28) -> 0 | T28: =T$3*12-SUM($P28:S28)-SUMPRODUCT(--($B28:$M28<=T$3),T$3-$B28:$M28) -> 0 | W28: =P28*'Exh3'!$F$49+'Big Schedules'!Q28*'Exh3'!$F$50+'Big Schedules'!R28*'Exh3'!$F$51+'Big Schedules'!S28*'Exh3'!$F$52+'Big Schedules'!T28*'Exh3'!$F$53+'Exh3'!$F$47*12 -> 88148.99732 | X28: =P28*'Exh3'!$L$49+'Big Schedules'!Q28*'Exh3'!$L$50+'Big Schedules'!R28*'Exh3'!$L$51+'Big Schedules'!S28*'Exh3'!$L$52+'Big Schedules'!T28*'Exh3'!$L$53+'Exh3'!$L$47*12 -> 94193.97608 | Z28: 0.0685768295
A29: PURINA MILLS INC | B29: 10167 | C29: 9347 | D29: 9692 | E29: 8818 | F29: 13094 | G29: 13573 | H29: 16206 | I29: 20205 | J29: 16776 | K29: 17893 | L29: 17486 | M29: 14384 | N29: 167641 | P29: 167436 | Q29: =Q$3*12-SUM($P29:P29)-SUMPRODUCT(--($B29:$M29<=Q$3),Q$3-$B29:$M29) -> 205 | R29: =R$3*12-SUM($P29:Q29)-SUMPRODUCT(--($B29:$M29<=R$3),R$3-$B29:$M29) -> 0 | S29: =S$3*12-SUM($P29:R29)-SUMPRODUCT(--($B29:$M29<=S$3),S$3-$B29:$M29) -> 0 | T29: =T$3*12-SUM($P29:S29)-SUMPRODUCT(--($B29:$M29<=T$3),T$3-$B29:$M29) -> 0 | W29: =P29*'Exh3'!$F$49+'Big Schedules'!Q29*'Exh3'!$F$50+'Big Schedules'!R29*'Exh3'!$F$51+'Big Schedules'!S29*'Exh3'!$F$52+'Big Schedules'!T29*'Exh3'!$F$53+'Exh3'!$F$47*12 -> 18693.89904 | X29: =P29*'Exh3'!$L$49+'Big Schedules'!Q29*'Exh3'!$L$50+'Big Schedules'!R29*'Exh3'!$L$51+'Big Schedules'!S29*'Exh3'!$L$52+'Big Schedules'!T29*'Exh3'!$L$53+'Exh3'!$L$47*12 -> 20701.82001 | Z29: 0.1074104961
A30: QUARRY TILE CO | B30: 34539 | C30: 33981 | D30: 34347 | E30: 34625 | F30: 36132 | G30: 32007 | H30: 33509 | I30: 43006 | J30: 38134 | K30: 37423 | L30: 40467 | M30: 37147 | N30: 435317 | P30: 240000 | Q30: =Q$3*12-SUM($P30:P30)-SUMPRODUCT(--($B30:$M30<=Q$3),Q$3-$B30:$M30) -> 195317 | R30: =R$3*12-SUM($P30:Q30)-SUMPRODUCT(--($B30:$M30<=R$3),R$3-$B30:$M30) -> 0 | S30: =S$3*12-SUM($P30:R30)-SUMPRODUCT(--($B30:$M30<=S$3),S$3-$B30:$M30) -> 0 | T30: =T$3*12-SUM($P30:S30)-SUMPRODUCT(--($B30:$M30<=T$3),T$3-$B30:$M30) -> 0 | W30: =P30*'Exh3'!$F$49+'Big Schedules'!Q30*'Exh3'!$F$50+'Big Schedules'!R30*'Exh3'!$F$51+'Big Schedules'!S30*'Exh3'!$F$52+'Big Schedules'!T30*'Exh3'!$F$53+'Exh3'!$F$47*12 -> 39107.9946 | X30: =P30*'Exh3'!$L$49+'Big Schedules'!Q30*'Exh3'!$L$50+'Big Schedules'!R30*'Exh3'!$L$51+'Big Schedules'!S30*'Exh3'!$L$52+'Big Schedules'!T30*'Exh3'!$L$53+'Exh3'!$L$47*12 -> 42302.70453 | Z30: 0.08168943365
A31: SACRED HEART MEDICAL CENTER | B31: 130572 | C31: 120061 | D31: 126767 | E31: 133034 | F31: 164375 | G31: 189639 | H31: 234794 | I31: 266292 | J31: 199742 | K31: 185120 | L31: 156823 | M31: 136535 | N31: 2043754 | P31: 240000 | Q31: =Q$3*12-SUM($P31:P31)-SUMPRODUCT(--($B31:$M31<=Q$3),Q$3-$B31:$M31) -> 360000 | R31: =R$3*12-SUM($P31:Q31)-SUMPRODUCT(--($B31:$M31<=R$3),R$3-$B31:$M31) -> 1443754 | S31: =S$3*12-SUM($P31:R31)-SUMPRODUCT(--($B31:$M31<=S$3),S$3-$B31:$M31) -> 0 | T31: =T$3*12-SUM($P31:S31)-SUMPRODUCT(--($B31:$M31<=T$3),T$3-$B31:$M31) -> 0 | W31: =P31*'Exh3'!$F$49+'Big Schedules'!Q31*'Exh3'!$F$50+'Big Schedules'!R31*'Exh3'!$F$51+'Big Schedules'!S31*'Exh3'!$F$52+'Big Schedules'!T31*'Exh3'!$F$53+'Exh3'!$F$47*12 -> 147401.1789 | X31: =P31*'Exh3'!$L$49+'Big Schedules'!Q31*'Exh3'!$L$50+'Big Schedules'!R31*'Exh3'!$L$51+'Big Schedules'!S31*'Exh3'!$L$52+'Big Schedules'!T31*'Exh3'!$L$53+'Exh3'!$L$47*12 -> 156889.7068 | Z31: 0.0643721309
A32: SHAMROCK PAVING | B32: 39869 | C32: 43062 | D32: 70487 | E32: 38548 | F32: 28606 | G32: 6883 | K32: 42 | L32: 8873 | M32: 23006 | N32: 259376 | P32: 135798 | Q32: =Q$3*12-SUM($P32:P32)-SUMPRODUCT(--($B32:$M32<=Q$3),Q$3-$B32:$M32) -> 103091 | R32: =R$3*12-SUM($P32:Q32)-SUMPRODUCT(--($B32:$M32<=R$3),R$3-$B32:$M32) -> 20487 | S32: =S$3*12-SUM($P32:R32)-SUMPRODUCT(--($B32:$M32<=S$3),S$3-$B32:$M32) -> 0 | T32: =T$3*12-SUM($P32:S32)-SUMPRODUCT(--($B32:$M32<=T$3),T$3-$B32:$M32) -> 0 | W32: =P32*'Exh3'!$F$49+'Big Schedules'!Q32*'Exh3'!$F$50+'Big Schedules'!R32*'Exh3'!$F$51+'Big Schedules'!S32*'Exh3'!$F$52+'Big Schedules'!T32*'Exh3'!$F$53+'Exh3'!$F$47*12 -> 25028.64135 | X32: =P32*'Exh3'!$L$49+'Big Schedules'!Q32*'Exh3'!$L$50+'Big Schedules'!R32*'Exh3'!$L$51+'Big Schedules'!S32*'Exh3'!$L$52+'Big Schedules'!T32*'Exh3'!$L$53+'Exh3'!$L$47*12 -> 27404.73279 | Z32: 0.09493489506
A33: SPOKANE ROCK PRODUCTS | B33: 15480 | C33: 28188 | D33: 42660 | E33: 37602 | F33: 59029 | G33: 30180 | H33: 688 | K33: 0 | L33: 7122 | M33: 14264 | N33: 235213 | P33: 137554 | Q33: =Q$3*12-SUM($P33:P33)-SUMPRODUCT(--($B33:$M33<=Q$3),Q$3-$B33:$M33) -> 88630 | R33: =R$3*12-SUM($P33:Q33)-SUMPRODUCT(--($B33:$M33<=R$3),R$3-$B33:$M33) -> 9029 | S33: =S$3*12-SUM($P33:R33)-SUMPRODUCT(--($B33:$M33<=S$3),S$3-$B33:$M33) -> 0 | T33: =T$3*12-SUM($P33:S33)-SUMPRODUCT(--($B33:$M33<=T$3),T$3-$B33:$M33) -> 0 | W33: =P33*'Exh3'!$F$49+'Big Schedules'!Q33*'Exh3'!$F$50+'Big Schedules'!R33*'Exh3'!$F$51+'Big Schedules'!S33*'Exh3'!$F$52+'Big Schedules'!T33*'Exh3'!$F$53+'Exh3'!$F$47*12 -> 23343.98617 | X33: =P33*'Exh3'!$L$49+'Big Schedules'!Q33*'Exh3'!$L$50+'Big Schedules'!R33*'Exh3'!$L$51+'Big Schedules'!S33*'Exh3'!$L$52+'Big Schedules'!T33*'Exh3'!$L$53+'Exh3'!$L$47*12 -> 25622.16138 | Z33: 0.097591525
A34: SPOKANE STEEL FOUNDRY | B34: 49827 | C34: 44726 | D34: 45659 | E34: 39489 | F34: 45464 | G34: 40206 | H34: 40543 | I34: 48108 | J34: 46349 | K34: 49683 | L34: 51394 | M34: 36280 | N34: 537728 | P34: 240000 | Q34: =Q$3*12-SUM($P34:P34)-SUMPRODUCT(--($B34:$M34<=Q$3),Q$3-$B34:$M34) -> 296334 | R34: =R$3*12-SUM($P34:Q34)-SUMPRODUCT(--($B34:$M34<=R$3),R$3-$B34:$M34) -> 1394 | S34: =S$3*12-SUM($P34:R34)-SUMPRODUCT(--($B34:$M34<=S$3),S$3-$B34:$M34) -> 0 | T34: =T$3*12-SUM($P34:S34)-SUMPRODUCT(--($B34:$M34<=T$3),T$3-$B34:$M34) -> 0 | W34: =P34*'Exh3'!$F$49+'Big Schedules'!Q34*'Exh3'!$F$50+'Big Schedules'!R34*'Exh3'!$F$51+'Big Schedules'!S34*'Exh3'!$F$52+'Big Schedules'!T34*'Exh3'!$F$53+'Exh3'!$F$47*12 -> 46655.87566 | X34: =P34*'Exh3'!$L$49+'Big Schedules'!Q34*'Exh3'!$L$50+'Big Schedules'!R34*'Exh3'!$L$51+'Big Schedules'!S34*'Exh3'!$L$52+'Big Schedules'!T34*'Exh3'!$L$53+'Exh3'!$L$47*12 -> 50289.3433 | Z34: 0.07787802905
A35: TRAVIS PATTERN & FOUNDRY | B35: 120815 | C35: 116597 | D35: 137370 | E35: 130006 | F35: 157401 | G35: 153991 | H35: 137003 | I35: 180991 | J35: 157689 | K35: 165616 | L35: 163910 | M35: 164627 | N35: 1786016 | P35: 240000 | Q35: =Q$3*12-SUM($P35:P35)-SUMPRODUCT(--($B35:$M35<=Q$3),Q$3-$B35:$M35) -> 360000 | R35: =R$3*12-SUM($P35:Q35)-SUMPRODUCT(--($B35:$M35<=R$3),R$3-$B35:$M35) -> 1186016 | S35: =S$3*12-SUM($P35:R35)-SUMPRODUCT(--($B35:$M35<=S$3),S$3-$B35:$M35) -> 0 | T35: =T$3*12-SUM($P35:S35)-SUMPRODUCT(--($B35:$M35<=T$3),T$3-$B35:$M35) -> 0 | W35: =P35*'Exh3'!$F$49+'Big Schedules'!Q35*'Exh3'!$F$50+'Big Schedules'!R35*'Exh3'!$F$51+'Big Schedules'!S35*'Exh3'!$F$52+'Big Schedules'!T35*'Exh3'!$F$53+'Exh3'!$F$47*12 -> 130238.4054 | X35: =P35*'Exh3'!$L$49+'Big Schedules'!Q35*'Exh3'!$L$50+'Big Schedules'!R35*'Exh3'!$L$51+'Big Schedules'!S35*'Exh3'!$L$52+'Big Schedules'!T35*'Exh3'!$L$53+'Exh3'!$L$47*12 -> 138729.4874 | Z35: 0.06519645178
A36: TRIUMPH COMPOSITE | B36: 28467 | C36: 21208 | D36: 25402 | E36: 23017 | F36: 48448 | G36: 65802 | H36: 74106 | I36: 95099 | J36: 71335 | K36: 63844 | L36: 51070 | M36: 32642 | N36: 600440 | P36: 240000 | Q36: =Q$3*12-SUM($P36:P36)-SUMPRODUCT(--($B36:$M36<=Q$3),Q$3-$B36:$M36) -> 239184 | R36: =R$3*12-SUM($P36:Q36)-SUMPRODUCT(--($B36:$M36<=R$3),R$3-$B36:$M36) -> 121256 | S36: =S$3*12-SUM($P36:R36)-SUMPRODUCT(--($B36:$M36<=S$3),S$3-$B36:$M36) -> 0 | T36: =T$3*12-SUM($P36:S36)-SUMPRODUCT(--($B36:$M36<=T$3),T$3-$B36:$M36) -> 0 | W36: =P36*'Exh3'!$F$49+'Big Schedules'!Q36*'Exh3'!$F$50+'Big Schedules'!R36*'Exh3'!$F$51+'Big Schedules'!S36*'Exh3'!$F$52+'Big Schedules'!T36*'Exh3'!$F$53+'Exh3'!$F$47*12 -> 50419.81624 | X36: =P36*'Exh3'!$L$49+'Big Schedules'!Q36*'Exh3'!$L$50+'Big Schedules'!R36*'Exh3'!$L$51+'Big Schedules'!S36*'Exh3'!$L$52+'Big Schedules'!T36*'Exh3'!$L$53+'Exh3'!$L$47*12 -> 54271.97632 | Z36: 0.07640170804
A37: VALLEY HOSP & MEDICAL CTR | B37: 19740 | C37: 16324 | D37: 16410 | E37: 17441 | F37: 23248 | G37: 28731 | H37: 36509 | I37: 41075 | J37: 32849 | K37: 31760 | L37: 27806 | M37: 20530 | N37: 312423 | P37: 229915 | Q37: =Q$3*12-SUM($P37:P37)-SUMPRODUCT(--($B37:$M37<=Q$3),Q$3-$B37:$M37) -> 82508 | R37: =R$3*12-SUM($P37:Q37)-SUMPRODUCT(--($B37:$M37<=R$3),R$3-$B37:$M37) -> 0 | S37: =S$3*12-SUM($P37:R37)-SUMPRODUCT(--($B37:$M37<=S$3),S$3-$B37:$M37) -> 0 | T37: =T$3*12-SUM($P37:S37)-SUMPRODUCT(--($B37:$M37<=T$3),T$3-$B37:$M37) -> 0 | W37: =P37*'Exh3'!$F$49+'Big Schedules'!Q37*'Exh3'!$F$50+'Big Schedules'!R37*'Exh3'!$F$51+'Big Schedules'!S37*'Exh3'!$F$52+'Big Schedules'!T37*'Exh3'!$F$53+'Exh3'!$F$47*12 -> 29946.74475 | X37: =P37*'Exh3'!$L$49+'Big Schedules'!Q37*'Exh3'!$L$50+'Big Schedules'!R37*'Exh3'!$L$51+'Big Schedules'!S37*'Exh3'!$L$52+'Big Schedules'!T37*'Exh3'!$L$53+'Exh3'!$L$47*12 -> 32608.89437 | Z37: 0.08889612685
A38: VETERANS ADMIN HOSPITAL | B38: 34307 | C38: 30006 | D38: 29916 | E38: 34064 | F38: 49166 | G38: 56031 | H38: 63016 | I38: 69939 | J38: 51776 | K38: 49584 | L38: 44534 | M38: 37851 | N38: 550190 | P38: 240000 | Q38: =Q$3*12-SUM($P38:P38)-SUMPRODUCT(--($B38:$M38<=Q$3),Q$3-$B38:$M38) -> 269428 | R38: =R$3*12-SUM($P38:Q38)-SUMPRODUCT(--($B38:$M38<=R$3),R$3-$B38:$M38) -> 40762 | S38: =S$3*12-SUM($P38:R38)-SUMPRODUCT(--($B38:$M38<=S$3),S$3-$B38:$M38) -> 0 | T38: =T$3*12-SUM($P38:S38)-SUMPRODUCT(--($B38:$M38<=T$3),T$3-$B38:$M38) -> 0 | W38: =P38*'Exh3'!$F$49+'Big Schedules'!Q38*'Exh3'!$F$50+'Big Schedules'!R38*'Exh3'!$F$51+'Big Schedules'!S38*'Exh3'!$F$52+'Big Schedules'!T38*'Exh3'!$F$53+'Exh3'!$F$47*12 -> 47291.72798 | X38: =P38*'Exh3'!$L$49+'Big Schedules'!Q38*'Exh3'!$L$50+'Big Schedules'!R38*'Exh3'!$L$51+'Big Schedules'!S38*'Exh3'!$L$52+'Big Schedules'!T38*'Exh3'!$L$53+'Exh3'!$L$47*12 -> 50962.12304 | Z38: 0.0776117773
A39: WASTE MANAGEMENT OF SPOKANE | B39: 18464 | C39: 21067 | D39: 18741 | E39: 18157 | F39: =AVERAGE(G39:M39,B39:E39) -> 15844.54545 | G39: 13982 | H39: 9312 | I39: 10540 | J39: 9968 | K39: 16229 | L39: 17040 | M39: 20790 | N39: 190134.5455 | P39: 188277.5455 | Q39: =Q$3*12-SUM($P39:P39)-SUMPRODUCT(--($B39:$M39<=Q$3),Q$3-$B39:$M39) -> 1857 | R39: =R$3*12-SUM($P39:Q39)-SUMPRODUCT(--($B39:$M39<=R$3),R$3-$B39:$M39) -> 0 | S39: =S$3*12-SUM($P39:R39)-SUMPRODUCT(--($B39:$M39<=S$3),S$3-$B39:$M39) -> 0 | T39: =T$3*12-SUM($P39:S39)-SUMPRODUCT(--($B39:$M39<=T$3),T$3-$B39:$M39) -> 0 | W39: =P39*'Exh3'!$F$49+'Big Schedules'!Q39*'Exh3'!$F$50+'Big Schedules'!R39*'Exh3'!$F$51+'Big Schedules'!S39*'Exh3'!$F$52+'Big Schedules'!T39*'Exh3'!$F$53+'Exh3'!$F$47*12 -> 20543.37234 | X39: =P39*'Exh3'!$L$49+'Big Schedules'!Q39*'Exh3'!$L$50+'Big Schedules'!R39*'Exh3'!$L$51+'Big Schedules'!S39*'Exh3'!$L$52+'Big Schedules'!T39*'Exh3'!$L$53+'Exh3'!$L$47*12 -> 22658.83664 | Z39: 0.1029755127
A40: WESTERN STATES ASPHALT INC | B40: 74328 | C40: 72271 | D40: 65547 | E40: 55587 | F40: 62794 | G40: 50397 | H40: 12560 | I40: 29961 | J40: 60817 | K40: 72783 | L40: 65252 | M40: 68985 | N40: 691282 | P40: 232560 | Q40: =Q$3*12-SUM($P40:P40)-SUMPRODUCT(--($B40:$M40<=Q$3),Q$3-$B40:$M40) -> 309961 | R40: =R$3*12-SUM($P40:Q40)-SUMPRODUCT(--($B40:$M40<=R$3),R$3-$B40:$M40) -> 148761 | S40: =S$3*12-SUM($P40:R40)-SUMPRODUCT(--($B40:$M40<=S$3),S$3-$B40:$M40) -> 0 | T40: =T$3*12-SUM($P40:S40)-SUMPRODUCT(--($B40:$M40<=T$3),T$3-$B40:$M40) -> 0 | W40: =P40*'Exh3'!$F$49+'Big Schedules'!Q40*'Exh3'!$F$50+'Big Schedules'!R40*'Exh3'!$F$51+'Big Schedules'!S40*'Exh3'!$F$52+'Big Schedules'!T40*'Exh3'!$F$53+'Exh3'!$F$47*12 -> 56858.01519 | X40: =P40*'Exh3'!$L$49+'Big Schedules'!Q40*'Exh3'!$L$50+'Big Schedules'!R40*'Exh3'!$L$51+'Big Schedules'!S40*'Exh3'!$L$52+'Big Schedules'!T40*'Exh3'!$L$53+'Exh3'!$L$47*12 -> 61084.39215 | Z40: 0.07433212267
A41: WESTERN STATES ASPHALT INC | B41: 18613 | C41: 18863 | D41: 17516 | E41: 12329 | F41: 12153 | G41: 8414 | H41: 266 | I41: 771 | J41: 527 | K41: 480 | L41: 11914 | M41: 21812 | N41: 123658 | P41: 121846 | Q41: =Q$3*12-SUM($P41:P41)-SUMPRODUCT(--($B41:$M41<=Q$3),Q$3-$B41:$M41) -> 1812 | R41: =R$3*12-SUM($P41:Q41)-SUMPRODUCT(--($B41:$M41<=R$3),R$3-$B41:$M41) -> 0 | S41: =S$3*12-SUM($P41:R41)-SUMPRODUCT(--($B41:$M41<=S$3),S$3-$B41:$M41) -> 0 | T41: =T$3*12-SUM($P41:S41)-SUMPRODUCT(--($B41:$M41<=T$3),T$3-$B41:$M41) -> 0 | W41: =P41*'Exh3'!$F$49+'Big Schedules'!Q41*'Exh3'!$F$50+'Big Schedules'!R41*'Exh3'!$F$51+'Big Schedules'!S41*'Exh3'!$F$52+'Big Schedules'!T41*'Exh3'!$F$53+'Exh3'!$F$47*12 -> 15033.54054 | X41: =P41*'Exh3'!$L$49+'Big Schedules'!Q41*'Exh3'!$L$50+'Big Schedules'!R41*'Exh3'!$L$51+'Big Schedules'!S41*'Exh3'!$L$52+'Big Schedules'!T41*'Exh3'!$L$53+'Exh3'!$L$47*12 -> 16828.61174 | Z41: 0.1194044207
A42: WHITWORTH UNIVERSITY | B42: 17540 | C42: 14928 | D42: 13541 | E42: 21106 | F42: 36522 | G42: 47262 | H42: 54764 | I42: 68248 | J42: 52042 | K42: 48059 | L42: 38558 | M42: 23839 | N42: 436409 | P42: 226009 | Q42: =Q$3*12-SUM($P42:P42)-SUMPRODUCT(--($B42:$M42<=Q$3),Q$3-$B42:$M42) -> 185346 | R42: =R$3*12-SUM($P42:Q42)-SUMPRODUCT(--($B42:$M42<=R$3),R$3-$B42:$M42) -> 25054 | S42: =S$3*12-SUM($P42:R42)-SUMPRODUCT(--($B42:$M42<=S$3),S$3-$B42:$M42) -> 0 | T42: =T$3*12-SUM($P42:S42)-SUMPRODUCT(--($B42:$M42<=T$3),T$3-$B42:$M42) -> 0 | W42: =P42*'Exh3'!$F$49+'Big Schedules'!Q42*'Exh3'!$F$50+'Big Schedules'!R42*'Exh3'!$F$51+'Big Schedules'!S42*'Exh3'!$F$52+'Big Schedules'!T42*'Exh3'!$F$53+'Exh3'!$F$47*12 -> 38880.76667 | X42: =P42*'Exh3'!$L$49+'Big Schedules'!Q42*'Exh3'!$L$50+'Big Schedules'!R42*'Exh3'!$L$51+'Big Schedules'!S42*'Exh3'!$L$52+'Big Schedules'!T42*'Exh3'!$L$53+'Exh3'!$L$47*12 -> 42062.22337 | Z42: 0.0818259765
A44: Total WA Sch 146 | B44: =SUM(B5:B43) -> 1843874 | C44: 1604783 | D44: 1833148 | E44: 1693716 | F44: 2318223.545 | G44: 2706281 | H44: 3063367 | I44: 3708843 | J44: 2869448 | K44: 2767000 | L44: 2440274 | M44: 1907150 | N44: =IF(ROUND(SUM(N5:N43),3)<>ROUND(SUM(B44:M44),3),#VALUE!,SUM(B44:M44)) -> 28756107.55 | P44: =SUM(P5:P43) -> 7701806.545 | Q44: =SUM(Q5:Q43) -> 7009830 | R44: =SUM(R5:R43) -> 11055056 | S44: =SUM(S5:S43) -> 2632118 | T44: =SUM(T5:T43) -> 357297 | W44: =SUM(W5:W43) -> 2253061.215 | X44: =SUM(X5:X43) -> 2419026.845 | Z44: 0.07366228142
T45: =SUM(P44:T44) -> 28756107.55 | W45: =(W44/1000)-'Exh1'!D18 -> -181.2969345 | X45: =(X44/1000)-'Exh1'!F18 -> -195.2892452
A46: Revenue Runs | B46: 1825410 | C46: 1583716 | D46: 1814407 | E46: 1675559 | F46: 2302379 | G46: 2706281 | H46: 3063367 | I46: 3708843 | J46: 2869448 | K46: 2767000 | L46: 2440274 | M46: 1907150 | N46: =SUM(B46:M46) -> 28663834 | P46: 500 | Q46: 1000 | R46: 10000 | S46: 25000 | T46: 99999999 | U46: Schedule 121/122
N47: 0 | P47: 200 | Q47: 1000 | R47: 99999999 | S47: =S$58*12-SUM($P47:R47)-SUMPRODUCT(--($B47:$M47<=S$58),S$58-$B47:$M47) -> -100001199 | T47: =T$58*12-SUM($P47:S47)-SUMPRODUCT(--($B47:$M47<=T$58),T$58-$B47:$M47) -> 0 | U47: Schedule 111/112
A48: WASTE MANAGEMENT OF SPOKANE | B48: 18464 | C48: 21067 | D48: 18741 | E48: 18157 | F48: 15845 | N48: 92274 | P48: =P$58*12-SUMPRODUCT(--($B48:$M48<=P$58),P$58-$B48:$M48) -> 2500 | Q48: =Q$58*12-SUM($P48:P48)-SUMPRODUCT(--($B48:$M48<=Q$58),Q$58-$B48:$M48) -> 2500 | R48: =R$58*12-SUM($P48:Q48)-SUMPRODUCT(--($B48:$M48<=R$58),R$58-$B48:$M48) -> 45000 | S48: =S$58*12-SUM($P48:R48)-SUMPRODUCT(--($B48:$M48<=S$58),S$58-$B48:$M48) -> 42274 | T48: =T$58*12-SUM($P48:S48)-SUMPRODUCT(--($B48:$M48<=T$58),T$58-$B48:$M48) -> 0
N49: 0 | P49: =P$58*12-SUMPRODUCT(--($B49:$M49<=P$58),P$58-$B49:$M49) -> 0 | Q49: =Q$58*12-SUM($P49:P49)-SUMPRODUCT(--($B49:$M49<=Q$58),Q$58-$B49:$M49) -> 0 | R49: =R$58*12-SUM($P49:Q49)-SUMPRODUCT(--($B49:$M49<=R$58),R$58-$B49:$M49) -> 0 | S49: =S$58*12-SUM($P49:R49)-SUMPRODUCT(--($B49:$M49<=S$58),S$58-$B49:$M49) -> 0 | T49: =T$58*12-SUM($P49:S49)-SUMPRODUCT(--($B49:$M49<=T$58),T$58-$B49:$M49) -> 0
N50: 0
N51: 0 | P51: =P$58*12-SUMPRODUCT(--($B51:$M51<=P$58),P$58-$B51:$M51) -> 0 | Q51: =Q$58*12-SUM($P51:P51)-SUMPRODUCT(--($B51:$M51<=Q$58),Q$58-$B51:$M51) -> 0 | R51: =R$58*12-SUM($P51:Q51)-SUMPRODUCT(--($B51:$M51<=R$58),R$58-$B51:$M51) -> 0
N52: =SUM(B52:M52) -> 0 | P52: =P$47*12-SUMPRODUCT(--($B52:$M52<=P$47),P$47-$B52:$M52) -> 0 | Q52: =Q$47*12-SUM($P52:P52)-SUMPRODUCT(--($B52:$M52<=Q$47),Q$47-$B52:$M52) -> 0 | R52: =R$47*12-SUM($P52:Q52)-SUMPRODUCT(--($B52:$M52<=R$47),R$47-$B52:$M52) -> 0
N53: =SUM(B53:M53) -> 0 | P53: =P$47*12-SUMPRODUCT(--($B53:$M53<=P$47),P$47-$B53:$M53) -> 0 | Q53: =Q$47*12-SUM($P53:P53)-SUMPRODUCT(--($B53:$M53<=Q$47),Q$47-$B53:$M53) -> 0 | R53: =R$47*12-SUM($P53:Q53)-SUMPRODUCT(--($B53:$M53<=R$47),R$47-$B53:$M53) -> 0
N54: 0
A55: Total Sch 146 | B55: =SUM(B46:B54) -> 1843874 | C55: =SUM(C46:C54) -> 1604783 | D55: =SUM(D46:D54) -> 1833148 | E55: 1693716 | F55: 2318224 | G55: 2706281 | H55: 3063367 | I55: 3708843 | J55: 2869448 | K55: 2767000 | L55: 2440274 | M55: 1907150 | N55: =SUM(N46:N54) -> 28756108 | P55: =SUM(P48:P51) -> 2500 | Q55: =SUM(Q48:Q51) -> 2500 | R55: =SUM(R48:R51) -> 45000 | S55: 42274 | T55: 0 | U55: =SUM(P55:T55) -> 92274
B56: =B44-B55 -> 0 | C56: 0 | D56: =D44-D55 -> 0 | E56: 0 | F56: -0.4545454546 | G56: 0 | H56: 0 | I56: 0 | J56: 0 | K56: 0 | L56: 0 | M56: 0 | N56: -0.4545454532 | P56: =SUM(P52:P53) -> 0 | Q56: =SUM(Q52:Q53) -> 0 | R56: =SUM(R52:R53) -> 0
P57: 1st | Q57: =P58 -> 500 | R57: =Q58 -> 1000 | S57: =R58 -> 10000 | T57: =S58 -> 25000
A58: ANNUAL USAGE, Sch 121/122 | P58: 500 | Q58: 1000 | R58: 10000 | S58: 25000 | T58: 99999999
A59: Washington | B59: =B4 -> 2012-07-01 | C59: =C4 -> 2012-08-01 | D59: 2012-09-01 | E59: 2012-10-01 | F59: 2012-11-01 | G59: 2012-12-01 | H59: 2013-01-01 | I59: 2013-02-01 | J59: 2013-03-01 | K59: 2013-04-01 | L59: 2013-05-01 | M59: 2013-06-01 | N59: Total | P59: thms/mo | Q59: thms/mo | R59: thms/mo | S59: thms/mo | T59: thms/mo
A60: AIRWAY HEIGHTS CORRECTION CENTER (122) | B60: 22105 | C60: 17214 | D60: 14943 | E60: 21450 | F60: 30474 | G60: 52239 | H60: 52448 | I60: 70474 | J60: 51019 | K60: 45672 | L60: 40536 | M60: 25146 | N60: =SUM(B60:M60) -> 443720 | P60: =P$58*12-SUMPRODUCT(--($B60:$M60<=P$58),P$58-$B60:$M60) -> 6000 | Q60: =Q$58*12-SUM($P60:P60)-SUMPRODUCT(--($B60:$M60<=Q$58),Q$58-$B60:$M60) -> 6000 | R60: =R$58*12-SUM($P60:Q60)-SUMPRODUCT(--($B60:$M60<=R$58),R$58-$B60:$M60) -> 108000 | S60: =S$58*12-SUM($P60:R60)-SUMPRODUCT(--($B60:$M60<=S$58),S$58-$B60:$M60) -> 155712 | T60: =T$58*12-SUM($P60:S60)-SUMPRODUCT(--($B60:$M60<=T$58),T$58-$B60:$M60) -> 168008
A61: CAMELBACK HOTEL CORP | B61: 6365 | C61: 5465 | D61: 5084 | E61: 5960 | F61: 6806 | G61: 8457 | H61: 9392 | I61: 6285 | J61: 12033 | K61: 7587 | L61: 6786 | M61: 6773 | N61: 86993 | P61: 6000 | Q61: =Q$58*12-SUM($P61:P61)-SUMPRODUCT(--($B61:$M61<=Q$58),Q$58-$B61:$M61) -> 6000 | R61: =R$58*12-SUM($P61:Q61)-SUMPRODUCT(--($B61:$M61<=R$58),R$58-$B61:$M61) -> 72960 | S61: =S$58*12-SUM($P61:R61)-SUMPRODUCT(--($B61:$M61<=S$58),S$58-$B61:$M61) -> 2033 | T61: =T$58*12-SUM($P61:S61)-SUMPRODUCT(--($B61:$M61<=T$58),T$58-$B61:$M61) -> 0
A62: COYOTE RIDGE CORRECTION | B62: 27305 | C62: 31744 | D62: 26920 | E62: 31126 | F62: 56275 | G62: 68637 | H62: 99436 | I62: 70585 | J62: 58894 | K62: 51079 | L62: 33574 | M62: 29017 | N62: 584592 | P62: 6000 | Q62: =Q$58*12-SUM($P62:P62)-SUMPRODUCT(--($B62:$M62<=Q$58),Q$58-$B62:$M62) -> 6000 | R62: =R$58*12-SUM($P62:Q62)-SUMPRODUCT(--($B62:$M62<=R$58),R$58-$B62:$M62) -> 108000 | S62: =S$58*12-SUM($P62:R62)-SUMPRODUCT(--($B62:$M62<=S$58),S$58-$B62:$M62) -> 180000 | T62: =T$58*12-SUM($P62:S62)-SUMPRODUCT(--($B62:$M62<=T$58),T$58-$B62:$M62) -> 284592
A63: DAVENPORT 2000 LLC | B63: 12063 | C63: 11164 | D63: 12467 | E63: 15247 | F63: 14361 | G63: 18108 | H63: 23617 | I63: 18377 | J63: 17475 | K63: 13745 | L63: 13416 | M63: 13578 | N63: 183618 | P63: 6000 | Q63: =Q$58*12-SUM($P63:P63)-SUMPRODUCT(--($B63:$M63<=Q$58),Q$58-$B63:$M63) -> 6000 | R63: =R$58*12-SUM($P63:Q63)-SUMPRODUCT(--($B63:$M63<=R$58),R$58-$B63:$M63) -> 108000 | S63: =S$58*12-SUM($P63:R63)-SUMPRODUCT(--($B63:$M63<=S$58),S$58-$B63:$M63) -> 63618 | T63: =T$58*12-SUM($P63:S63)-SUMPRODUCT(--($B63:$M63<=T$58),T$58-$B63:$M63) -> 0
A64: DOUBLETREE HOTEL | B64: 10835 | C64: 9403 | D64: 9955 | E64: 11383 | F64: 15450 | G64: 20350 | H64: 23635 | I64: 20824 | J64: 18722 | K64: 15935 | L64: 14593 | M64: 12073 | N64: 183158 | P64: 6000 | Q64: =Q$58*12-SUM($P64:P64)-SUMPRODUCT(--($B64:$M64<=Q$58),Q$58-$B64:$M64) -> 6000 | R64: =R$58*12-SUM($P64:Q64)-SUMPRODUCT(--($B64:$M64<=R$58),R$58-$B64:$M64) -> 107358 | S64: =S$58*12-SUM($P64:R64)-SUMPRODUCT(--($B64:$M64<=S$58),S$58-$B64:$M64) -> 63800 | T64: =T$58*12-SUM($P64:S64)-SUMPRODUCT(--($B64:$M64<=T$58),T$58-$B64:$M64) -> 0
A65: ECOLITE | B65: 10650 | C65: 11100 | D65: 12605 | E65: 10723 | F65: 8615 | G65: 9750 | H65: 11829 | I65: 12474 | J65: 11542 | K65: 10643 | L65: 9198 | M65: 11005 | N65: 130134 | P65: 6000 | Q65: =Q$58*12-SUM($P65:P65)-SUMPRODUCT(--($B65:$M65<=Q$58),Q$58-$B65:$M65) -> 6000 | R65: =R$58*12-SUM($P65:Q65)-SUMPRODUCT(--($B65:$M65<=R$58),R$58-$B65:$M65) -> 105563 | S65: =S$58*12-SUM($P65:R65)-SUMPRODUCT(--($B65:$M65<=S$58),S$58-$B65:$M65) -> 12571 | T65: =T$58*12-SUM($P65:S65)-SUMPRODUCT(--($B65:$M65<=T$58),T$58-$B65:$M65) -> 0
A66: GOOD SAMARITAN VILLAGE | B66: 4174 | C66: 3128 | D66: 3674 | E66: 5066 | F66: 6596 | G66: 10261 | H66: 10432 | I66: 12081 | J66: 8912 | K66: 7812 | L66: 6794 | M66: 5323 | N66: 84253 | P66: 6000 | Q66: =Q$58*12-SUM($P66:P66)-SUMPRODUCT(--($B66:$M66<=Q$58),Q$58-$B66:$M66) -> 6000 | R66: =R$58*12-SUM($P66:Q66)-SUMPRODUCT(--($B66:$M66<=R$58),R$58-$B66:$M66) -> 69479 | S66: =S$58*12-SUM($P66:R66)-SUMPRODUCT(--($B66:$M66<=S$58),S$58-$B66:$M66) -> 2774 | T66: =T$58*12-SUM($P66:S66)-SUMPRODUCT(--($B66:$M66<=T$58),T$58-$B66:$M66) -> 0
A67: GREENACRES GYPSUM & LIME CO | B67: 11611 | C67: 10872 | D67: 12464 | E67: 11326 | F67: 17384 | G67: 11162 | H67: 11215 | I67: 18537 | J67: 24634 | K67: 20246 | L67: 19098 | M67: 12343 | N67: 180892 | P67: 6000 | Q67: =Q$58*12-SUM($P67:P67)-SUMPRODUCT(--($B67:$M67<=Q$58),Q$58-$B67:$M67) -> 6000 | R67: =R$58*12-SUM($P67:Q67)-SUMPRODUCT(--($B67:$M67<=R$58),R$58-$B67:$M67) -> 108000 | S67: =S$58*12-SUM($P67:R67)-SUMPRODUCT(--($B67:$M67<=S$58),S$58-$B67:$M67) -> 60892 | T67: =T$58*12-SUM($P67:S67)-SUMPRODUCT(--($B67:$M67<=T$58),T$58-$B67:$M67) -> 0
A68: HOLLISTER-STIER LABORATORIES | B68: 35375 | C68: 37878 | D68: 35918 | E68: 39878 | F68: 38181 | G68: 52091 | H68: 45011 | I68: 56936 | J68: 47276 | K68: 43337 | L68: 43798 | M68: 41864 | N68: 517543 | P68: 6000 | Q68: =Q$58*12-SUM($P68:P68)-SUMPRODUCT(--($B68:$M68<=Q$58),Q$58-$B68:$M68) -> 6000 | R68: =R$58*12-SUM($P68:Q68)-SUMPRODUCT(--($B68:$M68<=R$58),R$58-$B68:$M68) -> 108000 | S68: =S$58*12-SUM($P68:R68)-SUMPRODUCT(--($B68:$M68<=S$58),S$58-$B68:$M68) -> 180000 | T68: =T$58*12-SUM($P68:S68)-SUMPRODUCT(--($B68:$M68<=T$58),T$58-$B68:$M68) -> 217543
A69: JOHANNA BEVERAGE CO | B69: 10316 | C69: 8787 | D69: 9178 | E69: 11661 | F69: 15664 | G69: 9007 | H69: 32863 | I69: 24745 | J69: 23814 | K69: 27386 | L69: 29696 | M69: 25233 | N69: 228350 | P69: 6000 | Q69: =Q$58*12-SUM($P69:P69)-SUMPRODUCT(--($B69:$M69<=Q$58),Q$58-$B69:$M69) -> 6000 | R69: =R$58*12-SUM($P69:Q69)-SUMPRODUCT(--($B69:$M69<=R$58),R$58-$B69:$M69) -> 104972 | S69: =S$58*12-SUM($P69:R69)-SUMPRODUCT(--($B69:$M69<=S$58),S$58-$B69:$M69) -> 96200 | T69: =T$58*12-SUM($P69:S69)-SUMPRODUCT(--($B69:$M69<=T$58),T$58-$B69:$M69) -> 15178
A70: KALISPEL TRIBAL ECONOMIC AUTHOR | B70: 9076 | C70: 4151 | D70: 4692 | E70: 306 | F70: 4062 | G70: 5381 | H70: 7420 | I70: 9291 | J70: 7741 | K70: 7930 | L70: 7884 | M70: 8054 | N70: 75988 | P70: 5806 | Q70: =Q$58*12-SUM($P70:P70)-SUMPRODUCT(--($B70:$M70<=Q$58),Q$58-$B70:$M70) -> 5500 | R70: =R$58*12-SUM($P70:Q70)-SUMPRODUCT(--($B70:$M70<=R$58),R$58-$B70:$M70) -> 64682 | S70: =S$58*12-SUM($P70:R70)-SUMPRODUCT(--($B70:$M70<=S$58),S$58-$B70:$M70) -> 0 | T70: =T$58*12-SUM($P70:S70)-SUMPRODUCT(--($B70:$M70<=T$58),T$58-$B70:$M70) -> 0
A71: MIRABEAU PARK HOTEL | B71: 8416 | C71: 6964 | D71: 7422 | E71: 8159 | F71: 9653 | G71: 15021 | H71: 17077 | I71: 15107 | J71: 12886 | K71: 12492 | L71: 12013 | M71: 8087 | N71: 133297 | P71: 6000 | Q71: =Q$58*12-SUM($P71:P71)-SUMPRODUCT(--($B71:$M71<=Q$58),Q$58-$B71:$M71) -> 6000 | R71: =R$58*12-SUM($P71:Q71)-SUMPRODUCT(--($B71:$M71<=R$58),R$58-$B71:$M71) -> 96701 | S71: =S$58*12-SUM($P71:R71)-SUMPRODUCT(--($B71:$M71<=S$58),S$58-$B71:$M71) -> 24596 | T71: =T$58*12-SUM($P71:S71)-SUMPRODUCT(--($B71:$M71<=T$58),T$58-$B71:$M71) -> 0
A72: MOUNT CARMEL HOSPITAL | B72: 9093 | C72: 6464 | D72: 8453 | E72: 8709 | F72: 11672 | G72: 14493 | H72: 17663 | I72: 20386 | J72: 16514 | K72: 14906 | L72: 13157 | M72: 9552 | N72: 151062 | P72: 6000 | Q72: =Q$58*12-SUM($P72:P72)-SUMPRODUCT(--($B72:$M72<=Q$58),Q$58-$B72:$M72) -> 6000 | R72: =R$58*12-SUM($P72:Q72)-SUMPRODUCT(--($B72:$M72<=R$58),R$58-$B72:$M72) -> 100271 | S72: =S$58*12-SUM($P72:R72)-SUMPRODUCT(--($B72:$M72<=S$58),S$58-$B72:$M72) -> 38791 | T72: =T$58*12-SUM($P72:S72)-SUMPRODUCT(--($B72:$M72<=T$58),T$58-$B72:$M72) -> 0
A73: NORTHERN QUEST CASINO | B73: 9896 | C73: 10211 | D73: 8902 | E73: 13275 | F73: 11031 | G73: 17940 | H73: 20852 | I73: 25998 | J73: 19214 | K73: 16126 | L73: 14914 | M73: 10451 | N73: 178810 | P73: 6000 | Q73: =Q$58*12-SUM($P73:P73)-SUMPRODUCT(--($B73:$M73<=Q$58),Q$58-$B73:$M73) -> 6000 | R73: =R$58*12-SUM($P73:Q73)-SUMPRODUCT(--($B73:$M73<=R$58),R$58-$B73:$M73) -> 106798 | S73: =S$58*12-SUM($P73:R73)-SUMPRODUCT(--($B73:$M73<=S$58),S$58-$B73:$M73) -> 59014 | T73: =T$58*12-SUM($P73:S73)-SUMPRODUCT(--($B73:$M73<=T$58),T$58-$B73:$M73) -> 998
A74: NORTHERN QUEST CASINO | B74: 13932 | C74: 10229 | D74: 10665 | E74: 8157 | F74: 22406 | G74: 43430 | H74: 47347 | I74: 67662 | J74: 48192 | K74: 37560 | L74: 29189 | M74: 17448 | N74: 356217 | P74: 6000 | Q74: =Q$58*12-SUM($P74:P74)-SUMPRODUCT(--($B74:$M74<=Q$58),Q$58-$B74:$M74) -> 6000 | R74: =R$58*12-SUM($P74:Q74)-SUMPRODUCT(--($B74:$M74<=R$58),R$58-$B74:$M74) -> 106157 | S74: =S$58*12-SUM($P74:R74)-SUMPRODUCT(--($B74:$M74<=S$58),S$58-$B74:$M74) -> 114680 | T74: =T$58*12-SUM($P74:S74)-SUMPRODUCT(--($B74:$M74<=T$58),T$58-$B74:$M74) -> 123380
A75: PHILADELPHIA MACARONI CO | B75: 7060 | C75: 6632 | D75: 9966 | E75: 12734 | F75: 17565 | G75: 14776 | H75: 18363 | I75: 13965 | J75: 12728 | K75: 6870 | L75: 10443 | M75: 9773 | N75: 140875 | P75: 6000 | Q75: =Q$58*12-SUM($P75:P75)-SUMPRODUCT(--($B75:$M75<=Q$58),Q$58-$B75:$M75) -> 6000 | R75: =R$58*12-SUM($P75:Q75)-SUMPRODUCT(--($B75:$M75<=R$58),R$58-$B75:$M75) -> 98301 | S75: =S$58*12-SUM($P75:R75)-SUMPRODUCT(--($B75:$M75<=S$58),S$58-$B75:$M75) -> 30574 | T75: =T$58*12-SUM($P75:S75)-SUMPRODUCT(--($B75:$M75<=T$58),T$58-$B75:$M75) -> 0
A76: PIZZA CRUST INC | B76: 5176 | C76: 7040 | D76: 8814 | E76: 10103 | F76: 8620 | G76: 8498 | H76: 7059 | I76: 9541 | J76: 8443 | K76: 7662 | L76: 6127 | M76: 3597 | N76: 90680 | P76: 6000 | Q76: =Q$58*12-SUM($P76:P76)-SUMPRODUCT(--($B76:$M76<=Q$58),Q$58-$B76:$M76) -> 6000 | R76: =R$58*12-SUM($P76:Q76)-SUMPRODUCT(--($B76:$M76<=R$58),R$58-$B76:$M76) -> 78577 | S76: =S$58*12-SUM($P76:R76)-SUMPRODUCT(--($B76:$M76<=S$58),S$58-$B76:$M76) -> 103 | T76: =T$58*12-SUM($P76:S76)-SUMPRODUCT(--($B76:$M76<=T$58),T$58-$B76:$M76) -> 0
A77: PULLMAN REGIONAL HOSPITAL | B77: 6378 | C77: 5222 | D77: 6692 | E77: 7361 | F77: 9984 | G77: 14754 | H77: 15778 | I77: 14502 | J77: 13383 | K77: 10377 | L77: 9934 | M77: 8185 | N77: 122550 | P77: 6000 | Q77: =Q$58*12-SUM($P77:P77)-SUMPRODUCT(--($B77:$M77<=Q$58),Q$58-$B77:$M77) -> 6000 | R77: =R$58*12-SUM($P77:Q77)-SUMPRODUCT(--($B77:$M77<=R$58),R$58-$B77:$M77) -> 91756 | S77: =S$58*12-SUM($P77:R77)-SUMPRODUCT(--($B77:$M77<=S$58),S$58-$B77:$M77) -> 18794 | T77: =T$58*12-SUM($P77:S77)-SUMPRODUCT(--($B77:$M77<=T$58),T$58-$B77:$M77) -> 0
A78: RED LION HOTEL AT THE PARK | B78: 11082 | C78: 12206 | D78: 11165 | E78: 11361 | F78: 12607 | G78: 18163 | H78: 19065 | I78: 15741 | J78: 13293 | K78: 11375 | L78: 11041 | M78: 11889 | N78: 158988 | P78: 6000 | Q78: =Q$58*12-SUM($P78:P78)-SUMPRODUCT(--($B78:$M78<=Q$58),Q$58-$B78:$M78) -> 6000 | R78: =R$58*12-SUM($P78:Q78)-SUMPRODUCT(--($B78:$M78<=R$58),R$58-$B78:$M78) -> 108000 | S78: =S$58*12-SUM($P78:R78)-SUMPRODUCT(--($B78:$M78<=S$58),S$58-$B78:$M78) -> 38988 | T78: =T$58*12-SUM($P78:S78)-SUMPRODUCT(--($B78:$M78<=T$58),T$58-$B78:$M78) -> 0
A79: SACRED HEART MED CENTER | B79: 22655 | C79: 19862 | D79: 20212 | E79: 21517 | F79: 21485 | G79: 24031 | H79: 24517 | I79: 22410 | J79: 20405 | K79: 18712 | L79: 21343 | M79: 19849 | N79: 256998 | P79: 6000 | Q79: =Q$58*12-SUM($P79:P79)-SUMPRODUCT(--($B79:$M79<=Q$58),Q$58-$B79:$M79) -> 6000 | R79: =R$58*12-SUM($P79:Q79)-SUMPRODUCT(--($B79:$M79<=R$58),R$58-$B79:$M79) -> 108000 | S79: =S$58*12-SUM($P79:R79)-SUMPRODUCT(--($B79:$M79<=S$58),S$58-$B79:$M79) -> 136998 | T79: =T$58*12-SUM($P79:S79)-SUMPRODUCT(--($B79:$M79<=T$58),T$58-$B79:$M79) -> 0
A80: SAINT LUKES REHAB INSTITUTE (122) | B80: 13136 | C80: 10836 | D80: 14373 | E80: 17431 | F80: 21207 | G80: 24010 | H80: 33300 | I80: 24094 | J80: 20748 | K80: 21382 | L80: 16711 | M80: 17745 | N80: 234973 | P80: 6000 | Q80: =Q$58*12-SUM($P80:P80)-SUMPRODUCT(--($B80:$M80<=Q$58),Q$58-$B80:$M80) -> 6000 | R80: =R$58*12-SUM($P80:Q80)-SUMPRODUCT(--($B80:$M80<=R$58),R$58-$B80:$M80) -> 108000 | S80: =S$58*12-SUM($P80:R80)-SUMPRODUCT(--($B80:$M80<=S$58),S$58-$B80:$M80) -> 106673 | T80: =T$58*12-SUM($P80:S80)-SUMPRODUCT(--($B80:$M80<=T$58),T$58-$B80:$M80) -> 8300
A81: SHRINERS HOSPITAL | B81: 11501 | C81: 9469 | D81: 8819 | E81: 12602 | F81: 13664 | G81: 16318 | H81: 16921 | I81: 18362 | J81: 16022 | K81: 14830 | L81: 14622 | M81: 12644 | N81: 165774 | P81: 6000 | Q81: =Q$58*12-SUM($P81:P81)-SUMPRODUCT(--($B81:$M81<=Q$58),Q$58-$B81:$M81) -> 6000 | R81: =R$58*12-SUM($P81:Q81)-SUMPRODUCT(--($B81:$M81<=R$58),R$58-$B81:$M81) -> 106288 | S81: =S$58*12-SUM($P81:R81)-SUMPRODUCT(--($B81:$M81<=S$58),S$58-$B81:$M81) -> 47486 | T81: =T$58*12-SUM($P81:S81)-SUMPRODUCT(--($B81:$M81<=T$58),T$58-$B81:$M81) -> 0
A82: SKAMANIA LODGE | B82: 14454 | C82: 10492 | D82: 12177 | E82: 13676 | F82: 12024 | G82: 15874 | H82: 16627 | I82: 14779 | J82: 15573 | K82: 13922 | L82: 13941 | M82: 13055 | N82: 166594 | P82: 6000 | Q82: =Q$58*12-SUM($P82:P82)-SUMPRODUCT(--($B82:$M82<=Q$58),Q$58-$B82:$M82) -> 6000 | R82: =R$58*12-SUM($P82:Q82)-SUMPRODUCT(--($B82:$M82<=R$58),R$58-$B82:$M82) -> 108000 | S82: =S$58*12-SUM($P82:R82)-SUMPRODUCT(--($B82:$M82<=S$58),S$58-$B82:$M82) -> 46594 | T82: =T$58*12-SUM($P82:S82)-SUMPRODUCT(--($B82:$M82<=T$58),T$58-$B82:$M82) -> 0
A83: SPOKANE CLUB | B83: 10636 | C83: 9364 | D83: 10164 | E83: 11411 | F83: 14424 | G83: 15403 | H83: 19425 | I83: 16193 | J83: 16127 | K83: 13125 | L83: 13020 | M83: 13400 | N83: 162692 | P83: 6000 | Q83: =Q$58*12-SUM($P83:P83)-SUMPRODUCT(--($B83:$M83<=Q$58),Q$58-$B83:$M83) -> 6000 | R83: =R$58*12-SUM($P83:Q83)-SUMPRODUCT(--($B83:$M83<=R$58),R$58-$B83:$M83) -> 107364 | S83: =S$58*12-SUM($P83:R83)-SUMPRODUCT(--($B83:$M83<=S$58),S$58-$B83:$M83) -> 43328 | T83: =T$58*12-SUM($P83:S83)-SUMPRODUCT(--($B83:$M83<=T$58),T$58-$B83:$M83) -> 0
A84: SPOKANE GALVANIZING INC | B84: 7197 | C84: 6684 | D84: 5531 | E84: 6420 | F84: 8419 | G84: 10406 | H84: 11661 | I84: 14427 | J84: 13549 | K84: 12484 | L84: 9289 | M84: 8639 | N84: 114706 | P84: 6000 | Q84: =Q$58*12-SUM($P84:P84)-SUMPRODUCT(--($B84:$M84<=Q$58),Q$58-$B84:$M84) -> 6000 | R84: =R$58*12-SUM($P84:Q84)-SUMPRODUCT(--($B84:$M84<=R$58),R$58-$B84:$M84) -> 90179 | S84: =S$58*12-SUM($P84:R84)-SUMPRODUCT(--($B84:$M84<=S$58),S$58-$B84:$M84) -> 12527 | T84: =T$58*12-SUM($P84:S84)-SUMPRODUCT(--($B84:$M84<=T$58),T$58-$B84:$M84) -> 0
A85: TRI STATE MEMORIAL HOSPITAL | B85: 7513 | C85: 5791 | D85: 7941 | E85: 8503 | F85: 10214 | G85: 15229 | H85: 15972 | I85: 13055 | J85: 11607 | K85: 9964 | L85: 8783 | M85: 8921 | N85: 123493 | P85: 6000 | Q85: =Q$58*12-SUM($P85:P85)-SUMPRODUCT(--($B85:$M85<=Q$58),Q$58-$B85:$M85) -> 6000 | R85: =R$58*12-SUM($P85:Q85)-SUMPRODUCT(--($B85:$M85<=R$58),R$58-$B85:$M85) -> 95416 | S85: =S$58*12-SUM($P85:R85)-SUMPRODUCT(--($B85:$M85<=S$58),S$58-$B85:$M85) -> 16077 | T85: =T$58*12-SUM($P85:S85)-SUMPRODUCT(--($B85:$M85<=T$58),T$58-$B85:$M85) -> 0
A86: WAGSTAFF INC | B86: 14005 | C86: 9353 | D86: 8247 | E86: 15346 | F86: 16053 | G86: 13059 | H86: 15505 | I86: 15396 | J86: 18850 | K86: 18426 | L86: 7825 | M86: 4476 | N86: 156541 | P86: 6000 | Q86: =Q$58*12-SUM($P86:P86)-SUMPRODUCT(--($B86:$M86<=Q$58),Q$58-$B86:$M86) -> 6000 | R86: =R$58*12-SUM($P86:Q86)-SUMPRODUCT(--($B86:$M86<=R$58),R$58-$B86:$M86) -> 97901 | S86: =S$58*12-SUM($P86:R86)-SUMPRODUCT(--($B86:$M86<=S$58),S$58-$B86:$M86) -> 46640 | T86: =T$58*12-SUM($P86:S86)-SUMPRODUCT(--($B86:$M86<=T$58),T$58-$B86:$M86) -> 0
A87: WSU HOUSING | B87: 11733 | C87: 6640 | D87: 6736 | E87: 9222 | F87: 14883 | G87: 24061 | H87: 26667 | I87: 33036 | J87: 25623 | K87: 23549 | L87: 19801 | M87: 14366 | N87: 216317 | P87: 6000 | Q87: =Q$58*12-SUM($P87:P87)-SUMPRODUCT(--($B87:$M87<=Q$58),Q$58-$B87:$M87) -> 6000 | R87: =R$58*12-SUM($P87:Q87)-SUMPRODUCT(--($B87:$M87<=R$58),R$58-$B87:$M87) -> 100598 | S87: =S$58*12-SUM($P87:R87)-SUMPRODUCT(--($B87:$M87<=S$58),S$58-$B87:$M87) -> 93393 | T87: =T$58*12-SUM($P87:S87)-SUMPRODUCT(--($B87:$M87<=T$58),T$58-$B87:$M87) -> 10326
N88: =SUM(B88:M88) -> 0 | P88: 0 | Q88: =Q$58*12-SUM($P88:P88)-SUMPRODUCT(--($B88:$M88<=Q$58),Q$58-$B88:$M88) -> 0 | R88: =R$58*12-SUM($P88:Q88)-SUMPRODUCT(--($B88:$M88<=R$58),R$58-$B88:$M88) -> 0 | S88: =S$58*12-SUM($P88:R88)-SUMPRODUCT(--($B88:$M88<=S$58),S$58-$B88:$M88) -> 0 | T88: =T$58*12-SUM($P88:S88)-SUMPRODUCT(--($B88:$M88<=T$58),T$58-$B88:$M88) -> 0
A89: Total WA Sch 121/122 | B89: =SUM(B60:B87) -> 343738 | C89: =SUM(C60:C88) -> 304365 | D89: =SUM(D60:D88) -> 314179 | E89: =SUM(E60:E88) -> 360113 | F89: =SUM(F60:F88) -> 449779 | G89: =SUM(G60:G88) -> 570909 | H89: =SUM(H60:H88) -> 671097 | I89: 675263 | J89: 585219 | K89: 515134 | L89: 457526 | M89: 382486 | N89: =IF(ROUND(SUM(N60:N88),3)<>ROUND(SUM(B89:M89),3),#VALUE!,SUM(B89:M89)) -> 5629808 | P89: =SUM(P60:P88) -> 167806 | Q89: =SUM(Q60:Q88) -> 167500 | R89: =SUM(R60:R88) -> 2773321 | S89: =SUM(S60:S88) -> 1692856 | T89: =SUM(T60:T88) -> 828325
T90: =SUM(P89:T89) -> 5629808
A91: Revenue Runs | B91: 363466 | C91: 347598 | D91: 338923 | E91: 384095 | F91: 490002 | G91: 549654 | H91: 679551 | I91: 647435 | J91: 625848 | K91: 494888 | L91: 477772 | M91: 382486 | N91: =SUM(B91:M91) -> 5781718
A92: GREENACRES GYPSUM & LIME CO (Timiing Difference) | B92: 11611 | C92: -11611 | G92: 15874 | H92: -15874 | I92: 18537 | J92: -18537 | K92: 20246 | L92: -20246 | N92: =SUM(B92:M92) -> 0
A93: SPOKANE COUNTY COURTHOUSE (122 to 132) | B93: -40415 | C93: -35773 | D93: -29436 | E93: -24288 | F93: -44285 | G93: 0 | N93: =SUM(B93:M93) -> -174197
A94: KALISPEL TRIBAL ECONOMIC AUTHOR | B94: 9076 | C94: 4151 | D94: 4692 | E94: 306 | F94: 4062 | G94: 5381 | H94: 7420 | I94: 9291 | J94: -22092 | N94: 22287
A95: Total WA Sch 121/122 | B95: =SUM(B91:B94) -> 343738 | C95: 304365 | D95: 314179 | E95: 360113 | F95: 449779 | G95: 570909 | H95: 671097 | I95: 675263 | J95: 585219 | K95: 515134 | L95: 457526 | M95: 382486 | N95: =IF(ROUND(SUM(N91:N94),3)<>ROUND(SUM(B95:M95),3),#VALUE!,SUM(B95:M95)) -> 5629808
B96: =B89-B95 -> 0 | C96: 0 | D96: 0 | E96: 0 | F96: 0 | G96: 0 | H96: 0 | I96: 0 | J96: 0 | K96: 0 | L96: 0 | M96: 0 | N96: 0
P97: 1st | Q97: =P98 -> 10000 | R97: =Q98 -> 25000 | S97: =R98 -> 50000
A98: ANNUAL USAGE, Sch 131/132 | B98: =B96-B97 -> 0 | N98: 12-mo ended | P98: 10000 | Q98: 25000 | R98: 50000 | S98: 99999999
A99: Washington | B99: =B4 -> 2012-07-01 | C99: =C4 -> 2012-08-01 | D99: 2012-09-01 | E99: 2012-10-01 | F99: 2012-11-01 | G99: 2012-12-01 | H99: 2013-01-01 | I99: 2013-02-01 | J99: 2013-03-01 | K99: 2013-04-01 | L99: 2013-05-01 | M99: 2013-06-01 | N99: Total | P99: thms/mo | Q99: thms/mo | R99: thms/mo | S99: thms/mo
A100: AIRWAY HEIGHTS CORRECTION CENTER | B100: 34430 | C100: 25552 | D100: 21285 | E100: 30272 | F100: 42234 | G100: 71957 | H100: 73310 | I100: 95998 | J100: 69787 | K100: 63637 | L100: 55507 | M100: 36012 | N100: =SUM(B100:M100) -> 619981 | P100: =P$98*12-SUMPRODUCT(--($B100:$M100<=P$98),P$98-$B100:$M100) -> 120000 | Q100: =Q$98*12-SUM($P100:P100)-SUMPRODUCT(--($B100:$M100<=Q$98),Q$98-$B100:$M100) -> 176285 | R100: =R$98*12-SUM($P100:Q100)-SUMPRODUCT(--($B100:$M100<=R$98),R$98-$B100:$M100) -> 193500 | S100: =S$98*12-SUM($P100:R100)-SUMPRODUCT(--($B100:$M100<=S$98),S$98-$B100:$M100) -> 130196
A101: SPOKANE COUNTY COURTHOUSE | B101: 40415 | C101: 35773 | D101: 29436 | E101: 24288 | F101: 44285 | G101: 53427 | H101: 77926 | I101: 76053 | J101: 65467 | K101: 62779 | L101: 52085 | M101: 41523 | N101: =SUM(B101:M101) -> 603457 | P101: =P$98*12-SUMPRODUCT(--($B101:$M101<=P$98),P$98-$B101:$M101) -> 120000 | Q101: =Q$98*12-SUM($P101:P101)-SUMPRODUCT(--($B101:$M101<=Q$98),Q$98-$B101:$M101) -> 179288 | R101: =R$98*12-SUM($P101:Q101)-SUMPRODUCT(--($B101:$M101<=R$98),R$98-$B101:$M101) -> 216432 | S101: =S$98*12-SUM($P101:R101)-SUMPRODUCT(--($B101:$M101<=S$98),S$98-$B101:$M101) -> 87737
B103: =SUM(B100:B102) -> 74845 | C103: =SUM(C100:C102) -> 61325 | D103: 50721 | E103: 54560 | F103: 86519 | G103: 125384 | H103: 151236 | I103: 172051 | J103: 135254 | K103: 126416 | L103: 107592 | M103: 77535 | N103: =IF(ROUND(SUM(N100:N102),3)<>ROUND(SUM(B103:M103),3),#VALUE!,SUM(B103:M103)) -> 1223438 | P103: =SUM(P100:P102) -> 240000 | Q103: =SUM(Q100:Q102) -> 355573 | R103: =SUM(R100:R102) -> 409932 | S103: =SUM(S100:S102) -> 217933
A105: Revenue Runs | B105: 34430 | C105: 25552 | D105: 21285 | E105: 30272 | F105: 42234 | G105: 125384 | H105: 151236 | I105: 172051 | J105: 135254 | K105: 126416 | L105: 107592 | M105: 77535 | N105: =SUM(B105:M105) -> 1049241
A106: SPOKANE COUNTY COURTHOUSE (122 to 132) | B106: 40415 | C106: 35773 | D106: 29436 | E106: 24288 | F106: 44285 | N106: =SUM(B106:M106) -> 174197
A107: Total WA Sch 132 | B107: =SUM(B105:B106) -> 74845 | C107: =SUM(C105:C106) -> 61325 | D107: 50721 | E107: 54560 | F107: 86519 | G107: 125384 | H107: 151236 | I107: 172051 | J107: 135254 | K107: 126416 | L107: 107592 | M107: 77535 | N107: 1223438 | S107: =SUM(P103:S103) -> 1223438
B108: =B103-B107 -> 0 | C108: =C103-C107 -> 0 | D108: 0 | E108: 0 | F108: 0 | G108: 0 | H108: 0 | I108: 0 | J108: 0 | K108: 0 | L108: 0 | M108: 0 | N108: 0
A109: ANNUAL USAGE, Sch 148 | N109: 12-mo ended
A110: Washington | B110: =B4 -> 2012-07-01 | C110: =C4 -> 2012-08-01 | D110: 2012-09-01 | E110: 2012-10-01 | F110: 2012-11-01 | G110: 2012-12-01 | H110: 2013-01-01 | I110: 2013-02-01 | J110: 2013-03-01 | K110: 2013-04-01 | L110: 2013-05-01 | M110: 2013-06-01 | N110: Total
A111: Kaiser Trentwood (2500068) | B111: 1578439 | C111: 1552719 | D111: 1484085 | E111: 1582704 | F111: 1718926 | G111: 1873129 | H111: 1961506 | I111: 2055851 | J111: 1813271 | K111: 1848292 | L111: 1623567 | M111: 1587550 | N111: =SUM(B111:M111) -> 20680039
A112: Lamb-Weston | B112: 604820 | C112: 552599 | D112: 603110 | E112: 582204 | F112: 670047 | G112: 612293 | H112: 511946 | I112: 658325 | J112: 593217 | K112: 637147 | L112: 613161 | M112: 399383 | N112: =SUM(B112:M112) -> 7038252
A113: Mutual Material Corp | B113: 135821 | C113: 138840 | D113: 143493 | E113: 134321 | F113: 148692 | G113: 155207 | H113: 138546 | I113: 144620 | J113: 135284 | K113: 147220 | L113: 151860 | M113: 158521 | N113: =SUM(B113:M113) -> 1732425
A114: Washington Potato | B114: 500194 | C114: 498752 | D114: 472809 | E114: 505564 | F114: 550743 | G114: 549394 | H114: 524689 | I114: 542847 | J114: 483906 | K114: 519170 | L114: 488011 | M114: 493343 | N114: =SUM(B114:M114) -> 6129422
A115: Washington State Univ (2200044) | B115: 509391 | C115: 383455 | D115: 384902 | E115: 484937 | F115: 785472 | G115: 975436 | H115: 1305323 | I115: 1433339 | J115: 1092394 | K115: 1024001 | L115: 883189 | M115: 622626 | N115: =SUM(B115:M115) -> 9884465
A117: Total WA Sch 148 | B117: =SUM(B111:B116) -> 3328665 | C117: 3126365 | D117: 3088399 | E117: 3289730 | F117: 3873880 | G117: 4165459 | H117: 4442010 | I117: 4834982 | J117: 4118072 | K117: 4175830 | L117: 3759788 | M117: 3261423 | N117: =IF(ROUND(SUM(N111:N116),3)<>ROUND(SUM(B117:M117),3),#VALUE!,SUM(B117:M117)) -> 45464603
A119: Revenue Runs | B119: 3328665 | C119: 3126365 | D119: 3088399 | E119: 3289730 | F119: 3873880 | G119: 4165459 | H119: 4442010 | I119: 4834982 | J119: 4118072 | K119: 4175830 | L119: 3759788 | M119: 3261423 | N119: =SUM(B119:M119) -> 45464603
B120: =B117-B119 -> 0 | C120: =C117-C119 -> 0 | D120: 0 | E120: 0 | F120: 0 | G120: 0 | H120: 0 | I120: 0 | J120: 0 | K120: 0 | L120: 0 | M120: 0 | N120: 0
A122: ANNUAL USAGE, Sch 147 | N122: 12-mo ended
A123: Washington | B123: =B4 -> 2012-07-01 | C123: =C4 -> 2012-08-01 | D123: 2012-09-01 | E123: 2012-10-01 | F123: 2012-11-01 | G123: 2012-12-01 | H123: 2013-01-01 | I123: 2013-02-01 | J123: 2013-03-01 | K123: 2013-04-01 | L123: 2013-05-01 | M123: 2013-06-01 | N123: Total
A124: WWP-Boulder Park | B124: 40614 | C124: 182 | D124: 66591 | E124: 36258 | F124: 66637 | G124: 5706 | H124: 23665 | I124: 131647 | J124: 117 | K124: 110341 | L124: 31625 | M124: 79801 | N124: =SUM(B124:M124) -> 593184
A125: WWP-Kettle Falls | B125: 0 | C125: 9007 | D125: 15793 | E125: 6822 | F125: 22976 | G125: 8929 | H125: 545 | I125: 37560 | J125: 5889 | K125: 20006 | L125: 15601 | M125: 4427 | N125: =SUM(B125:M125) -> 147555
A127: Total WA Sch 147 | B127: =SUM(B124:B126) -> 40614 | C127: 9189 | D127: =SUM(D124:D126) -> 82384 | E127: 43080 | F127: 89613 | G127: 14635 | H127: 24210 | I127: 169207 | J127: 6006 | K127: 130347 | L127: 47226 | M127: 84228 | N127: =IF(ROUND(SUM(N124:N126),3)<>ROUND(SUM(B127:M127),3),#VALUE!,SUM(B127:M127)) -> 740739
A129: Revenue Runs | B129: 40614 | C129: 9189 | D129: 82384 | E129: 43080 | F129: 89613 | G129: 14635 | H129: 24210 | I129: 169207 | J129: 6006 | K129: 130347 | L129: 47226 | M129: 84228 | N129: =SUM(B129:M129) -> 740739
B130: =B127-B129 -> 0 | C130: 0 | D130: 0 | E130: 0 | F130: 0 | G130: 0 | H130: 0 | I130: 0 | J130: 0 | K130: 0 | L130: 0 | M130: 0 | N130: 0
A132: Sch 147 Revenue from Rev. Runs | B132: 849 | C132: 192 | D132: 1723 | E132: 901 | F132: 1874 | G132: 306 | H132: 506 | I132: 3538 | J132: 126 | K132: 2726 | L132: 988 | M132: 1761 | N132: =SUM(B132:M132) -> 15490
A133: check | B133: =B127*0.02091 -> 849.23874 | C133: =C127*0.02091 -> 192.14199 | D133: 1722.64944 | E133: 900.8028 | F133: 1873.80783 | G133: 306.01785 | H133: 506.2311 | I133: 3538.11837 | J133: 125.58546 | K133: 2725.55577 | L133: =L127*0.02091 -> 987.49566 | M133: 1761.20748 | N133: =SUM(B133:M133) -> 15488.85249

Sheet Rev Runs CY (hidden)
A5: Gas Revenue Meters Report by Location Twelve Months Ended for Report Date : '06/30/2013'
A7: State Cde:WA
C9: Meters
B10: Period | C10: 201207 | D10: 201208 | E10: 201209 | F10: 201210 | G10: 201211 | H10: 201212 | I10: 201301 | J10: 201302 | K10: 201303 | L10: 201304 | M10: 201305 | N10: 201306 | O10: 12 Month Average
A11: Rate Schedule Num
A12: 101 | C12: 146524 | D12: 146433 | E12: 147360 | F12: 146875 | G12: 147245 | H12: 147536 | I12: 147902 | J12: 147934 | K12: 147801 | L12: 147781 | M12: 147555 | N12: 147321 | O12: 147355.5833
A13: 111 | C13: 2471 | D13: 2452 | E13: 2460 | F13: 2476 | G13: 2479 | H13: 2486 | I13: 2493 | J13: 2504 | K13: 2511 | L13: 2498 | M13: 2491 | N13: 2476 | O13: 2483.083333
A14: 112 | C14: 0 | D14: 0 | E14: 0 | F14: 0 | G14: 0 | H14: 0 | O14: 0
A15: 121 | C15: 24 | D15: 26 | E15: 25 | F15: 25 | G15: 25 | H15: 24 | I15: 27 | J15: 24 | K15: 27 | L15: 25 | M15: 27 | N15: 26 | O15: 25.41666667
A16: 122 | C16: 3 | D16: 3 | E16: 3 | F16: 3 | G16: 3 | H16: 2 | I16: 2 | J16: 2 | K16: 2 | L16: 2 | M16: 2 | N16: 2 | O16: 2.416666667
A17: 132 | C17: 1 | D17: 1 | E17: 1 | F17: 1 | G17: 1 | H17: 2 | I17: 2 | J17: 2 | K17: 2 | L17: 2 | M17: 2 | N17: 2 | O17: 1.583333333
A18: 146 | C18: 40 | D18: 40 | E18: 43 | F18: 40 | G18: 42 | H18: 52 | I18: 47 | J18: 40 | K18: 44 | L18: 39 | M18: 42 | N18: 45 | O18: 42.83333333
A19: 146I | C19: 0 | D19: 0 | E19: 0 | F19: 0 | G19: 0 | H19: 0 | O19: 0
A20: 147 | C20: 1 | D20: 2 | E20: 6 | F20: 4 | G20: 3 | H20: 3 | I20: 3 | J20: 3 | K20: 3 | L20: 3 | M20: 3 | N20: 3 | O20: 3.083333333
A21: 148 | C21: 5 | D21: 7 | E21: 5 | F21: 6 | G21: 5 | H21: 8 | I21: 5 | J21: 6 | K21: 5 | L21: 6 | M21: 5 | N21: 5 | O21: 5.666666667
A22: 158 | C22: 0 | D22: 0 | E22: 0 | F22: 0 | G22: 0 | H22: 0 | I22: 0 | J22: 0 | K22: 0 | L22: 0 | M22: 0 | N22: 0 | O22: 0
A23: 158A | C23: 0 | D23: 0 | E23: 0 | F23: 0 | G23: 0 | H23: 0 | I23: 0 | J23: 0 | K23: 0 | L23: 0 | M23: 0 | N23: 0 | O23: 0
A24: 199 | C24: 0 | D24: 0 | E24: 0 | F24: 0 | G24: 0 | H24: 0 | I24: 0 | J24: 0 | K24: 0 | L24: 0 | M24: 0 | N24: 0 | O24: 0
A25: 410 | G25: 0 | H25: 0 | O25: 0
A26: 460 | G26: 0 | H26: 0 | O26: 0
A27: Total for WA | C27: 149069 | D27: 148964 | E27: 149903 | F27: 149430 | G27: 149803 | H27: 150113 | I27: 150481 | J27: 150515 | K27: 150395 | L27: 150356 | M27: 150127 | N27: 149880
A28: Total | C28: 149069 | D28: 148964 | E28: 149903 | F28: 149430 | G28: 149803 | H28: 150113 | I28: 150481 | J28: 150515 | K28: 150395 | L28: 150356 | M28: 150127 | N28: 149880
A33: State Code:WA
C35: Usage
B36: Period | C36: 201207 | D36: 201208 | E36: 201209 | F36: 201210 | G36: 201211 | H36: 201212 | I36: 201301 | J36: 201302 | K36: 201303 | L36: 201304 | M36: 201305 | N36: 201306 | O36: 12 Month Total
A37: Rate Schedule Num
A38: 101 | C38: 2891517 | D38: 1968467 | E38: 2118366 | F38: 3134468 | G38: 8101674 | H38: 14671902 | I38: 20307726 | J38: 20355015 | K38: 15326447 | L38: 11144122 | M38: 7232104 | N38: 3936374 | O38: 111188182
A39: 111 | C39: 1554169 | D39: 1217415 | E39: 1298886 | F39: 1814340 | G39: 3475374 | H39: 5430995 | I39: 7129379 | J39: 7046659 | K39: 5587113 | L39: 4364404 | M39: 3039370 | N39: 1984763 | O39: 43942867
A40: 112 | C40: 0 | D40: 0 | E40: 0 | F40: 0 | G40: 0 | H40: 0 | O40: 0
A41: 121 | C41: 287810 | D41: 283775 | E41: 280171 | F41: 320926 | G41: 394036 | H41: 473405 | I41: 593803 | J41: 552867 | K41: 554081 | L41: 427834 | M41: 420525 | N41: 339595 | O41: 4928828
A42: 122 | C42: 75656 | D42: 63823 | E42: 58752 | F42: 63169 | G42: 95966 | H42: 76249 | I42: 85748 | J42: 94568 | K42: 71767 | L42: 67054 | M42: 57247 | N42: 42891 | O42: 852890
A43: 132 | C43: 34430 | D43: 25552 | E43: 21285 | F43: 30272 | G43: 42234 | H43: 125384 | I43: 151236 | J43: 172051 | K43: 135254 | L43: 126416 | M43: 107592 | N43: 77535 | O43: 1049241
A44: 146 | C44: 1825410 | D44: 1583716 | E44: 1814407 | F44: 1675559 | G44: 2302379 | H44: 2706281 | I44: 3063367 | J44: 3708843 | K44: 2869448 | L44: 2767000 | M44: 2440274 | N44: 1907150 | O44: 28663834
A45: 146I | C45: 0 | D45: 0 | E45: 0 | F45: 0 | G45: 0 | H45: 0 | O45: 0
A46: 147 | C46: 40614 | D46: 9189 | E46: 82384 | F46: 43080 | G46: 89613 | H46: 14635 | I46: 24210 | J46: 169207 | K46: 6006 | L46: 130347 | M46: 47226 | N46: 84228 | O46: 740739
A47: 148 | C47: 3328665 | D47: 3126365 | E47: 3088399 | F47: 3289730 | G47: 3873880 | H47: 4165459 | I47: 4442010 | J47: 4834982 | K47: 4118072 | L47: 4175830 | M47: 3759788 | N47: 3261423 | O47: 45464603
A48: 158 | C48: 0 | D48: 0 | E48: 0 | F48: 0 | G48: 0 | H48: 0 | I48: 0 | J48: 0 | K48: 0 | L48: 0 | M48: 0 | N48: 0 | O48: 0
A49: 158A | C49: 0 | D49: 0 | E49: 0 | F49: 0 | G49: 0 | H49: 0 | I49: 0 | J49: 0 | K49: 0 | L49: 0 | M49: 0 | N49: 0 | O49: 0
A50: 199 | C50: 0 | D50: 0 | E50: 0 | F50: 0 | G50: 0 | H50: 0 | I50: 0 | J50: 0 | K50: 0 | L50: 0 | M50: 0 | N50: 0 | O50: 0
A51: 410 | G51: 17 | H51: -17 | O51: 0
A52: 460 | G52: 0 | H52: 0 | O52: 0
A53: Total for WA | C53: 10038271 | D53: 8278302 | E53: 8762650 | F53: 10371544 | G53: 18375173 | H53: 27664293 | I53: 35797479 | J53: 36934192 | K53: 28668188 | L53: 23203007 | M53: 17104126 | N53: 11633959 | O53: 236831184
A54: Total | C54: 10038271 | D54: 8278302 | E54: 8762650 | F54: 10371544 | G54: 18375173 | H54: 27664293 | I54: 35797479 | J54: 36934192 | K54: 28668188 | L54: 23203007 | M54: 17104126 | N54: 11633959 | O54: 236831184
